Workbook

Sheet Form
B2: =IF(AND(WSIZE>0,HSIZE>0),"Only Available At"&" "&WSIZE&" x "&HSIZE&IF(HCONTROL=1," or "&HSIZE2,""),"") ->  | H2: Select Model | J2: =IF(ISERROR(SHATERROR),"",IF(SHATERROR=1,"Adjust CMR to Increase Egress Height","")) -> 
B3: =IF(Model_Select="Select Model","","(Model"&" "&ModelNo&")") ->  | G3: Select Model | J3: ="Min. W:"&" "&MINW -> Min. W: 0 | N3: ="Max W:"&" "&MAXW -> Max W: 0
B4: =Description -> 0 | J4: ="Min. H:"&" "&MINH -> Min. H: 0 | N4: ="Max H:"&" "&MAXH -> Max H: 0 | P4: ="Max UI:"&" "&MAXUI -> Max UI: 0
B5: =IF(AND(W>0,H>0),(IF(ISERROR(VLOOKUP(1,Data!$A:$D,3,FALSE)),"",VLOOKUP(1,Data!$A:$D,3,FALSE))),"") ->  | F5: =IF(ISERROR(SHAT_MIN_R),"",IF(SHAT_MIN_R=1,SHAT_MESSAGE,"")) ->  | H5: =IF(AND(W>0,H>0),(IF(ISERROR(VLOOKUP(1,Data!$A:$D,4,FALSE)),"",VLOOKUP(1,Data!$A:$D,4,FALSE))),"") ->  | N5: Exact Size
B6: =IF(AND(W>0,H>0),(IF(ISERROR(VLOOKUP(2,Data!$A:$D,3,FALSE)),"",VLOOKUP(2,Data!$A:$D,3,FALSE))),"") ->  | H6: =IF(AND(W>0,H>0),(IF(ISERROR(VLOOKUP(2,Data!$A:$D,4,FALSE)),"",VLOOKUP(2,Data!$A:$D,4,FALSE))),"") ->  | J6: Width: | N6: =IF(AND(RO=2,W>0),W-WCUTBACK,W) -> 0 | O6: =IF(AND(W>0,WSIZE>0,W<>WSIZE),"<< Width Not Available","") -> 
B7: =IF(AND(W>0,H>0),(IF(ISERROR(VLOOKUP(3,Data!$A:$D,3,FALSE)),"",VLOOKUP(3,Data!$A:$D,3,FALSE))),"") ->  | H7: =IF(AND(W>0,H>0),(IF(ISERROR(VLOOKUP(3,Data!$A:$D,4,FALSE)),"",VLOOKUP(3,Data!$A:$D,4,FALSE))),"") ->  | J7: Height: | N7: =IF(AND(RO=2,H>0),H-HCUTBACK,H) -> 0 | O7: =IF(AND(H>0,HSIZE>0,HSIZE2>0,H<>HSIZE,H<>HSIZE2),"<< Height Not Available","") -> 
B8: =IF(AND(W>0,H>0),(IF(ISERROR(VLOOKUP(4,Data!$A:$D,3,FALSE)),"",VLOOKUP(4,Data!$A:$D,3,FALSE))),"") ->  | H8: =IF(AND(W>0,H>0),(IF(ISERROR(VLOOKUP(4,Data!$A:$D,4,FALSE)),"",VLOOKUP(4,Data!$A:$D,4,FALSE))),"") ->  | J8: =IF(OR(ModelNo="S140",ModelNo="S144",ModelNo="S146",ModelNo="S140 (HP)",ModelNo="S144 (HP)",ModelNo="S146 (HP)"),"Leg:","") ->  | N8: =LEG_MESSAGE -> 
B9: =IF(AND(W>0,H>0),(IF(ISERROR(VLOOKUP(5,Data!$A:$D,3,FALSE)),"",VLOOKUP(5,Data!$A:$D,3,FALSE))),"") ->  | H9: =IF(AND(W>0,H>0),(IF(ISERROR(VLOOKUP(5,Data!$A:$D,4,FALSE)),"",VLOOKUP(5,Data!$A:$D,4,FALSE))),"") ->  | J9: =IF(BTYPE="Custom","CMR:","") ->  | N9: =CMR_MESSAGE -> 0
B10: =IF(AND(W>0,H>0),(IF(ISERROR(VLOOKUP(6,Data!$A:$D,3,FALSE)),"",VLOOKUP(6,Data!$A:$D,3,FALSE))),"") ->  | H10: =IF(AND(W>0,H>0),(IF(ISERROR(VLOOKUP(6,Data!$A:$D,4,FALSE)),"",VLOOKUP(6,Data!$A:$D,4,FALSE))),"") ->  | J10: =IF(SELECTEXT="Select Extrusion","Ext.",IF(SELECTEXT="Select Reinforcement","Reinforce",IF(SELECTEXT="Standard","HP >>",""))) ->  | N10: =EXT_MESSAGE -> 
B11: =IF(AND(W>0,H>0),(IF(ISERROR(VLOOKUP(7,Data!$A:$D,3,FALSE)),"",VLOOKUP(7,Data!$A:$D,3,FALSE))),"") ->  | H11: =IF(AND(W>0,H>0),(IF(ISERROR(VLOOKUP(7,Data!$A:$D,4,FALSE)),"",VLOOKUP(7,Data!$A:$D,4,FALSE))),"") ->  | J11: Opening: | N11: =RO_OPTION -> 0
B12: =IF(AND(W>0,H>0),(IF(ISERROR(VLOOKUP(8,Data!$A:$D,3,FALSE)),"",VLOOKUP(8,Data!$A:$D,3,FALSE))),"") ->  | H12: =IF(AND(W>0,H>0),(IF(ISERROR(VLOOKUP(8,Data!$A:$D,4,FALSE)),"",VLOOKUP(8,Data!$A:$D,4,FALSE))),"") ->  | J12: Type:
B13: =IF(AND(W>0,H>0),(IF(ISERROR(VLOOKUP(9,Data!$A:$D,3,FALSE)),"",VLOOKUP(9,Data!$A:$D,3,FALSE))),"") ->  | H13: =IF(AND(W>0,H>0),(IF(ISERROR(VLOOKUP(9,Data!$A:$D,4,FALSE)),"",VLOOKUP(9,Data!$A:$D,4,FALSE))),"") ->  | J13: Screen:
B14: =IF(AND(W>0,H>0),(IF(ISERROR(VLOOKUP(10,Data!$A:$D,3,FALSE)),"",VLOOKUP(10,Data!$A:$D,3,FALSE))),"") ->  | H14: =IF(AND(W>0,H>0),(IF(ISERROR(VLOOKUP(10,Data!$A:$D,4,FALSE)),"",VLOOKUP(10,Data!$A:$D,4,FALSE))),"") ->  | J14: Glass: | O14: =IF(AND(EXTTYPE="HP Package",GT="S"),"<< Must Select DS","") -> 
B16: =IF(AND(W>0,H>0),(IF(ISERROR(VLOOKUP(11,Data!$A:$D,3,FALSE)),"",VLOOKUP(11,Data!$A:$D,3,FALSE))),"") ->  | H16: =IF(AND(W>0,H>0),(IF(ISERROR(VLOOKUP(11,Data!$A:$D,4,FALSE)),"",VLOOKUP(11,Data!$A:$D,4,FALSE))),"") -> 
B17: =IF(AND(W>0,H>0),(IF(ISERROR(VLOOKUP(12,Data!$A:$D,3,FALSE)),"",VLOOKUP(12,Data!$A:$D,3,FALSE))),"") ->  | H17: =IF(AND(W>0,H>0),(IF(ISERROR(VLOOKUP(12,Data!$A:$D,4,FALSE)),"",VLOOKUP(12,Data!$A:$D,4,FALSE))),"") -> 
B18: =IF(AND(W>0,H>0),(IF(ISERROR(VLOOKUP(13,Data!$A:$D,3,FALSE)),"",VLOOKUP(13,Data!$A:$D,3,FALSE))),"") ->  | H18: =IF(AND(W>0,H>0),(IF(ISERROR(VLOOKUP(13,Data!$A:$D,4,FALSE)),"",VLOOKUP(13,Data!$A:$D,4,FALSE))),"") ->  | N18: A Designated AC Sash is Used to Replace BOTH Top and Bottom Sashes When AC is in the Window
B19: =IF(AND(W>0,H>0),(IF(ISERROR(VLOOKUP(14,Data!$A:$D,3,FALSE)),"",VLOOKUP(14,Data!$A:$D,3,FALSE))),"") ->  | H19: =IF(AND(W>0,H>0),(IF(ISERROR(VLOOKUP(14,Data!$A:$D,4,FALSE)),"",VLOOKUP(14,Data!$A:$D,4,FALSE))),"") -> 
B20: =IF(AND(W>0,H>0),(IF(ISERROR(VLOOKUP(15,Data!$A:$D,3,FALSE)),"",VLOOKUP(15,Data!$A:$D,3,FALSE))),"") ->  | H20: =IF(AND(W>0,H>0),(IF(ISERROR(VLOOKUP(15,Data!$A:$D,4,FALSE)),"",VLOOKUP(15,Data!$A:$D,4,FALSE))),"") ->  | J20: AC Width: | N20: =IF(AND(W>0,H>0,ACWIDTH>0,ACHEIGHT>0,ACCMR>0,ACLINK=TRUE),ACCMR,IF(AND(W>0,H>0,ACWIDTH>0,ACSASHW>0,ACLINK=TRUE),ACSASHW,"")) ->  | O20: =IF(AND(W>0,H>0,ACWIDTH>0,ACHEIGHT>0,ACCMR>0,ACLINK=TRUE),"<< CMR",IF(AND(W>0,H>0,ACWIDTH>0,ACSASHW>0,ACLINK=TRUE),"<< AC Sash Width","")) -> 
B21: =IF(AND(W>0,H>0),(IF(ISERROR(VLOOKUP(16,Data!$A:$D,3,FALSE)),"",VLOOKUP(16,Data!$A:$D,3,FALSE))),"") ->  | H21: =IF(AND(W>0,H>0),(IF(ISERROR(VLOOKUP(16,Data!$A:$D,4,FALSE)),"",VLOOKUP(16,Data!$A:$D,4,FALSE))),"") ->  | J21: AC Height: | N21: =IF(AND(W>0,H>0,ACHEIGHT>0,ACSASHH>0,ACLINK=TRUE),ACSASHH,"") ->  | O21: =IF(AND(ACCMR>0,ACLINK=TRUE),"",IF(AND(W>0,H>0,ACHEIGHT>0,ACSASHH>0,ACLINK=TRUE),"<< AC Sash Height","")) -> 
B22: =IF(AND(W>0,H>0),(IF(ISERROR(VLOOKUP(17,Data!$A:$D,3,FALSE)),"",VLOOKUP(17,Data!$A:$D,3,FALSE))),"") ->  | H22: =IF(AND(W>0,H>0),(IF(ISERROR(VLOOKUP(17,Data!$A:$D,4,FALSE)),"",VLOOKUP(17,Data!$A:$D,4,FALSE))),"") ->  | J22: =IF(ISERROR(TSH),"",IF(LIMIT1>"",LIMIT1&IF(LIMIT2>""," & "&LIMIT2,""),"")) -> 
B23: =IF(AND(W>0,H>0),(IF(ISERROR(VLOOKUP(18,Data!$A:$D,3,FALSE)),"",VLOOKUP(18,Data!$A:$D,3,FALSE))),"") ->  | H23: =IF(AND(W>0,H>0),(IF(ISERROR(VLOOKUP(18,Data!$A:$D,4,FALSE)),"",VLOOKUP(18,Data!$A:$D,4,FALSE))),"") -> 
B24: =IF(AND(W>0,H>0),(IF(ISERROR(VLOOKUP(19,Data!$A:$D,3,FALSE)),"",VLOOKUP(19,Data!$A:$D,3,FALSE))),"") ->  | H24: =IF(AND(W>0,H>0),(IF(ISERROR(VLOOKUP(19,Data!$A:$D,4,FALSE)),"",VLOOKUP(19,Data!$A:$D,4,FALSE))),"") -> 
C26: =IF(AND(W>0,H>0,ACWIDTH>ACSASHW,ACLINK=TRUE),"AC Width is Larger Than The Sash Width","") -> 

Sheet Balance (hidden)
O1: BLOCK & TACKLE BALANCE CHART
M2: TOP SASH | R2: BOTTOM SASH | Y2: CFB
B3: A571/A740 | C3: Length | D3: Weight/ft | E3: Weight | G3: 3A01 | H3: Length | I3: Weight/ft | J3: Weight | M3: Sash Weight | N3: Tube Length | O3: Balance | P3: Weight | R3: Sash Weight | S3: Tube Length | T3: Balance | U3: Weight | X3: =VLOOKUP(BTM_WGT,CFB_W,3,FALSE) ->  | Y3: 4 | Z3: 3 | AA3: BN | AD3: Caldwell Balance Chart
B4: Bottom Top Rail | C4: =(BSW_A571)/12 -> -0.1770833333 | D4: 0.243 | E4: =C4*D4 -> -0.04303125 | G4: Top Top Rail | H4: =(TSW_3A01)/12 -> -0.34375 | I4: 0.297 | J4: =H4*I4 -> -0.10209375 | M4: =TRUNC(TOP_WGT+GRID) -> 0 | N4: =TOPTUBELENGTH -> 0 | O4: Number | P4: Range | R4: =TRUNC(BTM_WGT+GRID) -> 0 | S4: =BOTTUBELENGTH ->  | T4: Number | U4: Range | Y4: =Y3+1 -> 5 | Z4: 3 | AA4: BN | AD4: =IF(OR(ModelNo="1700",ModelNo="1720",ModelNo="1730"),1,IF(OR(ModelNo="1900",ModelNo="1920",ModelNo="1930"),2,3)) -> 3 | AE4: =IF(OR(ModelNo="1700",ModelNo="1720",ModelNo="1730"),4,IF(OR(ModelNo="1900",ModelNo="1920",ModelNo="1930"),5,6)) -> 6 | AF4: Bott. | AG4: Top | AI4: 1 | AJ4: 4 | AK4: 2 | AL4: 5 | AM4: 3 | AN4: 6
B5: Bottom Bottom Rail | C5: =(BSW_A571)/12 -> -0.1770833333 | D5: 0.216 | E5: -0.03825 | G5: Top Bottom Rail | H5: =(TSW_3A01)/12 -> -0.34375 | I5: 0.289 | J5: -0.09934375 | M5: Balance Size | N5: =IF(AND(O5>0,P5>0),O5,0) -> 0 | O5: =IF($N$4<=7,7,0) -> 7 | P5: =IF(AND(O5=7,$M$4>=2,$M$4<=2.99),O5&"-"&"1",0) -> 0 | R5: Balance Size | S5: =IF(AND(T5>0,U5>0),T5,0) ->  | T5: =IF($S$4<=7,7,0) ->  | U5: =IF(AND(T5=7,$R$4>=2,$R$4<=2.99),T5&"-"&"1",0) ->  | Y5: 6 | Z5: 3 | AA5: BN | AD5: =HLOOKUP($AD$4,CALDWELL_LOOKUP,2,FALSE) -> 9 | AE5: =HLOOKUP($AE$4,CALDWELL_LOOKUP,2,FALSE) -> 9.9995 | AF5: 8 | AG5: 7 | AI5: 9.7665 | AJ5: 10.766 | AK5: 9.2185 | AL5: 10.218 | AM5: 9 | AN5: 9.9995
B6: Bottom Stile | C6: =((BSH_A581)*2)/12 -> -0.25 | D6: 0.185 | E6: -0.04625 | G6: Top Stile | H6: =(2*TSH_3A01)/12 -> -0.2708333333 | I6: 0.218 | J6: -0.05904166667 | M6: =VLOOKUP((MAX(N5:P235)),N5:P235,3,FALSE) ->  | N6: 0 | O6: 7 | P6: =IF(AND(O6=7,$M$4>=3,$M$4<=3.99),O6&"-"&"2",0) -> 0 | R6: =VLOOKUP((MAX(S5:S235)),S5:U235,3,FALSE) ->  | U6: =IF(AND(T6=7,$R$4>=3,$R$4<=3.99),T6&"-"&"2",0) ->  | Y6: 7 | Z6: 4 | AA6: RD | AD6: =HLOOKUP($AD$4,CALDWELL_LOOKUP,3,FALSE) -> 10 | AE6: =HLOOKUP($AE$4,CALDWELL_LOOKUP,3,FALSE) -> 10.9995 | AF6: 9 | AG6: 8 | AI6: 10.7665 | AJ6: 11.766 | AK6: 10.2185 | AL6: 11.218 | AM6: 10 | AN6: 10.9995
B7: Bottom Rail Reinf. | C7: =((C4*12)-3)/12 -> -0.4270833333 | D7: 0.172 | E7: -0.07345833333 | G7: Keeper Rail Reinf. | H7: =(TRUNC(((Frame_Width-4.125)-6)/2)*2)/12 -> -0.8333333333 | I7: =IF(OR(EXTSELECT=2,Frame_Width<48,Frame_Height<84),0.0516,IF(OR(EXTSELECT=3,Frame_Width>48,Frame_Height>84),0.3784,0)) -> 0.0516 | J7: -0.043 | N7: 0 | O7: 7 | P7: =IF(AND(O7=7,$M$4>=4,$M$4<=4.99),O7&"-"&"3",0) -> 0 | U7: =IF(AND(T7=7,$R$4>=4,$R$4<=4.99),T7&"-"&"3",0) ->  | Y7: 8 | Z7: 4 | AA7: RD | AD7: =HLOOKUP($AD$4,CALDWELL_LOOKUP,4,FALSE) -> 11 | AE7: =HLOOKUP($AE$4,CALDWELL_LOOKUP,4,FALSE) -> 12.9995 | AF7: 10 | AG7: 9 | AI7: 11.7665 | AJ7: 13.766 | AK7: 11.2185 | AL7: 13.218 | AM7: 11 | AN7: 12.9995
B8: Bottom Stile Reinf. | C8: 0 | E8: 0 | G8: Top Stile Reinf | H8: =IF(OR(Frame_Width>48,Frame_Height>84,EXTTYPE="Steel"),((TRUNC(((DDIM_3A01-1.625)-8)/2)*2)/12)*2,0) -> 0 | I8: 0.456 | J8: 0 | M8: Top Tube length | N8: 0 | O8: 7 | P8: =IF(AND(O8=7,$M$4>=5,$M$4<=5.99),O8&"-"&"4",0) -> 0 | R8: Bott. Tube Length | U8: =IF(AND(T8=7,$R$4>=5,$R$4<=5.99),T8&"-"&"4",0) ->  | Y8: 9 | Z8: 5 | AA8: BU | AD8: =HLOOKUP($AD$4,CALDWELL_LOOKUP,5,FALSE) -> 13 | AE8: =HLOOKUP($AE$4,CALDWELL_LOOKUP,5,FALSE) -> 14.9995 | AF8: 12 | AG8: 10 | AI8: 13.7665 | AJ8: 15.766 | AK8: 13.2185 | AL8: 15.218 | AM8: 13 | AN8: 14.9995
B9: Bottom Glass | C9: =(BGW_A571*BGH_A571)/144 -> 0.09171549479 | D9: =GLASS_WGT ->  | E9: =IF(AND(Frame_Width=35.5,Frame_Height=59.5),($C$9*$D$9)-2.25,$C$9*$D$9) ->  | G9: Top Glass | H9: =(TGW_3A01*TGH_3A01)/144 -> 0.1311848958 | I9: =GLASS_WGT ->  | J9: =H9*I9 ->  | M9: =TOPTUBELENGTH -> 0 | N9: 0 | O9: 7 | P9: =IF(AND(O9=7,$M$4>=6,$M$4<=7.99),O9&"-"&"5",0) -> 0 | R9: =BOTTUBELENGTH ->  | U9: =IF(AND(T9=7,$R$4>=6,$R$4<=7.99),T9&"-"&"5",0) ->  | Y9: 10 | Z9: 5 | AA9: BU | AD9: =HLOOKUP($AD$4,CALDWELL_LOOKUP,6,FALSE) -> 15 | AE9: =HLOOKUP($AE$4,CALDWELL_LOOKUP,6,FALSE) -> 16.9995 | AF9: 14 | AG9: 12 | AI9: 15.7665 | AJ9: 17.766 | AK9: 15.2185 | AL9: 17.218 | AM9: 15 | AN9: 16.9995
B10: Bottom Spacer | C10: =((BGW_A571*2)+(BGH_A571*2))/12 -> -1.229166667 | D10: 0.0536 | E10: -0.06588333333 | G10: Top Spacer | H10: =((TGW_3A01*2)+(TGH_3A01*2))/12 -> -1.510416667 | I10: 0.0536 | J10: -0.08095833333 | N10: 0 | O10: 7 | P10: =IF(AND(O10=7,$M$4>=8,$M$4<=9.99),O10&"-"&"9",0) -> 0 | U10: =IF(AND(T10=7,$R$4>=8,$R$4<=9.99),T10&"-"&"9",0) ->  | Y10: 11 | Z10: 6 | AA10: YW | AD10: =HLOOKUP($AD$4,CALDWELL_LOOKUP,7,FALSE) -> 17 | AE10: =HLOOKUP($AE$4,CALDWELL_LOOKUP,7,FALSE) -> 18.9995 | AF10: 16 | AG10: 14 | AI10: 17.7665 | AJ10: 19.766 | AK10: 17.2185 | AL10: 19.218 | AM10: 17 | AN10: 18.9995
B11: Bottom Hardware | C11: 1 | D11: 0.36 | E11: 0.36 | G11: Top Hardware | H11: 1 | I11: 0.4 | J11: 0.4 | N11: 0 | O11: 7 | P11: =IF(AND(O11=7,$M$4>=10,$M$4<=13.99),O11&"-"&"11",0) -> 0 | U11: =IF(AND(T11=7,$R$4>=10,$R$4<=13.99),T11&"-"&"11",0) ->  | Y11: 12 | Z11: 6 | AA11: YW | AD11: =HLOOKUP($AD$4,CALDWELL_LOOKUP,8,FALSE) -> 19 | AE11: =HLOOKUP($AE$4,CALDWELL_LOOKUP,8,FALSE) -> 20.9995 | AF11: 18 | AG11: 16 | AI11: 19.7665 | AJ11: 21.766 | AK11: 19.2185 | AL11: 21.218 | AM11: 19 | AN11: 20.9995
B12: Bottom Bead | C12: =(((Frame_Width-4)*2)+((CDIM_A571-2.75)*2))/12 -> -1.125 | D12: 0.019 | E12: -0.021375 | G12: Top Bead | H12: =(((Frame_Width-5.125)*2)+((DDIM_3A01-4.3125)*2))/12 -> -1.572916667 | I12: 0.072 | J12: -0.11325 | N12: 0 | O12: 7 | P12: =IF(AND(O12=7,$M$4>=14,$M$4<=18),O12&"-"&"12",0) -> 0 | U12: =IF(AND(T12=7,$R$4>=14,$R$4<=18),T12&"-"&"12",0) ->  | Y12: 13 | Z12: 7 | AA12: GN | AD12: =HLOOKUP($AD$4,CALDWELL_LOOKUP,9,FALSE) -> 21 | AE12: =HLOOKUP($AE$4,CALDWELL_LOOKUP,9,FALSE) -> 22.9995 | AF12: 20 | AG12: 18 | AI12: 21.7665 | AJ12: 23.766 | AK12: 21.2185 | AL12: 23.218 | AM12: 21 | AN12: 22.9995
D13: Bottom Sash | E13: =TRUNC(SUM(E4:E12)+GRID) ->  | G13: Bottom Top Rail | H13: =BSW_3A01/12 -> -0.2604166667 | I13: 0.297 | J13: -0.07734375 | N13: 0 | O13: =IF(AND($N$4<=9,$N$4>7),9,0) -> 0 | P13: =IF(AND(O13=9,$M$4>=3,$M$4<=4.99),O13&"-"&"1",0) -> 0 | T13: =IF(AND($S$4<=9,$S$4>7),9,0) ->  | U13: =IF(AND(T13=9,$R$4>=3,$R$4<=4.99),T13&"-"&"1",0) ->  | Y13: 14 | Z13: 7 | AA13: GN | AD13: =HLOOKUP($AD$4,CALDWELL_LOOKUP,10,FALSE) -> 23 | AE13: =HLOOKUP($AE$4,CALDWELL_LOOKUP,10,FALSE) -> 24.9995 | AF13: 22 | AG13: 20 | AI13: 23.7665 | AJ13: 25.766 | AK13: 23.2185 | AL13: 25.218 | AM13: 23 | AN13: 24.9995
G14: Bottom Bottom Rail | H14: =BSW_3A01/12 -> -0.2604166667 | I14: 0.232 | J14: -0.06041666667 | N14: 0 | O14: 0 | P14: =IF(AND(O14=9,$M$4>=5,$M$4<=6.99),O14&"-"&"2",0) -> 0 | U14: =IF(AND(T14=9,$R$4>=5,$R$4<=6.99),T14&"-"&"2",0) ->  | Y14: 15 | Z14: 8 | AA14: LG | AD14: =HLOOKUP($AD$4,CALDWELL_LOOKUP,11,FALSE) -> 25 | AE14: =HLOOKUP($AE$4,CALDWELL_LOOKUP,11,FALSE) -> 26.9995 | AF14: 24 | AG14: 22 | AI14: 25.7665 | AJ14: 27.766 | AK14: 25.2185 | AL14: 27.218 | AM14: 25 | AN14: 26.9995
B15: A581/A840 | C15: Length | D15: Weight/ft | E15: Weight | G15: Bottom Stile | H15: =IF(OR(Frame_Width>48,Frame_Height>84,EXTTYPE="Steel"),((TRUNC((CDIM3A01-2)/2)*2)/12)*2,0) -> 0 | I15: 0.219 | J15: 0 | N15: 0 | O15: 0 | P15: =IF(AND(O15=9,$M$4>=7,$M$4<=8.99),O15&"-"&"3",0) -> 0 | U15: =IF(AND(T15=9,$R$4>=7,$R$4<=8.99),T15&"-"&"3",0) ->  | Y15: 16 | Z15: 8 | AA15: LG | AD15: =HLOOKUP($AD$4,CALDWELL_LOOKUP,12,FALSE) -> 27 | AE15: =HLOOKUP($AE$4,CALDWELL_LOOKUP,12,FALSE) -> 28.9995 | AF15: 26 | AG15: 24 | AI15: 27.7665 | AJ15: 29.766 | AK15: 27.2185 | AL15: 29.218 | AM15: 27 | AN15: 28.9995
B16: Bottom Top Rail | C16: =BSW_A581/12 -> -0.234375 | D16: 0.355 | E16: =C16*D16 -> -0.083203125 | G16: Bottom Rail Reinf. | H16: =(TRUNC((BSW_3A01-6)/2)*2)/12 -> -0.6666666667 | I16: =IF(OR(EXTSELECT=2,Frame_Width<48,Frame_Height<84),0.0516,IF(OR(EXTSELECT=3,Frame_Width>48,Frame_Height>84),0.57,0)) -> 0.0516 | J16: -0.0344 | N16: 0 | O16: 0 | P16: =IF(AND(O16=9,$M$4>=9,$M$4<=10.99),O16&"-"&"4",0) -> 0 | U16: =IF(AND(T16=9,$R$4>=9,$R$4<=10.99),T16&"-"&"4",0) ->  | Y16: 17 | Z16: 9 | AA16: NAT | AD16: =HLOOKUP($AD$4,CALDWELL_LOOKUP,13,FALSE) -> 29 | AE16: =HLOOKUP($AE$4,CALDWELL_LOOKUP,13,FALSE) -> 30.9995 | AF16: 28 | AG16: 26 | AI16: 29.7665 | AJ16: 31.766 | AK16: 29.2185 | AL16: 31.218 | AM16: 29 | AN16: 30.9995
B17: Bottom Bottom Rail | C17: =BSW_A581/12 -> -0.234375 | D17: 0.355 | E17: -0.083203125 | G17: Bottom Stile Reinf. | H17: =IF(OR(Frame_Width>48,Frame_Height>84,EXTTYPE="Steel"),((TRUNC((CDIM_3A01-2)/2)*2)/12)*2,0) -> 0 | I17: 0.456 | J17: 0 | N17: 0 | O17: 0 | P17: =IF(AND(O17=9,$M$4>=11,$M$4<=11.99),O17&"-"&"5",0) -> 0 | U17: =IF(AND(T17=9,$R$4>=11,$R$4<=11.99),T17&"-"&"5",0) ->  | Y17: 18 | Z17: 9 | AA17: NAT | AD17: =HLOOKUP($AD$4,CALDWELL_LOOKUP,14,FALSE) -> 31 | AE17: =HLOOKUP($AE$4,CALDWELL_LOOKUP,14,FALSE) -> 32.9995 | AF17: 30 | AG17: 28 | AI17: 31.7665 | AJ17: 33.766 | AK17: 31.2185 | AL17: 33.218 | AM17: 31 | AN17: 32.9995
B18: Bottom Stile | C18: =(BSH_A581*2)/12 -> -0.25 | D18: 0.361 | E18: -0.09025 | G18: Bottom Glass | H18: =(BGW_3A01*BGH_3A01)/144 -> 0.0751953125 | I18: =GLASS_WGT ->  | N18: 0 | O18: 0 | P18: =IF(AND(O18=9,$M$4>=12,$M$4<=12.99),O18&"-"&"6",0) -> 0 | U18: =IF(AND(T18=9,$R$4>=12,$R$4<=12.99),T18&"-"&"6",0) ->  | Y18: 19 | Z18: 10 | AA18: PK | AD18: =HLOOKUP($AD$4,CALDWELL_LOOKUP,15,FALSE) -> 33 | AE18: =HLOOKUP($AE$4,CALDWELL_LOOKUP,15,FALSE) -> 34.9995 | AF18: 32 | AG18: 30 | AI18: 33.7665 | AJ18: 35.766 | AK18: 33.2185 | AL18: 35.218 | AM18: 33 | AN18: 34.9995
B19: Bottom Rail Reinf. | C19: =((C16*12)-2.6875)/12 -> -0.4583333333 | D19: 0.138 | E19: -0.06325 | G19: Bottom Spacer | H19: =((BGW_3A01*2)+(BGH_3A01*2))/12 -> -1.177083333 | I19: 0.0536 | J19: -0.06309166667 | N19: 0 | O19: 0 | P19: =IF(AND(O19=9,$M$4>=13,$M$4<=14.99),O19&"-"&"9",0) -> 0 | U19: =IF(AND(T19=9,$R$4>=13,$R$4<=14.99),T19&"-"&"9",0) ->  | Y19: 20 | Z19: 10 | AA19: PK | AD19: =HLOOKUP($AD$4,CALDWELL_LOOKUP,16,FALSE) -> 35 | AE19: =HLOOKUP($AE$4,CALDWELL_LOOKUP,16,FALSE) -> 36.9995 | AF19: 34 | AG19: 32 | AI19: 35.7665 | AJ19: 37.766 | AK19: 35.2185 | AL19: 37.218 | AM19: 35 | AN19: 36.9995
B20: Bottom Stile Reinf. | C20: 0 | D20: 0 | E20: 0 | G20: Bottom Hardware | H20: 1 | I20: 0.36 | J20: 0.36 | N20: 0 | O20: 0 | P20: =IF(AND(O20=9,$M$4>=15,$M$4<=17.99),O20&"-"&"11",0) -> 0 | U20: =IF(AND(T20=9,$R$4>=15,$R$4<=17.99),T20&"-"&"11",0) ->  | Y20: 21 | Z20: 11 | AA20: BU | AD20: =HLOOKUP($AD$4,CALDWELL_LOOKUP,17,FALSE) -> 37 | AE20: =HLOOKUP($AE$4,CALDWELL_LOOKUP,17,FALSE) -> 38.9995 | AF20: 36 | AG20: 34 | AI20: 37.7665 | AJ20: 39.766 | AK20: 37.2185 | AL20: 39.218 | AM20: 37 | AN20: 38.9995
B21: Bottom Glass | C21: =(BGW_A581*BGH_A581)/144 -> 0.1516384549 | D21: =GLASS_WGT ->  | G21: Bottom Bead | H21: =(((Frame_Width-4.125)*2)+((CDIM_3A01-3.3125)*2))/12 -> -1.239583333 | I21: 0.072 | J21: -0.08925 | N21: 0 | O21: 0 | P21: =IF(AND(O21=9,$M$4>=18,$M$4<=22),O21&"-"&"12",0) -> 0 | U21: =IF(AND(T21=9,$R$4>=18,$R$4<=22),T21&"-"&"12",0) ->  | Y21: 22 | Z21: 11 | AA21: BU | AD21: =HLOOKUP($AD$4,CALDWELL_LOOKUP,18,FALSE) -> 39 | AE21: =HLOOKUP($AE$4,CALDWELL_LOOKUP,18,FALSE) -> 40.9995 | AF21: 38 | AG21: 36 | AI21: 39.7665 | AJ21: 41.766 | AK21: 39.2185 | AL21: 41.218 | AM21: 39 | AN21: 40.9995
B22: Bottom Spacer | C22: =((BGW_A581*2)+(BGH_A581*2))/12 -> -1.572916667 | D22: 0.0536 | E22: -0.08430833333 | I22: Top Sash | J22: =TRUNC(SUM(J4:J12)+1+GRID) ->  | N22: 0 | O22: =IF(AND($N$4<=11,$N$4>9),11,0) -> 0 | P22: =IF(AND(O22=11,$M$4>=3,$M$4<=4.99),O22&"-"&"1",0) -> 0 | T22: =IF(AND($S$4<=11,$S$4>9),11,0) ->  | U22: =IF(AND(T22=11,$R$4>=3,$R$4<=4.99),T22&"-"&"1",0) ->  | Y22: 23 | Z22: 6/6 | AA22: YW | AD22: =HLOOKUP($AD$4,CALDWELL_LOOKUP,19,FALSE) -> 41 | AE22: =HLOOKUP($AE$4,CALDWELL_LOOKUP,19,FALSE) -> 42.9995 | AF22: 40 | AG22: 38 | AI22: 41.7665 | AJ22: 43.766 | AK22: 41.2185 | AL22: 43.218 | AM22: 41 | AN22: 42.9995
B23: Bottom Hardware | C23: 1 | D23: 0.36 | E23: 0.36 | I23: Bottom Sash | J23: =TRUNC(SUM(J13:J21)+GRID) ->  | N23: 0 | O23: 0 | P23: =IF(AND(O23=11,$M$4>=5,$M$4<=6.99),O23&"-"&"2",0) -> 0 | U23: =IF(AND(T23=11,$R$4>=5,$R$4<=6.99),T23&"-"&"2",0) ->  | Y23: 24 | Z23: 6/6 | AA23: YW | AD23: =HLOOKUP($AD$4,CALDWELL_LOOKUP,20,FALSE) -> 43 | AE23: =HLOOKUP($AE$4,CALDWELL_LOOKUP,20,FALSE) -> 44.9995 | AF23: 42 | AG23: 40 | AI23: 43.7665 | AJ23: 45.766 | AK23: 43.2185 | AL23: 45.218 | AM23: 43 | AN23: 44.9995
B24: Bottom Bead | C24: =(((Frame_Width-5.0625)*2)+((CDIM_A581-3.75)*2))/12 -> -1.46875 | D24: 0.019 | E24: -0.02790625 | N24: 0 | O24: 0 | P24: =IF(AND(O24=11,$M$4>=7,$M$4<=8.99),O24&"-"&"3",0) -> 0 | U24: =IF(AND(T24=11,$R$4>=7,$R$4<=8.99),T24&"-"&"3",0) ->  | Y24: 25 | Z24: 6/7 | AA24: GN | AD24: =HLOOKUP($AD$4,CALDWELL_LOOKUP,21,FALSE) -> 45 | AE24: =HLOOKUP($AE$4,CALDWELL_LOOKUP,21,FALSE) -> 46.9995 | AF24: 44 | AG24: 42 | AI24: 45.7665 | AJ24: 47.766 | AK24: 45.2185 | AL24: 47.218 | AM24: 45 | AN24: 46.9995
D25: Bottom Sash | E25: =TRUNC(SUM(E16:E24)+GRID) ->  | G25: 03S0 | N25: 0 | O25: 0 | P25: =IF(AND(O25=11,$M$4>=9,$M$4<=10.99),O25&"-"&"4",0) -> 0 | U25: =IF(AND(T25=11,$R$4>=9,$R$4<=10.99),T25&"-"&"4",0) ->  | Y25: 26 | Z25: 6/7 | AA25: GN | AD25: =HLOOKUP($AD$4,CALDWELL_LOOKUP,22,FALSE) -> 47 | AE25: =HLOOKUP($AE$4,CALDWELL_LOOKUP,22,FALSE) -> 48.9995 | AF25: 46 | AG25: 44 | AI25: 47.7665 | AJ25: 49.766 | AK25: 47.2185 | AL25: 49.218 | AM25: 47 | AN25: 48.9995
G26: Bottom Top Rail | H26: =BSW_03S0/12 -> -0.2604166667 | I26: 0.297 | J26: =H26*I26 -> -0.07734375 | N26: 0 | O26: 0 | P26: =IF(AND(O26=11,$M$4>=11,$M$4<=12.99),O26&"-"&"5",0) -> 0 | U26: =IF(AND(T26=11,$R$4>=11,$R$4<=12.99),T26&"-"&"5",0) ->  | Y26: 27 | Z26: 7/7 | AA26: LG
G27: Bottom Bottom Rail | H27: =BSW_03S0/12 -> -0.2604166667 | I27: 0.232 | J27: =H27*I27 -> -0.06041666667 | N27: 0 | O27: 0 | P27: =IF(AND(O27=11,$M$4>=13,$M$4<=15.99),O27&"-"&"6",0) -> 0 | U27: =IF(AND(T27=11,$R$4>=13,$R$4<=15.99),T27&"-"&"6",0) ->  | Y27: 28 | Z27: 7/7 | AA27: LG
B28: 7SH2 | C28: Length | D28: Weight/ft | E28: Weight | G28: Bottom Stile | H28: =(BSH_03S0*2)/12 -> -0.1875 | I28: 0.219 | J28: -0.0410625 | N28: 0 | O28: 0 | P28: =IF(AND(O28=11,$M$4>=16,$M$4<=19.99),O28&"-"&"9",0) -> 0 | U28: =IF(AND(T28=11,$R$4>=16,$R$4<=19.99),T28&"-"&"9",0) ->  | Y28: 29 | Z28: 7/8 | AA28: OR | AD28: Tube Length
B29: Bottom Top Rail | C29: =BSW_7SH2/12 -> -0.1484375 | D29: 0.243 | E29: =C29*D29 -> -0.0360703125 | G29: Bottom Rail Reinf. | H29: =(2*(CDIM_03S0-1.125))/12 -> -0.1875 | I29: 0.0516 | J29: -0.009675 | N29: 0 | O29: 0 | P29: =IF(AND(O29=11,$M$4>=20,$M$4<=23.99),O29&"-"&"11",0) -> 0 | U29: =IF(AND(T29=11,$R$4>=20,$R$4<=23.99),T29&"-"&"11",0) ->  | Y29: 30 | Z29: 7/8 | AA29: OR | AD29: A571 | AE29: =VLOOKUP(BTM_WGT,CALDWELL_A571,4) -> 
B30: Bottom Bottom Rail | C30: =BSW_7SH2/12 -> -0.1484375 | D30: 0.216 | E30: -0.0320625 | G30: Bottom Stile Reinf. | H30: =IF(OR(Frame_Width>48,Frame_Height>84,EXTTYPE="Steel"),((TRUNC(((CDIM03S0-1.125)-4)/2)*2)/12)*2,0) -> 0 | I30: 0.456 | J30: 0 | N30: 0 | O30: 0 | P30: =IF(AND(O30=11,$M$4>=24,$M$4<=27),O30&"-"&"12",0) -> 0 | U30: =IF(AND(T30=11,$R$4>=24,$R$4<=27),T30&"-"&"12",0) ->  | Y30: 31 | Z30: 8/8 | AA30: WT | AD30: A581 | AE30: =VLOOKUP(BTM_WGT,CALDWELL_A581,4) -> 
B31: Bottom Stile | C31: =(BSH_7SH2*2)/12 -> -0.1458333333 | D31: 0.186 | E31: -0.027125 | G31: Bottom Glass | H31: =(BGW_03S0*BGH_03S0)/144 -> 0.09190538194 | I31: =GLASS_WGT ->  | N31: 0 | O31: =IF(AND($N$4<=13,$N$4>11),13,0) -> 0 | P31: =IF(AND(O31=13,$M$4>=3,$M$4<=4.99),O31&"-"&"1",0) -> 0 | T31: =IF(AND($S$4<=13,$S$4>11),13,0) ->  | U31: =IF(AND(T31=13,$R$4>=3,$R$4<=4.99),T31&"-"&"1",0) ->  | Y31: 32 | Z31: 8/8 | AA31: WT | AD31: 7SH2 | AE31: =VLOOKUP(BTM_WGT,CALDWELL_A571,4) -> 
B32: Bottom Rail Reinf. | C32: =(BSW_7SH2-3)/12 -> -0.3984375 | D32: 0.172 | E32: -0.06853125 | G32: Bottom Spacer | H32: =((BGW_03S0*2)+(BGH_03S0*2))/12 -> -1.260416667 | I32: 0.0536 | J32: -0.06755833333 | N32: 0 | O32: 0 | P32: =IF(AND(O32=13,$M$4>=5,$M$4<=7.99),O32&"-"&"2",0) -> 0 | U32: =IF(AND(T32=13,$R$4>=5,$R$4<=7.99),T32&"-"&"2",0) ->  | Y32: 33 | Z32: 8/9 | AA32: NAT | AD32: 7SH3 | AE32: =VLOOKUP(BTM_WGT,CALDWELL_A571,4) ->  | AI32: Sash Height | AK32: Balance | AL32: Window Height 50/50 Split | AN32: Oriel LBML
B33: Bottom Stile Reinf. | E33: 0 | G33: Bottom Hardware | H33: 1 | I33: 0.36 | J33: 0.36 | N33: 0 | O33: 0 | P33: =IF(AND(O33=13,$M$4>=8,$M$4<=9.99),O33&"-"&"3",0) -> 0 | U33: =IF(AND(T33=13,$R$4>=8,$R$4<=9.99),T33&"-"&"3",0) ->  | Y33: 34 | Z33: 8/9 | AA33: NAT | AD33: 8SH2 | AE33: =VLOOKUP(BTM_WGT,CALDWELL_A581,4) ->  | AI33: Min Height | AJ33: Max Height | AK33: Size | AL33: Min Height | AM33: Max Height | AN33: from Bot of Sill
B34: Bottom Glass | C34: =(BGW_7SH2*BGH_7SH2)/144 -> 0.08440483941 | D34: =GLASS_WGT ->  | G34: Bottom Bead | H34: =(((Frame_Width-4.125)*2)+((CDIM_03S0-3.3125)*2))/12 -> -1.239583333 | I34: 0.072 | J34: -0.08925 | N34: 0 | O34: 0 | P34: =IF(AND(O34=13,$M$4>=10,$M$4<=12.99),O34&"-"&"4",0) -> 0 | U34: =IF(AND(T34=13,$R$4>=10,$R$4<=12.99),T34&"-"&"4",0) ->  | Y34: 35 | Z34: 9/9 | AA34: PU | AD34: 8SH3 | AE34: =VLOOKUP(BTM_WGT,CALDWELL_A581,4) -> 
B35: Bottom Spacer | C35: =((BGW_7SH2*2)+(BGH_7SH2*2))/12 -> -1.171875 | D35: 0.0536 | E35: -0.0628125 | I35: Bott. Sash | J35: =TRUNC(SUM(J26:J34)+GRID) ->  | N35: 0 | O35: 0 | P35: =IF(AND(O35=13,$M$4>=13,$M$4<=15.99),O35&"-"&"5",0) -> 0 | U35: =IF(AND(T35=13,$R$4>=13,$R$4<=15.99),T35&"-"&"5",0) ->  | Y35: 36 | Z35: 9/9 | AA35: PU | AD35: A740 | AE35: =VLOOKUP(BTM_WGT,CALDWELL_A571,4) ->  | AI35: 9.7665 | AJ35: 10.766 | AK35: 8 | AL35: 21.125 | AM35: 23.124 | AN35: 20.283
B36: Bottom Hardware | C36: 1 | D36: 0.36 | E36: 0.36 | N36: 0 | O36: 0 | P36: =IF(AND(O36=13,$M$4>=16,$M$4<=18.99),O36&"-"&"6",0) -> 0 | U36: =IF(AND(T36=13,$R$4>=16,$R$4<=18.99),T36&"-"&"6",0) ->  | Y36: 37 | Z36: 9/10 | AA36: BU | AD36: A744 | AE36: =VLOOKUP(BTM_WGT,CALDWELL_A571,4) ->  | AI36: 10.7665 | AJ36: 11.766 | AK36: 9 | AL36: 23.125 | AM36: 25.124 | AN36: 22.283
B37: Bottom Bead | C37: =(((BSW_7SH2-1.875)*2)+((BSH_7SH2-1.875)*2))/12 -> -1.067708333 | D37: 0.019 | E37: -0.02028645833 | G37: 8SH2 | H37: Length | I37: Weight/ft | J37: Weight | N37: 0 | O37: 0 | P37: =IF(AND(O37=13,$M$4>=19,$M$4<=21.99),O37&"-"&"9",0) -> 0 | U37: =IF(AND(T37=13,$R$4>=19,$R$4<=21.99),T37&"-"&"9",0) ->  | Y37: 38 | Z37: 9/10 | AA37: BU | AD37: A746 | AE37: =VLOOKUP(BTM_WGT,CALDWELL_A571,4) ->  | AI37: 11.7665 | AJ37: 13.766 | AK37: 10 | AL37: 25.125 | AM37: 29.124 | AN37: 26.283
D38: Bottom Sash | E38: =TRUNC(SUM(E29:E37)+GRID) ->  | G38: Bottom Top Rail | H38: =BSW_8SH2/12 -> -0.1901041667 | I38: 0.243 | J38: =H38*I38 -> -0.0461953125 | N38: 0 | O38: 0 | P38: =IF(AND(O38=13,$M$4>=22,$M$4<=23.99),O38&"-"&"11",0) -> 0 | U38: =IF(AND(T38=13,$R$4>=22,$R$4<=23.99),T38&"-"&"11",0) ->  | Y38: 39 | Z38: 10/10 | AA38: YW | AD38: A840 | AE38: =VLOOKUP(BTM_WGT,CALDWELL_A581,4) ->  | AI38: 13.7665 | AJ38: 15.766 | AK38: 12 | AL38: 29.125 | AM38: 33.124 | AN38: 30.283
G39: Bottom Bottom Rail | H39: =BSW_8SH2/12 -> -0.1901041667 | I39: 0.216 | J39: -0.0410625 | N39: =IF(AND(O39>0,P39>0),O39,0) -> 0 | O39: 0 | P39: =IF(AND(O39=13,$M$4>=24,$M$4<=26.99),O39&"-"&"12",0) -> 0 | U39: =IF(AND(T39=13,$R$4>=24,$R$4<=26.99),T39&"-"&"12",0) ->  | Y39: 40 | Z39: 10/10 | AA39: YW | AD39: A844 | AE39: =VLOOKUP(BTM_WGT,CALDWELL_A581,4) ->  | AI39: 15.7665 | AJ39: 17.766 | AK39: 14 | AL39: 33.125 | AM39: 37.124 | AN39: 34.283
G40: Bottom Stile | H40: =(BSH_8SH2*2)/12 -> -0.25 | I40: 0.186 | J40: -0.0465 | N40: =IF(AND(O40>0,P40>0),O40,0) -> 0 | O40: 0 | P40: =IF(AND(O40=13,$M$4>=27,$M$4<=29.99),O40&"-"&"13",0) -> 0 | U40: =IF(AND(T40=13,$R$4>=27,$R$4<=29.99),T40&"-"&"13",0) ->  | Y40: 41 | Z40: 10/11 | AA40: GN | AD40: A846 | AE40: =VLOOKUP(BTM_WGT,CALDWELL_A581,4) ->  | AI40: 17.7665 | AJ40: 19.766 | AK40: 16 | AL40: 37.125 | AM40: 41.124 | AN40: 38.283
G41: Bottom Rail Reinf. | H41: =(BSW_8SH2-2.6875)/12 -> -0.4140625 | I41: 0.172 | J41: -0.07121875 | N41: =IF(AND(O41>0,P41>0),O41,0) -> 0 | O41: 0 | P41: =IF(AND(O41=13,$M$4>=30,$M$4<=32.99),O41&"-"&"14",0) -> 0 | U41: =IF(AND(T41=13,$R$4>=30,$R$4<=32.99),T41&"-"&"14",0) ->  | Y41: 42 | Z41: 10/11 | AA41: GN | AD41: BOTTUBELENGTH | AE41: =VLOOKUP(ModelNo,AD29:AE40,2,FALSE) ->  | AI41: 19.7665 | AJ41: 21.766 | AK41: 18 | AL41: 41.125 | AM41: 45.124 | AN41: 42.283
B42: 7SH3 | C42: Length | D42: Weight/ft | E42: Weight | G42: Bottom Stile Reinf. | J42: 0 | N42: =IF(AND(O42>0,P42>0),O42,0) -> 0 | O42: 0 | P42: =IF(AND(O42=13,$M$4>=33,$M$4<=35),O42&"-"&"15",0) -> 0 | U42: =IF(AND(T42=13,$R$4>=33,$R$4<=35),T42&"-"&"15",0) ->  | Y42: 43 | Z42: 11/11 | AA42: LG | AI42: 21.7665 | AJ42: 23.766 | AK42: 20 | AL42: 45.125 | AM42: 49.124 | AN42: 46.283
B43: Bottom Top Rail | C43: =BSW_7SH3/12 -> -0.1432291667 | D43: 0.243 | E43: =C43*D43 -> -0.0348046875 | G43: Bottom Glass | H43: =(BGW_8SH2*BGH_8SH2)/144 -> 0.1345486111 | I43: =GLASS_WGT ->  | N43: 0 | O43: =IF(AND($N$4<=15,$N$4>13),15,0) -> 0 | P43: =IF(AND(O43=15,$M$4>=4,$M$4<=5.99),O43&"-"&"1",0) -> 0 | T43: =IF(AND($S$4<=15,$S$4>13),15,0) ->  | U43: =IF(AND(T43=15,$R$4>=4,$R$4<=5.99),T43&"-"&"1",0) ->  | Y43: 44 | Z43: 11/11 | AA43: LG | AI43: 23.7665 | AJ43: 25.766 | AK43: 22 | AL43: 49.125 | AM43: 53.124 | AN43: 50.283
B44: Bottom Bottom Rail | C44: =BSW_7SH3/12 -> -0.1432291667 | D44: 0.216 | E44: -0.0309375 | G44: Bottom Spacer | H44: =((BGW_8SH2*2)+(BGH_8SH2*2))/12 -> -1.473958333 | I44: 0.0536 | J44: -0.07900416667 | N44: 0 | O44: 0 | P44: =IF(AND(O44=15,$M$4>=6,$M$4<=8.99),O44&"-"&"2",0) -> 0 | U44: =IF(AND(T44=15,$R$4>=6,$R$4<=8.99),T44&"-"&"2",0) ->  | Y44: 45 | Z44: 7/8/8 | AA44: OR | AI44: 25.7665 | AJ44: 27.766 | AK44: 24 | AL44: 53.125 | AM44: 57.124 | AN44: 54.283
B45: Bottom Stile | C45: =(BSH_7SH3*2)/12 -> -0.1458333333 | D45: 0.186 | E45: -0.027125 | G45: Bottom Hardware | H45: 1 | I45: 0.36 | J45: 0.36 | N45: 0 | O45: 0 | P45: =IF(AND(O45=15,$M$4>=9,$M$4<=11.99),O45&"-"&"3",0) -> 0 | U45: =IF(AND(T45=15,$R$4>=9,$R$4<=11.99),T45&"-"&"3",0) ->  | Y45: 46 | Z45: 7/8/8 | AA45: OR | AC45: CALDWELL BALANCE CHART A581 | AI45: 27.7665 | AJ45: 29.766 | AK45: 26 | AL45: 57.125 | AM45: 61.124 | AN45: 58.283
B46: Bott Rail Reinf. | C46: =(BSW_7SH3-3)/12 -> -0.3932291667 | D46: 0.172 | E46: -0.06763541667 | G46: Bottom Bead | H46: =((BGW_8SH2*2)+(BGH_8SH2*2))/12 -> -1.473958333 | I46: 0.019 | J46: -0.02800520833 | N46: 0 | O46: 0 | P46: =IF(AND(O46=15,$M$4>=12,$M$4<=15.99),O46&"-"&"4",0) -> 0 | U46: =IF(AND(T46=15,$R$4>=12,$R$4<=15.99),T46&"-"&"4",0) ->  | Y46: 47 | Z46: 8/8/8 | AA46: WT | AC46: SASH HEIGHT | AF46: Balance | AI46: 29.7665 | AJ46: 31.766 | AK46: 28 | AL46: 61.125 | AM46: 65.124 | AN46: 62.283
B47: Bottom Stile Reinf. | E47: 0 | I47: Bottom Sash | J47: =TRUNC(SUM(J38:J46)+GRID) ->  | N47: 0 | O47: 0 | P47: =IF(AND(O47=15,$M$4>=16,$M$4<=18.99),O47&"-"&"5",0) -> 0 | U47: =IF(AND(T47=15,$R$4>=16,$R$4<=18.99),T47&"-"&"5",0) ->  | Y47: 48 | Z47: 8/8/8 | AA47: WT | AC47: RANGE | AF47: Length | AI47: 31.7665 | AJ47: 33.766 | AK47: 30 | AL47: 65.125 | AM47: 69.124 | AN47: 66.283
B48: Bottom Glass | C48: =(BGW_7SH3*BGH_7SH3)/144 -> 0.08307562934 | D48: =GLASS_WGT ->  | N48: 0 | O48: 0 | P48: =IF(AND(O48=15,$M$4>=19,$M$4<=22.99),O48&"-"&"6",0) -> 0 | U48: =IF(AND(T48=15,$R$4>=19,$R$4<=22.99),T48&"-"&"6",0) ->  | Y48: 49 | Z48: 8/8/9 | AA48: BN | AC48: 9.75 | AD48: to | AE48: 11.749 | AF48: 7 | AI48: 33.7665 | AJ48: 35.766 | AK48: 32 | AL48: 69.125 | AM48: 73.124 | AN48: 70.283
B49: Bottom Spacer | C49: =((BGW_7SH3*2)+(BGH_7SH3*2))/12 -> -1.161458333 | D49: 0.0536 | E49: -0.06225416667 | G49: 8SH3 | H49: Length | I49: Weight/ft | J49: Weight | N49: 0 | O49: 0 | P49: =IF(AND(O49=15,$M$4>=23,$M$4<=25.99),O49&"-"&"9",0) -> 0 | U49: =IF(AND(T49=15,$R$4>=23,$R$4<=25.99),T49&"-"&"9",0) ->  | Y49: 50 | Z49: 8/8/9 | AA49: BN | AC49: 11.75 | AD49: to | AE49: 13.749 | AF49: 9 | AI49: 35.7665 | AJ49: 37.766 | AK49: 34 | AL49: 73.125 | AM49: 77.124 | AN49: 74.283
B50: Bottom Hardware | C50: 1 | D50: 0.36 | E50: 0.36 | G50: Bottom Top Rail | H50: =BSW_8SH3/12 -> -0.1822916667 | I50: 0.243 | J50: =H50*I50 -> -0.044296875 | N50: 0 | O50: 0 | P50: =IF(AND(O50=15,$M$4>=26,$M$4<=26.99),O50&"-"&"11",0) -> 0 | U50: =IF(AND(T50=15,$R$4>=26,$R$4<=26.99),T50&"-"&"11",0) ->  | Y50: 51 | Z50: 8/9/9 | AA50: RD | AC50: 13.75 | AD50: to | AE50: 15.749 | AF50: 11 | AI50: 37.7665 | AJ50: 39.766 | AK50: 36 | AL50: 77.125 | AM50: 81.124 | AN50: 78.283
B51: Bottom Bead | C51: =(((BSW_7SH3-1.875)*2)+((BSH_7SH3-1.875)*2))/12 -> -1.057291667 | D51: 0.019 | E51: -0.02008854167 | G51: Bottom Bottom Rail | H51: =BSW_8SH3/12 -> -0.1822916667 | I51: 0.216 | J51: -0.039375 | N51: 0 | O51: 0 | P51: =IF(AND(O51=15,$M$4>=27,$M$4<=29.99),O51&"-"&"12",0) -> 0 | U51: =IF(AND(T51=15,$R$4>=27,$R$4<=29.99),T51&"-"&"12",0) ->  | Y51: 52 | Z51: 8/9/9 | AA51: RD | AC51: 15.75 | AD51: to | AE51: 17.749 | AF51: 13 | AI51: 39.7665 | AJ51: 41.766 | AK51: 38 | AL51: 81.125 | AM51: 85.124 | AN51: 82.283
D52: Bottom Sash | E52: =TRUNC(SUM(E43:E51)+GRID) ->  | G52: Bottom Stile | H52: =(BSH_8SH3*2)/12 -> -0.25 | I52: 0.186 | J52: -0.0465 | N52: 0 | O52: 0 | P52: =IF(AND(O52=15,$M$4>=30,$M$4<=32.99),O52&"-"&"13",0) -> 0 | U52: =IF(AND(T52=15,$R$4>=30,$R$4<=32.99),T52&"-"&"13",0) ->  | Y52: 53 | Z52: 9/9/9 | AA52: NAT | AC52: 17.75 | AD52: to | AE52: 19.749 | AF52: 15 | AI52: 41.7665 | AJ52: 43.766 | AK52: 40 | AL52: 85.125 | AM52: 89.124 | AN52: 86.283
G53: Bott Rail Reinf. | H53: =(BSW_8SH3-3)/12 -> -0.4322916667 | I53: 0.172 | J53: -0.07435416667 | N53: 0 | O53: 0 | P53: =IF(AND(O53=15,$M$4>=33,$M$4<=34.99),O53&"-"&"14",0) -> 0 | U53: =IF(AND(T53=15,$R$4>=33,$R$4<=34.99),T53&"-"&"14",0) ->  | Y53: 54 | Z53: 9/9/9 | AA53: NAT | AC53: 19.75 | AD53: to | AE53: 21.749 | AF53: 17 | AI53: 43.7665 | AJ53: 45.766 | AK53: 42 | AL53: 89.125 | AM53: 93.124 | AN53: 90.283
G54: Bottom Stile Reinf. | J54: 0 | N54: 0 | O54: 0 | P54: =IF(AND(O54=15,$M$4>=35,$M$4<=37),O54&"-"&"15",0) -> 0 | U54: =IF(AND(T54=15,$R$4>=35,$R$4<=37),T54&"-"&"15",0) ->  | Y54: 55 | Z54: 9/9/10 | AA54: BU | AC54: 21.75 | AD54: to | AE54: 23.749 | AF54: 19 | AI54: 45.7665 | AJ54: 47.766 | AK54: 44 | AL54: 93.125 | AM54: 97.124 | AN54: 94.283
G55: Bottom Glass | H55: =(BGW_8SH3*BGH_8SH3)/144 -> 0.1302083333 | I55: =GLASS_WGT ->  | N55: 0 | O55: =IF(AND($N$4<=17,$N$4>15),17,0) -> 0 | P55: =IF(AND(O55=17,$M$4>=4,$M$4<=5.99),O55&"-"&"1",0) -> 0 | T55: =IF(AND($S$4<=17,$S$4>15),17,0) ->  | U55: =IF(AND(T55=17,$R$4>=4,$R$4<=5.99),T55&"-"&"1",0) ->  | Y55: 56 | Z55: 9/9/10 | AA55: BU | AC55: 23.75 | AD55: to | AE55: 25.749 | AF55: 21 | AI55: 47.7665 | AJ55: 49.766 | AK55: 46 | AL55: 97.125 | AM55: 101.124 | AN55: 98.283
G56: Bottom Spacer | H56: =((BGW_8SH3*2)+(BGH_8SH3*2))/12 -> -1.447916667 | I56: 0.0536 | J56: -0.07760833333 | N56: 0 | O56: 0 | P56: =IF(AND(O56=17,$M$4>=6,$M$4<=8.99),O56&"-"&"2",0) -> 0 | U56: =IF(AND(T56=17,$R$4>=6,$R$4<=8.99),T56&"-"&"2",0) ->  | Y56: 57 | Z56: 9/10/10 | AA56: LG | AC56: 25.75 | AD56: to | AE56: 27.749 | AF56: 23 | AN56: =IF(TYPE=2,Frame_Height-(VLOOKUP(BSH,AI35:AN55,6)),2.625) -> 2.625
G57: Bottom Hardware | H57: 1 | I57: 0.36 | J57: 0.36 | N57: 0 | O57: 0 | P57: =IF(AND(O57=17,$M$4>=9,$M$4<=11.99),O57&"-"&"3",0) -> 0 | U57: =IF(AND(T57=17,$R$4>=9,$R$4<=11.99),T57&"-"&"3",0) ->  | Y57: 58 | Z57: 9/10/10 | AA57: LG | AC57: 27.75 | AD57: to | AE57: 29.749 | AF57: 25
G58: Bottom Bead | H58: =((BGW_8SH3*2)+(BGH_8SH3*2))/12 -> -1.447916667 | I58: 0.019 | J58: -0.02751041667 | N58: 0 | O58: 0 | P58: =IF(AND(O58=17,$M$4>=12,$M$4<=15.99),O58&"-"&"4",0) -> 0 | U58: =IF(AND(T58=17,$R$4>=12,$R$4<=15.99),T58&"-"&"4",0) ->  | Y58: 59 | Z58: 10/10/10 | AA58: WT | AC58: 29.75 | AD58: to | AE58: 31.749 | AF58: 27
I59: Bottom Sash | J59: =TRUNC(SUM(J50:J58)+GRID) ->  | N59: 0 | O59: 0 | P59: =IF(AND(O59=17,$M$4>=16,$M$4<=18.99),O59&"-"&"5",0) -> 0 | U59: =IF(AND(T59=17,$R$4>=16,$R$4<=18.99),T59&"-"&"5",0) ->  | Y59: 60 | Z59: 10/10/10 | AA59: WT | AC59: 31.75 | AD59: to | AE59: 33.749 | AF59: 29
N60: 0 | O60: 0 | P60: =IF(AND(O60=17,$M$4>=19,$M$4<=22.99),O60&"-"&"6",0) -> 0 | U60: =IF(AND(T60=17,$R$4>=19,$R$4<=22.99),T60&"-"&"6",0) ->  | Y60: 61 | Z60: 10/10/11 | AA60: OR | AC60: 33.75 | AD60: to | AE60: 35.749 | AF60: 31
N61: 0 | O61: 0 | P61: =IF(AND(O61=17,$M$4>=23,$M$4<=25.99),O61&"-"&"9",0) -> 0 | U61: =IF(AND(T61=17,$R$4>=23,$R$4<=25.99),T61&"-"&"9",0) ->  | Y61: 62 | Z61: 10/10/11 | AA61: OR | AC61: 35.75 | AD61: to | AE61: 37.749 | AF61: 33
N62: 0 | O62: 0 | P62: =IF(AND(O62=17,$M$4>=26,$M$4<=26.99),O62&"-"&"11",0) -> 0 | U62: =IF(AND(T62=17,$R$4>=26,$R$4<=26.99),T62&"-"&"11",0) ->  | Y62: 63 | Z62: 10/11/11 | AA62: BN | AC62: 37.75 | AD62: to | AE62: 39.749 | AF62: 35
N63: 0 | O63: 0 | P63: =IF(AND(O63=17,$M$4>=27,$M$4<=29.99),O63&"-"&"12",0) -> 0 | U63: =IF(AND(T63=17,$R$4>=27,$R$4<=29.99),T63&"-"&"12",0) ->  | Y63: 64 | Z63: 10/11/11 | AA63: BN | AC63: 39.75 | AD63: to | AE63: 41.749 | AF63: 37
N64: 0 | O64: 0 | P64: =IF(AND(O64=17,$M$4>=30,$M$4<=32.99),O64&"-"&"13",0) -> 0 | U64: =IF(AND(T64=17,$R$4>=30,$R$4<=32.99),T64&"-"&"13",0) ->  | Y64: 65 | Z64: 11/11/11 | AA64: GN | AC64: 41.75 | AD64: to | AE64: 43.749 | AF64: 39
N65: 0 | O65: 0 | P65: =IF(AND(O65=17,$M$4>=33,$M$4<=34.99),O65&"-"&"14",0) -> 0 | U65: =IF(AND(T65=17,$R$4>=33,$R$4<=34.99),T65&"-"&"14",0) ->  | Y65: 66 | Z65: 11/11/11 | AA65: GN | AC65: 43.75 | AD65: to | AE65: 45.749 | AF65: 41
N66: 0 | O66: 0 | P66: =IF(AND(O66=17,$M$4>=35,$M$4<=38),O66&"-"&"15",0) -> 0 | U66: =IF(AND(T66=17,$R$4>=35,$R$4<=38),T66&"-"&"15",0) ->  | Y66: 67 | Z66: 8/8/9/9 | AA66: RD | AC66: 45.75 | AD66: to | AE66: 47.749 | AF66: 43
N67: 0 | O67: =IF(AND($N$4<=19,$N$4>17),19,0) -> 0 | P67: =IF(AND(O67=19,$M$4>=4,$M$4<=6.99),O67&"-"&"1",0) -> 0 | T67: =IF(AND($S$4<=19,$S$4>17),19,0) ->  | U67: =IF(AND(T67=19,$R$4>=4,$R$4<=6.99),T67&"-"&"1",0) ->  | Y67: 68 | Z67: 8/8/9/9 | AA67: RD | AC67: 47.75 | AD67: to | AE67: 49.749 | AF67: 45
N68: 0 | O68: 0 | P68: =IF(AND(O68=19,$M$4>=7,$M$4<=9.99),O68&"-"&"2",0) -> 0 | U68: =IF(AND(T68=19,$R$4>=7,$R$4<=9.99),T68&"-"&"2",0) ->  | Y68: 69 | Z68: 8/9/9/9 | AA68: YW
N69: 0 | O69: 0 | P69: =IF(AND(O69=19,$M$4>=10,$M$4<=13.99),O69&"-"&"3",0) -> 0 | S69: =IF(AND(T69>0,U69>0),T69,0) ->  | U69: =IF(AND(T69=19,$R$4>=10,$R$4<=13.99),T69&"-"&"3",0) ->  | Y69: 70 | Z69: 8/9/9/9 | AA69: YW
N70: 0 | O70: 0 | P70: =IF(AND(O70=19,$M$4>=14,$M$4<=18.99),O70&"-"&"4",0) -> 0 | U70: =IF(AND(T70=19,$R$4>=14,$R$4<=18.99),T70&"-"&"4",0) ->  | Y70: 71 | Z70: 9/9/9/9 | AA70: PU | AC70: CALDWELL BALANCE CHART A571
N71: 0 | O71: 0 | P71: =IF(AND(O71=19,$M$4>=19,$M$4<=23.99),O71&"-"&"5",0) -> 0 | U71: =IF(AND(T71=19,$R$4>=19,$R$4<=23.99),T71&"-"&"5",0) ->  | Y71: 72 | Z71: 9/9/9/9 | AA71: PU | AC71: SASH HEIGHT | AF71: Balance
N72: 0 | O72: 0 | P72: =IF(AND(O72=19,$M$4>=24,$M$4<=26.99),O72&"-"&"6",0) -> 0 | U72: =IF(AND(T72=19,$R$4>=24,$R$4<=26.99),T72&"-"&"6",0) ->  | AC72: RANGE | AF72: Length
N73: 0 | O73: 0 | P73: =IF(AND(O73=19,$M$4>=27,$M$4<=29.99),O73&"-"&"9",0) -> 0 | U73: =IF(AND(T73=19,$R$4>=27,$R$4<=29.99),T73&"-"&"9",0) ->  | AC73: 10.375 | AD73: to | AE73: 12.374 | AF73: 7
N74: 0 | O74: 0 | P74: =IF(AND(O74=19,$M$4>=30,$M$4<=30.99),O74&"-"&"11",0) -> 0 | U74: =IF(AND(T74=19,$R$4>=30,$R$4<=30.99),T74&"-"&"11",0) ->  | Y74: 4 | Z74: 3 | AA74: 1 | AC74: 12.375 | AD74: to | AE74: 14.374 | AF74: 9
N75: 0 | O75: 0 | P75: =IF(AND(O75=19,$M$4>=31,$M$4<=33.99),O75&"-"&"12",0) -> 0 | U75: =IF(AND(T75=19,$R$4>=31,$R$4<=33.99),T75&"-"&"12",0) ->  | Y75: =Y74+1 -> 5 | Z75: 3 | AA75: 1 | AC75: 14.375 | AD75: to | AE75: 16.374 | AF75: 11
N76: 0 | O76: 0 | P76: =IF(AND(O76=19,$M$4>=34,$M$4<=36.99),O76&"-"&"13",0) -> 0 | U76: =IF(AND(T76=19,$R$4>=34,$R$4<=36.99),T76&"-"&"13",0) ->  | Y76: 6 | Z76: 3 | AA76: 1 | AC76: 16.375 | AD76: to | AE76: 18.374 | AF76: 13
N77: 0 | O77: 0 | P77: =IF(AND(O77=19,$M$4>=37,$M$4<=39.99),O77&"-"&"14",0) -> 0 | U77: =IF(AND(T77=19,$R$4>=37,$R$4<=39.99),T77&"-"&"14",0) ->  | Y77: 7 | Z77: 4 | AA77: 1 | AC77: 18.375 | AD77: to | AE77: 20.374 | AF77: 15
N78: 0 | O78: 0 | P78: =IF(AND(O78=19,$M$4>=40,$M$4<=42),O78&"-"&"15",0) -> 0 | U78: =IF(AND(T78=19,$R$4>=40,$R$4<=42),T78&"-"&"15",0) ->  | Y78: 8 | Z78: 4 | AA78: 1 | AC78: 20.375 | AD78: to | AE78: 22.374 | AF78: 17
N79: 0 | O79: =IF(AND($N$4<=21,$N$4>19),21,0) -> 0 | P79: =IF(AND(O79=21,$M$4>=4,$M$4<=6.99),O79&"-"&"1",0) -> 0 | T79: =IF(AND($S$4<=21,$S$4>19),21,0) ->  | U79: =IF(AND(T79=21,$R$4>=4,$R$4<=6.99),T79&"-"&"1",0) ->  | Y79: 9 | Z79: 5 | AA79: 1 | AC79: 22.375 | AD79: to | AE79: 24.374 | AF79: 19
N80: 0 | O80: 0 | P80: =IF(AND(O80=21,$M$4>=7,$M$4<=9.99),O80&"-"&"2",0) -> 0 | U80: =IF(AND(T80=21,$R$4>=7,$R$4<=9.99),T80&"-"&"2",0) ->  | Y80: 10 | Z80: 5 | AA80: 1 | AC80: 24.375 | AD80: to | AE80: 26.374 | AF80: 21
N81: 0 | O81: 0 | P81: =IF(AND(O81=21,$M$4>=10,$M$4<=13.99),O81&"-"&"3",0) -> 0 | U81: =IF(AND(T81=21,$R$4>=10,$R$4<=13.99),T81&"-"&"3",0) ->  | Y81: 11 | Z81: 6 | AA81: 1 | AC81: 26.375 | AD81: to | AE81: 28.374 | AF81: 23
N82: 0 | O82: 0 | P82: =IF(AND(O82=21,$M$4>=14,$M$4<=18.99),O82&"-"&"4",0) -> 0 | U82: =IF(AND(T82=21,$R$4>=14,$R$4<=18.99),T82&"-"&"4",0) ->  | Y82: 12 | Z82: 6 | AA82: 1 | AC82: 28.375 | AD82: to | AE82: 30.374 | AF82: 25
N83: 0 | O83: 0 | P83: =IF(AND(O83=21,$M$4>=19,$M$4<=23.99),O83&"-"&"5",0) -> 0 | U83: =IF(AND(T83=21,$R$4>=19,$R$4<=23.99),T83&"-"&"5",0) ->  | Y83: 13 | Z83: 7 | AA83: 1 | AC83: 30.375 | AD83: to | AE83: 32.374 | AF83: 27
N84: 0 | O84: 0 | P84: =IF(AND(O84=21,$M$4>=24,$M$4<=26.99),O84&"-"&"6",0) -> 0 | U84: =IF(AND(T84=21,$R$4>=24,$R$4<=26.99),T84&"-"&"6",0) ->  | Y84: 14 | Z84: 7 | AA84: 1 | AC84: 32.375 | AD84: to | AE84: 34.374 | AF84: 29
N85: 0 | O85: 0 | P85: =IF(AND(O85=21,$M$4>=27,$M$4<=29.99),O85&"-"&"9",0) -> 0 | U85: =IF(AND(T85=21,$R$4>=27,$R$4<=29.99),T85&"-"&"9",0) ->  | Y85: 15 | Z85: 8 | AA85: 1 | AC85: 34.375 | AD85: to | AE85: 36.374 | AF85: 31
N86: 0 | O86: 0 | P86: =IF(AND(O86=21,$M$4>=30,$M$4<=30.99),O86&"-"&"11",0) -> 0 | U86: =IF(AND(T86=21,$R$4>=30,$R$4<=30.99),T86&"-"&"11",0) ->  | Y86: 16 | Z86: 8 | AA86: 1 | AC86: 36.375 | AD86: to | AE86: 38.374 | AF86: 33
N87: 0 | O87: 0 | P87: =IF(AND(O87=21,$M$4>=31,$M$4<=33.99),O87&"-"&"12",0) -> 0 | U87: =IF(AND(T87=21,$R$4>=31,$R$4<=33.99),T87&"-"&"12",0) ->  | Y87: 17 | Z87: 9 | AA87: 1 | AC87: 38.375 | AD87: to | AE87: 40.374 | AF87: 35
N88: 0 | O88: 0 | P88: =IF(AND(O88=21,$M$4>=34,$M$4<=36.99),O88&"-"&"13",0) -> 0 | U88: =IF(AND(T88=21,$R$4>=34,$R$4<=36.99),T88&"-"&"13",0) ->  | Y88: 18 | Z88: 9 | AA88: 1 | AC88: 40.375 | AD88: to | AE88: 42.374 | AF88: 37
N89: 0 | O89: 0 | P89: =IF(AND(O89=21,$M$4>=37,$M$4<=39.99),O89&"-"&"14",0) -> 0 | U89: =IF(AND(T89=21,$R$4>=37,$R$4<=39.99),T89&"-"&"14",0) ->  | Y89: 19 | Z89: 10 | AA89: 1 | AC89: 42.375 | AD89: to | AE89: 44.374 | AF89: 39
N90: 0 | O90: 0 | P90: =IF(AND(O90=21,$M$4>=40,$M$4<=42),O90&"-"&"15",0) -> 0 | U90: =IF(AND(T90=21,$R$4>=40,$R$4<=42),T90&"-"&"15",0) ->  | Y90: 20 | Z90: 10 | AA90: 1 | AC90: 44.375 | AD90: to | AE90: 46.374 | AF90: 41
N91: 0 | O91: =IF(AND($N$4<=23,$N$4>21),23,0) -> 0 | P91: =IF(AND(O91=23,$M$4>=5,$M$4<=7.99),O91&"-"&"1",0) -> 0 | T91: =IF(AND($S$4<=23,$S$4>21),23,0) ->  | U91: =IF(AND(T91=23,$R$4>=5,$R$4<=7.99),T91&"-"&"1",0) ->  | Y91: 21 | Z91: 11 | AA91: 1 | AC91: 46.375 | AD91: to | AE91: 48.374 | AF91: 43
N92: 0 | O92: 0 | P92: =IF(AND(O92=23,$M$4>=8,$M$4<=10.99),O92&"-"&"2",0) -> 0 | U92: =IF(AND(T92=23,$R$4>=8,$R$4<=10.99),T92&"-"&"2",0) ->  | Y92: 22 | Z92: 11 | AA92: 1 | AC92: 48.375 | AD92: to | AE92: 50.374 | AF92: 45
N93: 0 | O93: 0 | P93: =IF(AND(O93=23,$M$4>=11,$M$4<=14.99),O93&"-"&"3",0) -> 0 | U93: =IF(AND(T93=23,$R$4>=11,$R$4<=14.99),T93&"-"&"3",0) ->  | Y93: 23 | Z93: 6/6 | AA93: 2
N94: 0 | O94: 0 | P94: =IF(AND(O94=23,$M$4>=15,$M$4<=18.99),O94&"-"&"4",0) -> 0 | U94: =IF(AND(T94=23,$R$4>=15,$R$4<=18.99),T94&"-"&"4",0) ->  | Y94: 24 | Z94: 6/6 | AA94: 2
N95: 0 | O95: 0 | P95: =IF(AND(O95=23,$M$4>=19,$M$4<=23.99),O95&"-"&"5",0) -> 0 | U95: =IF(AND(T95=23,$R$4>=19,$R$4<=23.99),T95&"-"&"5",0) ->  | Y95: 25 | Z95: 6/7 | AA95: 2
N96: 0 | O96: 0 | P96: =IF(AND(O96=23,$M$4>=24,$M$4<=28.99),O96&"-"&"6",0) -> 0 | U96: =IF(AND(T96=23,$R$4>=24,$R$4<=28.99),T96&"-"&"6",0) ->  | Y96: 26 | Z96: 6/7 | AA96: 2
N97: 0 | O97: 0 | P97: =IF(AND(O97=23,$M$4>=29,$M$4<=31.99),O97&"-"&"9",0) -> 0 | U97: =IF(AND(T97=23,$R$4>=29,$R$4<=31.99),T97&"-"&"9",0) ->  | Y97: 27 | Z97: 7/7 | AA97: 2
N98: 0 | O98: 0 | P98: =IF(AND(O98=23,$M$4>=32,$M$4<=33.99),O98&"-"&"12",0) -> 0 | U98: =IF(AND(T98=23,$R$4>=32,$R$4<=33.99),T98&"-"&"12",0) ->  | Y98: 28 | Z98: 7/7 | AA98: 2
N99: 0 | O99: 0 | P99: =IF(AND(O99=23,$M$4>=34,$M$4<=36.99),O99&"-"&"13",0) -> 0 | U99: =IF(AND(T99=23,$R$4>=34,$R$4<=36.99),T99&"-"&"13",0) ->  | Y99: 29 | Z99: 7/8 | AA99: 2
N100: 0 | O100: 0 | P100: =IF(AND(O100=23,$M$4>=37,$M$4<=39.99),O100&"-"&"14",0) -> 0 | U100: =IF(AND(T100=23,$R$4>=37,$R$4<=39.99),T100&"-"&"14",0) ->  | Y100: 30 | Z100: 7/8 | AA100: 2
N101: 0 | O101: 0 | P101: =IF(AND(O101=23,$M$4>=40,$M$4<=43),O101&"-"&"15",0) -> 0 | U101: =IF(AND(T101=23,$R$4>=40,$R$4<=43),T101&"-"&"15",0) ->  | Y101: 31 | Z101: 8/8 | AA101: 2
N102: 0 | O102: =IF(AND($N$4<=25,$N$4>23),25,0) -> 0 | P102: =IF(AND(O102=25,$M$4>=5,$M$4<=7.99),O102&"-"&"1",0) -> 0 | T102: =IF(AND($S$4<=25,$S$4>23),25,0) ->  | U102: =IF(AND(T102=25,$R$4>=5,$R$4<=7.99),T102&"-"&"1",0) ->  | Y102: 32 | Z102: 8/8 | AA102: 2
N103: 0 | O103: 0 | P103: =IF(AND(O103=25,$M$4>=8,$M$4<=10.99),O103&"-"&"2",0) -> 0 | U103: =IF(AND(T103=25,$R$4>=8,$R$4<=10.99),T103&"-"&"2",0) ->  | Y103: 33 | Z103: 8/9 | AA103: 2
N104: 0 | O104: 0 | P104: =IF(AND(O104=25,$M$4>=11,$M$4<=14.99),O104&"-"&"3",0) -> 0 | U104: =IF(AND(T104=25,$R$4>=11,$R$4<=14.99),T104&"-"&"3",0) ->  | Y104: 34 | Z104: 8/9 | AA104: 2
N105: 0 | O105: 0 | P105: =IF(AND(O105=25,$M$4>=15,$M$4<=18.99),O105&"-"&"4",0) -> 0 | U105: =IF(AND(T105=25,$R$4>=15,$R$4<=18.99),T105&"-"&"4",0) ->  | Y105: 35 | Z105: 9/9 | AA105: 2
N106: =IF(AND(O106>0,P106>0),O106,0) -> 0 | O106: 0 | P106: =IF(AND(O106=25,$M$4>=19,$M$4<=23.99),O106&"-"&"5",0) -> 0 | U106: =IF(AND(T106=25,$R$4>=19,$R$4<=23.99),T106&"-"&"5",0) ->  | Y106: 36 | Z106: 9/9 | AA106: 2
N107: 0 | O107: 0 | P107: =IF(AND(O107=25,$M$4>=24,$M$4<=28.99),O107&"-"&"6",0) -> 0 | U107: =IF(AND(T107=25,$R$4>=24,$R$4<=28.99),T107&"-"&"6",0) ->  | Y107: 37 | Z107: 9/10 | AA107: 2
N108: 0 | O108: 0 | P108: =IF(AND(O108=25,$M$4>=29,$M$4<=33.99),O108&"-"&"9",0) -> 0 | U108: =IF(AND(T108=25,$R$4>=29,$R$4<=33.99),T108&"-"&"9",0) ->  | Y108: 38 | Z108: 9/10 | AA108: 2
N109: 0 | O109: 0 | P109: =IF(AND(O109=25,$M$4>=34,$M$4<=35.99),O109&"-"&"11",0) -> 0 | U109: =IF(AND(T109=25,$R$4>=34,$R$4<=35.99),T109&"-"&"11",0) ->  | Y109: 39 | Z109: 10/10 | AA109: 2
N110: 0 | O110: 0 | P110: =IF(AND(O110=25,$M$4>=36,$M$4<=38.99),O110&"-"&"12",0) -> 0 | U110: =IF(AND(T110=25,$R$4>=36,$R$4<=38.99),T110&"-"&"12",0) ->  | Y110: 40 | Z110: 10/10 | AA110: 2
N111: 0 | O111: 0 | P111: =IF(AND(O111=25,$M$4>=39,$M$4<=41.99),O111&"-"&"13",0) -> 0 | U111: =IF(AND(T111=25,$R$4>=39,$R$4<=41.99),T111&"-"&"13",0) ->  | Y111: 41 | Z111: 10/11 | AA111: 2
N112: 0 | O112: 0 | P112: =IF(AND(O112=25,$M$4>=42,$M$4<=44.99),O112&"-"&"14",0) -> 0 | U112: =IF(AND(T112=25,$R$4>=42,$R$4<=44.99),T112&"-"&"14",0) ->  | Y112: 42 | Z112: 10/11 | AA112: 2
N113: 0 | O113: 0 | P113: =IF(AND(O113=25,$M$4>=45,$M$4<=46.99),O113&"-"&"15",0) -> 0 | U113: =IF(AND(T113=25,$R$4>=45,$R$4<=46.99),T113&"-"&"15",0) ->  | Y113: 43 | Z113: 11/11 | AA113: 2
N114: 0 | O114: 0 | P114: =IF(AND(O114=25,$M$4>=47,$M$4<=49),O114&"-"&"16",0) -> 0 | U114: =IF(AND(T114=25,$R$4>=47,$R$4<=49),T114&"-"&"16",0) ->  | Y114: 44 | Z114: 11/11 | AA114: 2
N115: 0 | O115: =IF(AND($N$4<=27,$N$4>25),27,0) -> 0 | P115: =IF(AND(O115=27,$M$4>=5,$M$4<=7.99),O115&"-"&"1",0) -> 0 | T115: =IF(AND($S$4<=27,$S$4>25),27,0) ->  | U115: =IF(AND(T115=27,$R$4>=5,$R$4<=7.99),T115&"-"&"1",0) ->  | Y115: 45 | Z115: 8/7/8 | AA115: 3
N116: 0 | O116: 0 | P116: =IF(AND(O116=27,$M$4>=8,$M$4<=11.99),O116&"-"&"2",0) -> 0 | U116: =IF(AND(T116=27,$R$4>=8,$R$4<=11.99),T116&"-"&"2",0) ->  | Y116: 46 | Z116: 8/7/8 | AA116: 3
N117: 0 | O117: 0 | P117: =IF(AND(O117=27,$M$4>=12,$M$4<=16.99),O117&"-"&"3",0) -> 0 | U117: =IF(AND(T117=27,$R$4>=12,$R$4<=16.99),T117&"-"&"3",0) ->  | Y117: 47 | Z117: 8/8/8 | AA117: 3
N118: 0 | O118: 0 | P118: =IF(AND(O118=27,$M$4>=17,$M$4<=21.99),O118&"-"&"4",0) -> 0 | U118: =IF(AND(T118=27,$R$4>=17,$R$4<=21.99),T118&"-"&"4",0) ->  | Y118: 48 | Z118: 8/8/8 | AA118: 3
N119: 0 | O119: 0 | P119: =IF(AND(O119=27,$M$4>=22,$M$4<=26.99),O119&"-"&"5",0) -> 0 | U119: =IF(AND(T119=27,$R$4>=22,$R$4<=26.99),T119&"-"&"5",0) ->  | Y119: 49 | Z119: 8/8/9 | AA119: 3
N120: 0 | O120: 0 | P120: =IF(AND(O120=27,$M$4>=27,$M$4<=30.99),O120&"-"&"6",0) -> 0 | U120: =IF(AND(T120=27,$R$4>=27,$R$4<=30.99),T120&"-"&"6",0) ->  | Y120: 50 | Z120: 8/8/9 | AA120: 3
N121: 0 | O121: 0 | P121: =IF(AND(O121=27,$M$4>=31,$M$4<=35.99),O121&"-"&"9",0) -> 0 | U121: =IF(AND(T121=27,$R$4>=31,$R$4<=35.99),T121&"-"&"9",0) ->  | Y121: 51 | Z121: 8/9/9 | AA121: 3
N122: 0 | O122: 0 | P122: =IF(AND(O122=27,$M$4>=36,$M$4<=36.99),O122&"-"&"11",0) -> 0 | U122: =IF(AND(T122=27,$R$4>=36,$R$4<=36.99),T122&"-"&"11",0) ->  | Y122: 52 | Z122: 8/9/9 | AA122: 3
N123: 0 | O123: 0 | P123: =IF(AND(O123=27,$M$4>=37,$M$4<=39.99),O123&"-"&"12",0) -> 0 | U123: =IF(AND(T123=27,$R$4>=37,$R$4<=39.99),T123&"-"&"12",0) ->  | Y123: 53 | Z123: 9/9/9 | AA123: 3
N124: 0 | O124: 0 | P124: =IF(AND(O124=27,$M$4>=40,$M$4<=42.99),O124&"-"&"13",0) -> 0 | U124: =IF(AND(T124=27,$R$4>=40,$R$4<=42.99),T124&"-"&"13",0) ->  | Y124: 54 | Z124: 9/9/9 | AA124: 3
N125: 0 | O125: 0 | P125: =IF(AND(O125=27,$M$4>=43,$M$4<=44.99),O125&"-"&"14",0) -> 0 | U125: =IF(AND(T125=27,$R$4>=43,$R$4<=44.99),T125&"-"&"14",0) ->  | Y125: 55 | Z125: 9/9/10 | AA125: 3
N126: 0 | O126: 0 | P126: =IF(AND(O126=27,$M$4>=45,$M$4<=46.99),O126&"-"&"15",0) -> 0 | U126: =IF(AND(T126=27,$R$4>=45,$R$4<=46.99),T126&"-"&"15",0) ->  | Y126: 56 | Z126: 9/9/10 | AA126: 3
N127: 0 | O127: 0 | P127: =IF(AND(O127=27,$M$4>=47,$M$4<=50),O127&"-"&"16",0) -> 0 | U127: =IF(AND(T127=27,$R$4>=47,$R$4<=50),T127&"-"&"16",0) ->  | Y127: 57 | Z127: 9/10/10 | AA127: 3
N128: 0 | O128: =IF(AND($N$4<=29,$N$4>27),29,0) -> 0 | P128: =IF(AND(O128=29,$M$4>=6,$M$4<=8.99),O128&"-"&"1",0) -> 0 | T128: =IF(AND($S$4<=29,$S$4>27),29,0) ->  | U128: =IF(AND(T128=29,$R$4>=6,$R$4<=8.99),T128&"-"&"1",0) ->  | Y128: 58 | Z128: 9/10/10 | AA128: 3
N129: 0 | O129: 0 | P129: =IF(AND(O129=29,$M$4>=9,$M$4<=12.99),O129&"-"&"2",0) -> 0 | U129: =IF(AND(T129=29,$R$4>=9,$R$4<=12.99),T129&"-"&"2",0) ->  | Y129: 59 | Z129: 10/10/10 | AA129: 3
N130: 0 | O130: 0 | P130: =IF(AND(O130=29,$M$4>=13,$M$4<=17.99),O130&"-"&"3",0) -> 0 | U130: =IF(AND(T130=29,$R$4>=13,$R$4<=17.99),T130&"-"&"3",0) ->  | Y130: 60 | Z130: 10/10/10 | AA130: 3
N131: 0 | O131: 0 | P131: =IF(AND(O131=29,$M$4>=18,$M$4<=23.99),O131&"-"&"4",0) -> 0 | U131: =IF(AND(T131=29,$R$4>=18,$R$4<=23.99),T131&"-"&"4",0) ->  | Y131: 61 | Z131: 10/10/11 | AA131: 3
N132: 0 | O132: 0 | P132: =IF(AND(O132=29,$M$4>=24,$M$4<=29.99),O132&"-"&"5",0) -> 0 | U132: =IF(AND(T132=29,$R$4>=24,$R$4<=29.99),T132&"-"&"5",0) ->  | Y132: 62 | Z132: 10/10/11 | AA132: 3
N133: 0 | O133: 0 | P133: =IF(AND(O133=29,$M$4>=30,$M$4<=34.99),O133&"-"&"6",0) -> 0 | S133: =IF(AND(T133>0,U133>0),T133,0) ->  | U133: =IF(AND(T133=29,$R$4>=30,$R$4<=34.99),T133&"-"&"6",0) ->  | Y133: 63 | Z133: 10/11/11 | AA133: 3
N134: 0 | O134: 0 | P134: =IF(AND(O134=29,$M$4>=35,$M$4<=37.99),O134&"-"&"9",0) -> 0 | U134: =IF(AND(T134=29,$R$4>=35,$R$4<=37.99),T134&"-"&"9",0) ->  | Y134: 64 | Z134: 10/11/11 | AA134: 3
N135: 0 | O135: 0 | P135: =IF(AND(O135=29,$M$4>=38,$M$4<=40.99),O135&"-"&"12",0) -> 0 | U135: =IF(AND(T135=29,$R$4>=38,$R$4<=40.99),T135&"-"&"12",0) ->  | Y135: 65 | Z135: 11/11/11 | AA135: 3
N136: 0 | O136: 0 | P136: =IF(AND(O136=29,$M$4>=41,$M$4<=42.99),O136&"-"&"13",0) -> 0 | U136: =IF(AND(T136=29,$R$4>=41,$R$4<=42.99),T136&"-"&"13",0) ->  | Y136: 66 | Z136: 11/11/11 | AA136: 3
N137: 0 | O137: 0 | P137: =IF(AND(O137=29,$M$4>=43,$M$4<=44.99),O137&"-"&"14",0) -> 0 | U137: =IF(AND(T137=29,$R$4>=43,$R$4<=44.99),T137&"-"&"14",0) ->  | Y137: 67 | Z137: 8/8/9/9 | AA137: 4
N138: 0 | O138: 0 | P138: =IF(AND(O138=29,$M$4>=45,$M$4<=46.99),O138&"-"&"15",0) -> 0 | U138: =IF(AND(T138=29,$R$4>=45,$R$4<=46.99),T138&"-"&"15",0) ->  | Y138: 68 | Z138: 8/8/9/9 | AA138: 4
N139: 0 | O139: 0 | P139: =IF(AND(O139=29,$M$4>=47,$M$4<=49.99),O139&"-"&"16",0) -> 0 | U139: =IF(AND(T139=29,$R$4>=47,$R$4<=49.99),T139&"-"&"16",0) ->  | Y139: 69 | Z139: 8/9/9/9 | AA139: 4
N140: 0 | O140: 0 | P140: =IF(AND(O140=29,$M$4>=50,$M$4<=52),O140&"-"&"17",0) -> 0 | U140: =IF(AND(T140=29,$R$4>=50,$R$4<=52),T140&"-"&"17",0) ->  | Y140: 70 | Z140: 8/9/9/9 | AA140: 4
N141: 0 | O141: =IF(AND($N$4<=31,$N$4>29),31,0) -> 0 | P141: =IF(AND(O141=31,$M$4>=6,$M$4<=8.99),O141&"-"&"1",0) -> 0 | T141: =IF(AND($S$4<=31,$S$4>29),31,0) ->  | U141: =IF(AND(T141=31,$R$4>=6,$R$4<=8.99),T141&"-"&"1",0) ->  | Y141: 71 | Z141: 9/9/9/9 | AA141: 4
N142: 0 | O142: 0 | P142: =IF(AND(O142=31,$M$4>=9,$M$4<=12.99),O142&"-"&"2",0) -> 0 | U142: =IF(AND(T142=31,$R$4>=9,$R$4<=12.99),T142&"-"&"2",0) ->  | Y142: 72 | Z142: 9/9/9/9 | AA142: 4
N143: 0 | O143: 0 | P143: =IF(AND(O143=31,$M$4>=13,$M$4<=17.99),O143&"-"&"3",0) -> 0 | U143: =IF(AND(T143=31,$R$4>=13,$R$4<=17.99),T143&"-"&"3",0) -> 
N144: 0 | O144: 0 | P144: =IF(AND(O144=31,$M$4>=18,$M$4<=23.99),O144&"-"&"4",0) -> 0 | U144: =IF(AND(T144=31,$R$4>=18,$R$4<=23.99),T144&"-"&"4",0) -> 
N145: 0 | O145: 0 | P145: =IF(AND(O145=31,$M$4>=24,$M$4<=29.99),O145&"-"&"5",0) -> 0 | U145: =IF(AND(T145=31,$R$4>=24,$R$4<=29.99),T145&"-"&"5",0) -> 
N146: 0 | O146: 0 | P146: =IF(AND(O146=31,$M$4>=30,$M$4<=34.99),O146&"-"&"6",0) -> 0 | U146: =IF(AND(T146=31,$R$4>=30,$R$4<=34.99),T146&"-"&"6",0) -> 
N147: 0 | O147: 0 | P147: =IF(AND(O147=31,$M$4>=35,$M$4<=37.99),O147&"-"&"9",0) -> 0 | U147: =IF(AND(T147=31,$R$4>=35,$R$4<=37.99),T147&"-"&"9",0) -> 
N148: 0 | O148: 0 | P148: =IF(AND(O148=31,$M$4>=38,$M$4<=40.99),O148&"-"&"12",0) -> 0 | U148: =IF(AND(T148=31,$R$4>=38,$R$4<=40.99),T148&"-"&"12",0) -> 
N149: 0 | O149: 0 | P149: =IF(AND(O149=31,$M$4>=41,$M$4<=42.99),O149&"-"&"13",0) -> 0 | U149: =IF(AND(T149=31,$R$4>=41,$R$4<=42.99),T149&"-"&"13",0) -> 
N150: 0 | O150: 0 | P150: =IF(AND(O150=31,$M$4>=43,$M$4<=44.99),O150&"-"&"14",0) -> 0 | U150: =IF(AND(T150=31,$R$4>=43,$R$4<=44.99),T150&"-"&"14",0) -> 
N151: 0 | O151: 0 | P151: =IF(AND(O151=31,$M$4>=45,$M$4<=47.99),O151&"-"&"15",0) -> 0 | U151: =IF(AND(T151=31,$R$4>=45,$R$4<=47.99),T151&"-"&"15",0) -> 
N152: 0 | O152: 0 | P152: =IF(AND(O152=31,$M$4>=48,$M$4<=49.99),O152&"-"&"16",0) -> 0 | U152: =IF(AND(T152=31,$R$4>=48,$R$4<=49.99),T152&"-"&"16",0) -> 
N153: 0 | O153: 0 | P153: =IF(AND(O153=31,$M$4>=50,$M$4<=52),O153&"-"&"17",0) -> 0 | U153: =IF(AND(T153=31,$R$4>=50,$R$4<=52),T153&"-"&"17",0) -> 
N154: 0 | O154: =IF(AND($N$4<=33,$N$4>31),33,0) -> 0 | P154: =IF(AND(O154=33,$M$4>=6,$M$4<=8.99),O154&"-"&"1",0) -> 0 | T154: =IF(AND($S$4<=33,$S$4>31),33,0) ->  | U154: =IF(AND(T154=33,$R$4>=6,$R$4<=8.99),T154&"-"&"1",0) -> 
N155: 0 | O155: 0 | P155: =IF(AND(O155=33,$M$4>=9,$M$4<=12.99),O155&"-"&"2",0) -> 0 | U155: =IF(AND(T155=33,$R$4>=9,$R$4<=12.99),T155&"-"&"2",0) -> 
N156: 0 | O156: 0 | P156: =IF(AND(O156=33,$M$4>=13,$M$4<=17.99),O156&"-"&"3",0) -> 0 | U156: =IF(AND(T156=33,$R$4>=13,$R$4<=17.99),T156&"-"&"3",0) -> 
N157: 0 | O157: 0 | P157: =IF(AND(O157=33,$M$4>=18,$M$4<=23.99),O157&"-"&"4",0) -> 0 | U157: =IF(AND(T157=33,$R$4>=18,$R$4<=23.99),T157&"-"&"4",0) -> 
N158: 0 | O158: 0 | P158: =IF(AND(O158=33,$M$4>=24,$M$4<=29.99),O158&"-"&"5",0) -> 0 | U158: =IF(AND(T158=33,$R$4>=24,$R$4<=29.99),T158&"-"&"5",0) -> 
N159: 0 | O159: 0 | P159: =IF(AND(O159=33,$M$4>=30,$M$4<=34.99),O159&"-"&"6",0) -> 0 | U159: =IF(AND(T159=33,$R$4>=30,$R$4<=34.99),T159&"-"&"6",0) -> 
N160: 0 | O160: 0 | P160: =IF(AND(O160=33,$M$4>=35,$M$4<=37.99),O160&"-"&"9",0) -> 0 | U160: =IF(AND(T160=33,$R$4>=35,$R$4<=37.99),T160&"-"&"9",0) -> 
N161: 0 | O161: 0 | P161: =IF(AND(O161=33,$M$4>=38,$M$4<=40.99),O161&"-"&"12",0) -> 0 | U161: =IF(AND(T161=33,$R$4>=38,$R$4<=40.99),T161&"-"&"12",0) -> 
N162: 0 | O162: 0 | P162: =IF(AND(O162=33,$M$4>=41,$M$4<=42.99),O162&"-"&"13",0) -> 0 | U162: =IF(AND(T162=33,$R$4>=41,$R$4<=42.99),T162&"-"&"13",0) -> 
N163: 0 | O163: 0 | P163: =IF(AND(O163=33,$M$4>=43,$M$4<=44.99),O163&"-"&"14",0) -> 0 | U163: =IF(AND(T163=33,$R$4>=43,$R$4<=44.99),T163&"-"&"14",0) -> 
N164: 0 | O164: 0 | P164: =IF(AND(O164=33,$M$4>=45,$M$4<=47.99),O164&"-"&"15",0) -> 0 | U164: =IF(AND(T164=33,$R$4>=45,$R$4<=47.99),T164&"-"&"15",0) -> 
N165: 0 | O165: 0 | P165: =IF(AND(O165=33,$M$4>=48,$M$4<=49.99),O165&"-"&"16",0) -> 0 | U165: =IF(AND(T165=33,$R$4>=48,$R$4<=49.99),T165&"-"&"16",0) -> 
N166: 0 | O166: 0 | P166: =IF(AND(O166=33,$M$4>=50,$M$4<=52),O166&"-"&"17",0) -> 0 | U166: =IF(AND(T166=33,$R$4>=50,$R$4<=52),T166&"-"&"17",0) -> 
N167: 0 | O167: =IF(AND($N$4<=35,$N$4>33),35,0) -> 0 | P167: =IF(AND(O167=35,$M$4>=8,$M$4<=11.99),O167&"-"&"1",0) -> 0 | T167: =IF(AND($S$4<=35,$S$4>33),35,0) ->  | U167: =IF(AND(T167=35,$R$4>=8,$R$4<=11.99),T167&"-"&"1",0) -> 
N168: 0 | O168: 0 | P168: =IF(AND(O168=35,$M$4>=12,$M$4<=16.99),O168&"-"&"2",0) -> 0 | U168: =IF(AND(T168=35,$R$4>=12,$R$4<=16.99),T168&"-"&"2",0) -> 
N169: 0 | O169: 0 | P169: =IF(AND(O169=35,$M$4>=17,$M$4<=22.99),O169&"-"&"3",0) -> 0 | U169: =IF(AND(T169=35,$R$4>=17,$R$4<=22.99),T169&"-"&"3",0) -> 
N170: =IF(AND(O170>0,P170>0),O170,0) -> 0 | O170: 0 | P170: =IF(AND(O170=35,$M$4>=23,$M$4<=28.99),O170&"-"&"4",0) -> 0 | U170: =IF(AND(T170=35,$R$4>=23,$R$4<=28.99),T170&"-"&"4",0) -> 
N171: 0 | O171: 0 | P171: =IF(AND(O171=35,$M$4>=29,$M$4<=33.99),O171&"-"&"5",0) -> 0 | U171: =IF(AND(T171=35,$R$4>=29,$R$4<=33.99),T171&"-"&"5",0) -> 
N172: 0 | O172: 0 | P172: =IF(AND(O172=35,$M$4>=34,$M$4<=37.99),O172&"-"&"6",0) -> 0 | U172: =IF(AND(T172=35,$R$4>=34,$R$4<=37.99),T172&"-"&"6",0) -> 
N173: 0 | O173: 0 | P173: =IF(AND(O173=35,$M$4>=38,$M$4<=39.99),O173&"-"&"9",0) -> 0 | U173: =IF(AND(T173=35,$R$4>=38,$R$4<=39.99),T173&"-"&"9",0) -> 
N174: 0 | O174: 0 | P174: =IF(AND(O174=35,$M$4>=40,$M$4<=42.99),O174&"-"&"12",0) -> 0 | U174: =IF(AND(T174=35,$R$4>=40,$R$4<=42.99),T174&"-"&"12",0) -> 
N175: 0 | O175: 0 | P175: =IF(AND(O175=35,$M$4>=43,$M$4<=44.99),O175&"-"&"13",0) -> 0 | U175: =IF(AND(T175=35,$R$4>=43,$R$4<=44.99),T175&"-"&"13",0) -> 
N176: 0 | O176: 0 | P176: =IF(AND(O176=35,$M$4>=45,$M$4<=47.99),O176&"-"&"14",0) -> 0 | U176: =IF(AND(T176=35,$R$4>=45,$R$4<=47.99),T176&"-"&"14",0) -> 
N177: 0 | O177: 0 | P177: =IF(AND(O177=35,$M$4>=48,$M$4<=50.99),O177&"-"&"15",0) -> 0 | U177: =IF(AND(T177=35,$R$4>=48,$R$4<=50.99),T177&"-"&"15",0) -> 
N178: 0 | O178: 0 | P178: =IF(AND(O178=35,$M$4>=51,$M$4<=53),O178&"-"&"16",0) -> 0 | U178: =IF(AND(T178=35,$R$4>=51,$R$4<=53),T178&"-"&"16",0) -> 
N179: 0 | O179: =IF(AND($N$4<=37,$N$4>35),37,0) -> 0 | P179: =IF(AND(O179=37,$M$4>=8,$M$4<=11.99),O179&"-"&"1",0) -> 0 | T179: =IF(AND($S$4<=37,$S$4>35),37,0) ->  | U179: =IF(AND(T179=37,$R$4>=8,$R$4<=11.99),T179&"-"&"1",0) -> 
N180: 0 | O180: 0 | P180: =IF(AND(O180=37,$M$4>=12,$M$4<=16.99),O180&"-"&"2",0) -> 0 | U180: =IF(AND(T180=37,$R$4>=12,$R$4<=16.99),T180&"-"&"2",0) -> 
N181: 0 | O181: 0 | P181: =IF(AND(O181=37,$M$4>=17,$M$4<=22.99),O181&"-"&"3",0) -> 0 | U181: =IF(AND(T181=37,$R$4>=17,$R$4<=22.99),T181&"-"&"3",0) -> 
N182: 0 | O182: 0 | P182: =IF(AND(O182=37,$M$4>=23,$M$4<=28.99),O182&"-"&"4",0) -> 0 | U182: =IF(AND(T182=37,$R$4>=23,$R$4<=28.99),T182&"-"&"4",0) -> 
N183: 0 | O183: 0 | P183: =IF(AND(O183=37,$M$4>=29,$M$4<=33.99),O183&"-"&"5",0) -> 0 | U183: =IF(AND(T183=37,$R$4>=29,$R$4<=33.99),T183&"-"&"5",0) -> 
N184: 0 | O184: 0 | P184: =IF(AND(O184=37,$M$4>=34,$M$4<=37.99),O184&"-"&"6",0) -> 0 | U184: =IF(AND(T184=37,$R$4>=34,$R$4<=37.99),T184&"-"&"6",0) -> 
N185: 0 | O185: 0 | P185: =IF(AND(O185=37,$M$4>=38,$M$4<=39.99),O185&"-"&"9",0) -> 0 | U185: =IF(AND(T185=37,$R$4>=38,$R$4<=39.99),T185&"-"&"9",0) -> 
N186: 0 | O186: 0 | P186: =IF(AND(O186=37,$M$4>=40,$M$4<=42.99),O186&"-"&"12",0) -> 0 | U186: =IF(AND(T186=37,$R$4>=40,$R$4<=42.99),T186&"-"&"12",0) -> 
N187: 0 | O187: 0 | P187: =IF(AND(O187=37,$M$4>=43,$M$4<=44.99),O187&"-"&"13",0) -> 0 | U187: =IF(AND(T187=37,$R$4>=43,$R$4<=44.99),T187&"-"&"13",0) -> 
N188: 0 | O188: 0 | P188: =IF(AND(O188=37,$M$4>=45,$M$4<=47.99),O188&"-"&"14",0) -> 0 | U188: =IF(AND(T188=37,$R$4>=45,$R$4<=47.99),T188&"-"&"14",0) -> 
N189: 0 | O189: 0 | P189: =IF(AND(O189=37,$M$4>=48,$M$4<=50.99),O189&"-"&"15",0) -> 0 | U189: =IF(AND(T189=37,$R$4>=48,$R$4<=50.99),T189&"-"&"15",0) -> 
N190: 0 | O190: 0 | P190: =IF(AND(O190=37,$M$4>=51,$M$4<=53),O190&"-"&"16",0) -> 0 | U190: =IF(AND(T190=37,$R$4>=51,$R$4<=53),T190&"-"&"16",0) -> 
N191: 0 | O191: =IF(AND($N$4<=39,$N$4>37),39,0) -> 0 | P191: =IF(AND(O191=39,$M$4>=8,$M$4<=11.99),O191&"-"&"1",0) -> 0 | T191: =IF(AND($S$4<=39,$S$4>37),39,0) ->  | U191: =IF(AND(T191=39,$R$4>=8,$R$4<=11.99),T191&"-"&"1",0) -> 
N192: 0 | O192: 0 | P192: =IF(AND(O192=39,$M$4>=12,$M$4<=16.99),O192&"-"&"2",0) -> 0 | U192: =IF(AND(T192=39,$R$4>=12,$R$4<=16.99),T192&"-"&"2",0) -> 
N193: 0 | O193: 0 | P193: =IF(AND(O193=39,$M$4>=17,$M$4<=22.99),O193&"-"&"3",0) -> 0 | U193: =IF(AND(T193=39,$R$4>=17,$R$4<=22.99),T193&"-"&"3",0) -> 
N194: 0 | O194: 0 | P194: =IF(AND(O194=39,$M$4>=23,$M$4<=28.99),O194&"-"&"4",0) -> 0 | U194: =IF(AND(T194=39,$R$4>=23,$R$4<=28.99),T194&"-"&"4",0) -> 
N195: 0 | O195: 0 | P195: =IF(AND(O195=39,$M$4>=29,$M$4<=33.99),O195&"-"&"5",0) -> 0 | U195: =IF(AND(T195=39,$R$4>=29,$R$4<=33.99),T195&"-"&"5",0) -> 
N196: 0 | O196: 0 | P196: =IF(AND(O196=39,$M$4>=34,$M$4<=37.99),O196&"-"&"6",0) -> 0 | U196: =IF(AND(T196=39,$R$4>=34,$R$4<=37.99),T196&"-"&"6",0) -> 
N197: 0 | O197: 0 | P197: =IF(AND(O197=39,$M$4>=38,$M$4<=39.99),O197&"-"&"9",0) -> 0 | S197: =IF(AND(T197>0,U197>0),T197,0) ->  | U197: =IF(AND(T197=39,$R$4>=38,$R$4<=39.99),T197&"-"&"9",0) -> 
N198: 0 | O198: 0 | P198: =IF(AND(O198=39,$M$4>=40,$M$4<=42.99),O198&"-"&"12",0) -> 0 | U198: =IF(AND(T198=39,$R$4>=40,$R$4<=42.99),T198&"-"&"12",0) -> 
N199: 0 | O199: 0 | P199: =IF(AND(O199=39,$M$4>=43,$M$4<=44.99),O199&"-"&"13",0) -> 0 | U199: =IF(AND(T199=39,$R$4>=43,$R$4<=44.99),T199&"-"&"13",0) -> 
N200: 0 | O200: 0 | P200: =IF(AND(O200=39,$M$4>=45,$M$4<=47.99),O200&"-"&"14",0) -> 0 | U200: =IF(AND(T200=39,$R$4>=45,$R$4<=47.99),T200&"-"&"14",0) -> 
... 35 more rows

Sheet Tables (hidden)
B1: S140 / S144 / S146 Calculations
B2: Frame Cut Leg | C2: =LEG+6 -> 6 | G2: CDIM | H2: DDIM | I2: SashW | J2: SashH | K2: GlassW | L2: GlassH | M2: Radius | N2: Weight | O2: Deduct | P2: Astragal | Q2: Screen W | R2: Screen H | S2: Balance | AA2: Glass Strength
B3: CMRD | C3: =Frame_Height-C2 -> -6 | F3: Mezzo | G3: =CDIM_A140 -> 0 | H3: =DDIM_A140 -> 6 | I3: =BSW_03S0 -> -3.125 | J3: =CDIM_A140-1.125 -> -1.125 | K3: =I3-1.6875 -> -4.8125 | L3: =J3-1.625 -> -2.75 | M3: 12.5 | N3: =BWGT_03S0 ->  | O3: 0.264 | P3: =AST_03S0 -> -3.9375 | Q3: =Frame_Width-4.5 -> -4.5 | R3: =CDIM_A140-1.3125 -> -1.3125 | S3: =IF(ISERROR((VLOOKUP(BTM_WGT,CFB,2,FALSE))),"N/A",(VLOOKUP(BTM_WGT,CFB,2,FALSE))) -> N/A | X3: 1 | Y3: =IF(AA3>"",VLOOKUP(AA3,GLASSLOOKUP,2,FALSE),"") ->  | Z3: =IF(AA3>"",VLOOKUP(Y3,WEIGHTCHART,2,FALSE),"") ->  | AA3: =GLASS1 ->  | AD3: Extrusion
B4: F | C4: =2*(ASIN((Offset*2)/(2*C10))) ->  | F4: Mezzo/N.F | G4: 0 | H4: 6 | I4: =BSW_03S0 -> -3.125 | J4: =CDIM_A140-1.125 -> -1.125 | K4: =I4-1.6875 -> -4.8125 | L4: =J4-1.625 -> -2.75 | M4: 13 | N4: =BWGT_03S0 ->  | O4: 0.264 | P4: =AST_03S0 -> -3.9375 | Q4: =Frame_Width-4.5 -> -4.5 | R4: =CDIM_A140-1.3125 -> -1.3125 | S4: =IF(ISERROR((VLOOKUP(BTM_WGT,CFB,2,FALSE))),"N/A",(VLOOKUP(BTM_WGT,CFB,2,FALSE))) -> N/A | X4: 2 | AA4: =GLASS2 ->  | AC4: 1 | AD4: =IF(EXT_1=0,"",EXT_1) -> 
B5: d | C5: =C10*COS(C4/2) ->  | F5: Mezzo w/Stucco | G5: 0 | H5: 6 | I5: =BSW_03S0 -> -3.125 | J5: =CDIM_A140-1.125 -> -1.125 | K5: =Frame_Width-4 -> -4 | L5: =CDIM_A140-1.5625 -> -1.5625 | M5: 13.5 | N5: =BWGT_03S0 ->  | O5: 0.264 | P5: =AST_03S0 -> -3.9375 | Q5: =Frame_Width-4.5 -> -4.5 | R5: =CDIM_A140-1.3125 -> -1.3125 | S5: =IF(ISERROR((VLOOKUP(BTM_WGT,CFB,2,FALSE))),"N/A",(VLOOKUP(BTM_WGT,CFB,2,FALSE))) -> N/A | X5: 3 | AA5: =GLASS3 ->  | AC5: 2 | AD5: =IF(EXT_2=0,"",EXT_2) -> 
B6: h | C6: =C10-C5 ->  | F6: 80s 1-3/8" NFS | G6: 0 | H6: 6 | I6: =BSW_A581 -> -2.8125 | J6: =CDIM_A840-1.5 -> -1.5 | K6: =I6-2.5625 -> -5.375 | L6: =J6-2.5625 -> -4.0625 | M6: 11.75 | N6: =BWGT_A581 ->  | O6: 0.71875 | P6: =AST_A581 -> -2.0625 | Q6: =Frame_Width-2.375 -> -2.375 | R6: =CDIM_A840-2 -> -2 | S6: =IF(ISERROR(BTM_TUBE),"N/A",BTM_TUBE) -> N/A | X6: 4 | AA6: =GLASS4 ->  | AC6: 3 | AD6: =IF(EXT_3=0,"",EXT_3) -> 
C7: =IF(OR(ModelNo="A146",ModelNo="A746",ModelNo="A846"),((Frame_Height-LEG)/2)+(((Frame_Width*2)^2)/(8*(Frame_Height-LEG))),((Frame_Height-LEG)/2)+((Frame_Width^2)/(8*(Frame_Height-LEG)))) ->  | F7: 80s 1" NFS | G7: 0 | H7: 6 | I7: =BSW_A581 -> -2.8125 | J7: =CDIM_A840-1.5 -> -1.5 | K7: =I7-2.5625 -> -5.375 | L7: =J7-2.5625 -> -4.0625 | M7: 11.75 | N7: =BWGT_A581 ->  | O7: 0.71875 | P7: =AST_A581 -> -2.0625 | Q7: =Frame_Width-2.375 -> -2.375 | R7: =CDIM_A840-2 -> -2 | S7: N/A | X7: 5 | AA7: =GLASS5 ->  | AC7: 4 | AD7: =IF(EXT_4=0,"",EXT_4) -> 
B8: Top Glass Width | C8: =TRUNC((Frame_Width-2*EXT)*16+0.5)/16 -> 0 | F8: 80s Flush Fin | G8: 0 | H8: 6 | I8: =BSW_A581 -> -2.8125 | J8: =CDIM_A840-1.5 -> -1.5 | K8: -5.375 | L8: -4.0625 | M8: 11.75 | N8: =BWGT_A581 ->  | O8: 0.71875 | P8: =AST_A581 -> -2.0625 | Q8: =Frame_Width-2.375 -> -2.375 | R8: =CDIM_A840-2 -> -2 | S8: N/A | X8: 6 | AA8: =GLASS6 ->  | AC8: 5 | AD8: =IF(EXT_5=0,"",EXT_5) -> 
B9: Top Glass Height | C9: =IF(OR(ModelNo="A146",ModelNo="A746",ModelNo="A846"),Frame_Height-($C$15+$C$12+EXT+C6),Frame_Height-($C$15+C12+EXT)) -> 0 | F9: 70s 1-3/8" NFS | G9: 0 | H9: 6 | I9: =BSW_A571 -> -2.125 | J9: =CDIM_A740-0.875 -> -0.875 | K9: =I9-2.1875 -> -4.3125 | L9: -3.0625 | M9: 11.75 | N9: =BWGT_A571 ->  | O9: 0.6875 | P9: =AST_A571 -> -1.8125 | Q9: =Frame_Width-2.125 -> -2.125 | R9: =CDIM_A740-1.8125 -> -1.8125 | S9: N/A | X9: 7 | AA9: =GLASS7 ->  | AC9: EXTSELECT | AD9: 1
B10: Glass R: | C10: =FrameR-EXT ->  | F10: 70s 7/8" NFS | G10: 0 | H10: 6 | I10: =BSW_A571 -> -2.125 | J10: =CDIM_A740-0.875 -> -0.875 | K10: -4.3125 | L10: -3.0625 | M10: 11.75 | N10: =BWGT_A571 ->  | O10: 0.6875 | P10: =AST_A571 -> -1.8125 | Q10: =Frame_Width-2.125 -> -2.125 | R10: =CDIM_A740-1.8125 -> -1.8125 | S10: N/A | X10: 8 | AA10: =GLASS8 ->  | AC10: EXT | AD10: =Offset -> 0
B11: Glass h: | C11: =IF(OR(ModelNo="A146",ModelNo="A746",ModelNo="A846"),C10-(SQRT((4*C10^2)-(C8*2+(2*EXT))^2))/2,C10-(SQRT((4*C10^2)-(C8)^2)/2)) ->  | F11: 70s J-Channel | G11: 0 | H11: 6 | I11: =BSW_A571 -> -2.125 | J11: =CDIM_A740-0.875 -> -0.875 | K11: -4.3125 | L11: -3.0625 | M11: 11.75 | N11: =BWGT_A571 ->  | O11: 0.6875 | P11: =AST_A571 -> -1.8125 | Q11: =Frame_Width-2.125 -> -2.125 | R11: =CDIM_A740-1.8125 -> -1.8125 | S11: N/A | AA11: 1 | AC11: EXTTYPE | AD11: =VLOOKUP(EXTSELECT,AC4:AD8,2,FALSE) -> 
B12: Deduct | C12: =O13 -> 0 | F12: 70s Flush Fin | G12: 0 | H12: 6 | I12: =BSW_A571 -> -2.125 | J12: =CDIM_A740-0.875 -> -0.875 | K12: -4.3125 | L12: -3.0625 | M12: 11.75 | N12: =BWGT_A571 ->  | O12: 0.6875 | P12: =AST_A571 -> -1.8125 | Q12: =Frame_Width-2.125 -> -2.125 | R12: =CDIM_A740-1.8125 -> -1.8125 | S12: N/A | Z12: =VLOOKUP(GT,Y3:Z10,2,FALSE) ->  | AA12: =VLOOKUP(Glass,X3:Z10,2,FALSE) -> 
B13: Top Glass Leg: | C13: =IF(OR(ModelNo="A146",ModelNo="A746",ModelNo="A846"),C9-C11+C6,C9-C11) ->  | F13: =EXTTYPE ->  | G13: =IF(EXTSELECT>1,VLOOKUP(EXTTYPE,F3:S12,2,FALSE),0) -> 0 | H13: =IF(EXTSELECT>1,VLOOKUP(EXTTYPE,F3:S12,3,FALSE),0) -> 0 | I13: =IF(EXTSELECT>1,VLOOKUP(EXTTYPE,F3:S12,4,FALSE),0) -> 0 | J13: =IF(EXTSELECT>1,VLOOKUP(EXTTYPE,F3:S12,5,FALSE),0) -> 0 | K13: =IF(EXTSELECT>1,VLOOKUP(EXTTYPE,F3:S12,6,FALSE),0) -> 0 | L13: =IF(EXTSELECT>1,VLOOKUP(EXTTYPE,F3:S12,7,FALSE),0) -> 0 | M13: =IF(EXTSELECT>1,VLOOKUP(EXTTYPE,F3:S12,8,FALSE),0) -> 0 | N13: =IF(EXTSELECT>1,VLOOKUP(EXTTYPE,F3:S12,9,FALSE),0) -> 0 | O13: =IF(EXTSELECT>1,VLOOKUP(EXTTYPE,F3:S12,10,FALSE),0) -> 0 | P13: =IF(EXTSELECT>1,VLOOKUP(EXTTYPE,F3:S12,11,FALSE),0) -> 0 | Q13: =IF(EXTSELECT>1,VLOOKUP(EXTTYPE,F3:S12,12,FALSE),0) -> 0 | R13: =IF(EXTSELECT>1,VLOOKUP(EXTTYPE,F3:S12,13,FALSE),0) -> 0 | S13: =IF(EXTSELECT>1,VLOOKUP(EXTTYPE,F3:S12,14,FALSE),0) -> 0
B14: DDIM_S140 | C14: =IF(TYPE=1,(Frame_Height/2)-CMRD,IF(TYPE=2,CMR-CMRD)) -> 6
B15: CDIM_S140 | C15: =C2-DDIM_A140 -> 0 | O15: FALSE | P15: AC SASH CALCULATOR
O16: Model | P16: Head+4.5 | Q16: Sill | R16: Center of Ast. | S16: Sash Width | T16: Sash Height | U16: CMR
H17: Moel | I17: GW | J17: GH | L17: Max Short | O17: =ModelNo -> Select Model | P17: =IF(ISERROR(VLOOKUP(ModelNo,ACTABLE,2,FALSE)),"",VLOOKUP(ModelNo,ACTABLE,2,FALSE)) ->  | Q17: =IF(ISERROR(VLOOKUP(ModelNo,ACTABLE,3,FALSE)),"",VLOOKUP(ModelNo,ACTABLE,3,FALSE)) ->  | R17: =IF(ISERROR(VLOOKUP(ModelNo,ACTABLE,4,FALSE)),"",VLOOKUP(ModelNo,ACTABLE,4,FALSE)) ->  | S17: =IF(ISERROR(VLOOKUP(ModelNo,ACTABLE,5,FALSE)),"",VLOOKUP(ModelNo,ACTABLE,5,FALSE)) ->  | T17: =IF(ISERROR(VLOOKUP(ModelNo,ACTABLE,6,FALSE)),"",VLOOKUP(ModelNo,ACTABLE,6,FALSE)) ->  | U17: =IF(ISERROR(VLOOKUP(ModelNo,ACTABLE,7,FALSE)),"",VLOOKUP(ModelNo,ACTABLE,7,FALSE)) -> 
B18: SASHSTOP3001 | F18: Type | H18: A270 | I18: =Frame_Width-2.3125 -> -2.3125 | J18: =Frame_Height-2.3125 -> -2.3125 | K18: =MAX(I18:J18) -> -2.3125 | L18: 86.25 | O18: 3A01 | P18: 2.0625 | Q18: 1.875 | S18: =Frame_Width-4.125 -> -4.125 | T18: =INT((Frame_Height-(P18+Q18+0.5+ACHEIGHT))*16+0.5)/16 -> -4.4375
B19: =IF(TSH_3A01<CDIM_3A01-1.875,CDIM_3A01-TSH_3A01+11-0.875,0) -> 0 | E19: 1 | F19: =IF(TYPE1>"",TYPE1,"") ->  | H19: A570 | I19: =Frame_Width-2.3125 -> -2.3125 | J19: =Frame_Height-2.3125 -> -2.3125 | K19: =MAX(I19:J19) -> -2.3125 | L19: 86.25 | O19: 03S0 | Q19: 1.875 | R19: 1.25 | S19: =BSW_03S0 -> -3.125 | U19: =Frame_Height-(INT((Frame_Height-(Q19+0.5+ACHEIGHT+R19))*16+0.5)/16) -> 3.625
B20: =IF(TSH_3A01<(CDIM_3A01-1.875),0,IF(CDIM_3A01<=39,7,0)) -> 7 | E20: 2 | F20: =IF(TYPE2>"",TYPE2,"") ->  | H20: A770 | I20: =Frame_Width-2.3125 -> -2.3125 | J20: =Frame_Height-2.3125 -> -2.3125 | K20: -2.3125 | L20: 86.25 | O20: A571 | Q20: 1.4375 | S20: =BSW_A571 -> -2.125 | U20: 1.9375
B21: =IF(TSH_3A01<(CDIM_3A01-1.875),0,IF(AND(CDIM_3A01>39,CDIM_3A01<=42),10,0)) -> 0 | E21: 3 | F21: =IF(TYPE3>"",TYPE3,"") ->  | H21: A280 | I21: =Frame_Width-2.5625 -> -2.5625 | J21: =Frame_Height-2.5625 -> -2.5625 | K21: -2.5625 | L21: 86.5 | O21: A581 | Q21: 1.75 | R21: 0.3125 | S21: =BSW_A581 -> -2.8125 | U21: 2.5625
B22: =IF(TSH_3A01<(CDIM_3A01-1.875),0,IF(AND(CDIM_3A01>42,CDIM_3A01<=45),13,0)) -> 0 | H22: A580 | I22: =Frame_Width-2.5625 -> -2.5625 | J22: =Frame_Height-2.5625 -> -2.5625 | K22: -2.5625 | L22: 86.5 | O22: A140 | Q22: 1.875 | R22: 1.25 | S22: =BSW_A140 -> -3.125 | U22: 3.625
B23: =IF(TSH_3A01<(CDIM_3A01-1.875),0,IF(AND(CDIM_3A01>45,CDIM_3A01<=48),16,0)) -> 0 | E23: 1 | F23: =VLOOKUP(TYPE,E19:F22,2,FALSE) ->  | H23: A780 | I23: =Frame_Width-2.5625 -> -2.5625 | J23: =Frame_Height-2.5625 -> -2.5625 | K23: -2.5625 | L23: 86.5 | O23: A144 | Q23: 1.875 | R23: 1.25 | S23: =BSW_A140 -> -3.125 | U23: 3.625
B24: =MAX(B19:B23) -> 7 | H24: A680 | I24: =MAX(GW1_A680,GW2_A680) -> -4.125 | J24: =MAX(GH1_A680,GH2_A680,GH3_A680) -> -4.125 | K24: -4.125 | L24: 88 | O24: A146 | Q24: 1.875 | R24: 1.25 | S24: =BSW_A140 -> -3.125 | U24: 3.625
F25: Opening | H25: A17A | I25: =Frame_Width-2 -> -2 | J25: =Frame_Height-5.75 -> -5.75 | K25: -2 | L25: 86 | O25: A740 | Q25: 1.4375 | R25: 1 | S25: =BSW_A740 -> -2.125 | U25: 2.9375
B26: SHAT Error | E26: 1 | F26: Exact Size | H26: A171 | I26: =Frame_Width-2 -> -2 | J26: =Frame_Height-2 -> -2 | K26: -2 | L26: 86 | O26: A744 | Q26: 1.4375 | R26: 1 | S26: =BSW_A740 -> -2.125 | U26: 2.9375
B27: =IF(ISERROR(EH<6),0,IF(AND(OR(ModelNo="A140",ModelNo="A144",ModelNo="A146",ModelNo="A740",ModelNo="A744",ModelNo="A746",ModelNo="A840",ModelNo="A844",ModelNo="A846"),EH<6,W>0,H>0,LEG>0),1,0)) -> 0 | E27: 2 | F27: Rough Opening | H27: 3A04 | I27: =Frame_Width-4.1875 -> -4.1875 | J27: =Frame_Height-4.1875 -> -4.1875 | K27: -4.1875 | L27: 88 | O27: A746 | Q27: 1.4375 | R27: 1 | S27: =BSW_A740 -> -2.125 | U27: 2.9375
B28: SHAT_MIN_R | E28: 1 | F28: =VLOOKUP(RO,E26:F27,2,FALSE) -> Exact Size | H28: 03S4 | I28: =Frame_Width-4.1875 -> -4.1875 | J28: =Frame_Height-4.1875 -> -4.1875 | K28: -4.1875 | L28: 88 | O28: A840 | Q28: 1.75 | R28: 1.25 | S28: =BSW_A840 -> -2.8125 | U28: 3.5
B29: =IF(FrameR<MINR,1,0) ->  | H29: =Model_Select -> Select Model | K29: =VLOOKUP(Model_Select,H18:L28,4,FALSE) ->  | L29: =VLOOKUP(Model_Select,H18:L28,5,FALSE) ->  | O29: A844 | Q29: 1.75 | R29: 1.25 | S29: =BSW_A840 -> -2.8125 | U29: 3.5
E30: =IF(OR(ModelNo="0100",ModelNo="01HP",ModelNo="0102",ModelNo="0103",ModelNo="0104",ModelNo="0109",ModelNo="0151",ModelNo="0152",ModelNo="0153",ModelNo="0154",ModelNo="0155",ModelNo="0170",ModelNo="0171",ModelNo="0172",ModelNo="0173",ModelNo="S174",ModelNo="S175",ModelNo="0179",ModelNo="0301"),1,0) -> 0 | F30: Screen | L30: =IF(K29>L29,1,0) ->  | O30: A846 | Q30: 1.75 | R30: 1.25 | S30: =BSW_A840 -> -2.8125 | U30: 3.5
B31: SHAT_MESSAGE | E31: 1 | F31: =IF(SCREEN1>"",SCREEN1,"") ->  | L31: =IF(L30=1,"Max Short Glass Must be Less Than "&MAX_SG,"") ->  | O31: 7SH2 | Q31: 1.4375 | S31: =BSW_7SH2 -> -1.78125 | U31: 1.9375
B32: =IF(B29=1,"R. Must be > Than "&MINR,"") ->  | E32: 2 | F32: =IF(SCREEN2>"",SCREEN2,"") ->  | O32: 7SH3 | Q32: 1.4375 | S32: =BSW_7SH3 -> -1.71875 | U32: 1.9375
E33: 3 | F33: =IF(SCREEN3>"",SCREEN3,"") ->  | O33: 8SH2 | Q33: 1.75 | S33: =BSW_8SH2 -> -2.28125 | U33: 2.25
B34: LIMIT1 & LIMIT2 | E34: 1 | F34: =IF(Screen_Type=3,"L",IF(Screen_Type=2,"F","H")) -> H | O34: 8SH3 | Q34: 1.75 | S34: =BSW_8SH3 -> -2.1875 | U34: 2.25
B35: =IF(OR(TSH>50,BSH>50),"Sash Hgt Must be < 50","") -> 
B36: =IF(AND(OR(Glass<4,Glass>5),OR(TGSF>15,BGSF>15)),"GLASS MUST BE < 15 SF",IF(AND(OR(Glass=4,Glass=5),OR(TGSF>11,BGSF>11)),"GLASS MUST BE <11 SF","")) ->  | F36: Add Grid for Weight Calc
E37: =IF(GRIDWEIGHT=TRUE,0.25,0) -> 0 | F37: FALSE
B38: =IF(AND(EXTSELECT=1,OR(SELECTEXT="Select Reinforcement",SELECTEXT="Select Extrusion")),"<< Must Select","") -> 
B39: =IF(AND(EXT_CONTROL=0,W>0,H>0,LEG>0),"<< Not a Valid Entry",IF(AND(EXT_CONTROL=1,W>0,H>0,LEG=0),"<< Need Leg Height",IF(AND(ModelNo="A140",W>0,H>0,LEG<>(Frame_Height-(Frame_Width/2))),"<< Leg Should be"&" "&(Frame_Height-(Frame_Width/2)),IF(AND(ModelNo="A144",W>0,H>0,Frame_Width>(Frame_Height-LEG)),"<< Radius Must be < than Width/2","")))) -> 
F40: =IF(AND(OR(ModelNo="73HP",ModelNo="73WP"),EXTSELECT=2),0.3125,IF(AND(OR(ModelNo="73HP",ModelNo="73WP"),EXTSELECT=3),0.4375,IF(AND(OR(ModelNo="83HP",ModelNo="83WP"),EXTSELECT=2),0.4375,IF(AND(OR(ModelNo="83HP",ModelNo="83WP"),EXTSELECT=3),0.5625,0)))) -> 0

Sheet Data (hidden)
B1: Model | C1: Description | D1: Value
A2: =IF(ModelNo=B2,1,"") ->  | B2: 3A01 | C2: Top Sash Width | D2: =Frame_Width-4.125 -> -4.125 | F2: =Model_Select -> Select Model | G2: Models | H2: Description | I2: W cut-back | J2: H-cut-back | K2: Width | L2: Height | M2: Min W | N2: Min H | O2: Max W | P2: Max H | Q2: Max UI | R2: Type1 | S2: Type2 | T2: Type3 | U2: Type4 | V2: Screen1 | W2: Screen2 | X2: Screen3 | Y2: Ext./Reinf. | Z2: Ext./Reinf. | AA2: Ext./Reinf. | AB2: Ext./Reinf. | AC2: Ext./Reinf. | AD2: Offset | AE2: Glass1 | AF2: Glass2 | AG2: Glass3 | AH2: Glass4 | AI2: Glass5 | AJ2: Glass6 | AK2: Glass7 | AL2: Glass8 | AM2: Opening | AN2: CDIM | AO2: DDIM | AP2: TSW | AQ2: TSH | AR2: TGW | AS2: TGH | AT2: TGSF | AU2: BSW | AV2: BSH | AW2: BGW | AX2: BGH | AY2: BGSF | AZ2: Bott. Sash Weight | BA2: Top Sash Weight | BB2: Bot. of Coil From CMR | BC2: Head + 4.5 | BD2: Sill + CMR | BE2: EW | BF2: EH | BQ2: Triple IG calculation | BY2: S140 Limitations
A3: =IF(ModelNo=B3,2,"") ->  | B3: 3A01 | C3: Top Sash Height | D3: =DDIM_3A01-1.625 -> -1.625 | F3: 1 | G3: Select Model
A4: =IF(ModelNo=B4,3,"") ->  | B4: 3A01 | C4: Bottom Sash Width | D4: =Frame_Width-3.125 -> -3.125 | F4: 2 | G4: 3A01 | H4: Montrose Double Hung | I4: 0 | J4: 0 | M4: 12 | N4: 20 | O4: =IF(EXTSELECT=2,48,IF(EXTSELECT=3,52,"")) ->  | P4: =IF(EXTSELECT=2,84,IF(EXTSELECT=3,96,"")) ->  | Q4: =IF(EXTSELECT=2,126,IF(EXTSELECT=3,148,"")) ->  | R4: Standard | S4: Custom | U4: =IF(AND(W>0,H>0,BTYPE="Custom",CMR=0),"<< Enter CMR Location",IF(AND(W>0,H>0,BTYPE="Custom"),"<< CMR, Bottom-Up","")) ->  | V4: Half | W4: Full | X4: Locking | Y4: Select Reinforcement | Z4: Composite | AA4: Steel | AE4: Single Strength (2.5 mm) | AF4: Double Strength (3 mm) | AG4: Triple Strength (5 mm) | AH4: Triple IG Single Strength | AI4: Triple IG Double Strength | AJ4: Laminated | AM4: =IF(RO=2,"<< Exact Size Only","") ->  | AN4: =Frame_Height-DDIM_3A01 -> 0 | AO4: =IF(TYPE=1,(Frame_Height/2),IF(TYPE=2,Frame_Height-CMR)) -> 0 | AP4: =TSW_3A01 -> -4.125 | AQ4: =TSH_3A01 -> -1.625 | AR4: =TGW_3A01 -> -5.8125 | AS4: =TGH_3A01 -> -3.25 | AT4: =(AR4*AS4)/144 -> 0.1311848958 | AU4: =BSW_3A01 -> -3.125 | AV4: =BSH_3A01 -> -0.625 | AW4: =BGW_3A01 -> -4.8125 | AX4: =BGH_3A01 -> -2.25 | AY4: =(AW4*AX4)/144 -> 0.0751953125 | AZ4: =BWGT_3A01 ->  | BA4: =TWGT_3A01 ->  | BB4: =IF(COIL=1,3.875-0.6875,3.875+((COIL-1)*1.625)-0.6875) ->  | BC4: 6 | BD4: 1.875 | BE4: =Frame_Width-5.25 -> -5.25 | BF4: =IF(AND(AV4>36.0625,(Frame_Height/2)<=CMR),CDIM_3A01-BD4-BB4-0.125,IF(OR(AND(AV4>36.0625,(Frame_Height/2)<=CMR),(Frame_Height/2)>=CMR),Frame_Height-AV4-BC4-BD4,CDIM_3A01-BD4-BB4-0.125)) -> -7.25 | BL4: 1 | BM4: Single Strength (2.5 mm) | BQ4: SS (2.2) | BR4: DS (3.2) | BS4: 4 mm | BT4: TS (5.0) | BY4: Min. W | BZ4: Min. H | CA4: Max. W | CB4: Max. H | CC4: Max. UI
A5: =IF(ModelNo=B5,4,"") ->  | B5: 3A01 | C5: Bottom Sash Height | D5: =CDIM_3A01-0.625 -> -0.625 | F5: 3 | G5: 3A02 | H5: Montrose Two Lite Slider | I5: 0 | J5: 0 | M5: 18.5 | N5: 11.25 | O5: =IF(EXTSELECT=2,72,IF(EXTSELECT=3,96,"")) ->  | P5: =IF(EXTSELECT=2,56,IF(EXTSELECT=3,72,"")) ->  | Q5: =IF(EXTSELECT=2,128,IF(EXTSELECT=3,156,"")) ->  | R5: Standard | V5: Half | W5: Full | Y5: Select Reinforcement | Z5: Composite | AA5: Steel | AE5: Single Strength (2.5 mm) | AF5: Double Strength (3 mm) | AG5: Triple Strength (5 mm) | AH5: Triple IG Single Strength | AI5: Triple IG Double Strength | AJ5: Laminated | BE5: =(Frame_Width/2)-4.75 -> -4.75 | BL5: 2 | BM5: Double Strength (3 mm) | BP5: Max. Short | BQ5: =IF(TG2W>41,0,41) -> 41 | BR5: =IF(TG2W>56,0,56) -> 56 | BS5: =IF(TG2W>67,0,67) -> 67 | BT5: =IF(TG2W>70,0,70) -> 70 | BU5: Annealed | BX5: Mezzo | BY5: 25 | BZ5: 40
A6: =IF(ModelNo=B6,5,"") ->  | B6: 3A01 | C6: Top Glass Width | D6: =TSW_3A01-1.6875 -> -5.8125 | F6: 4 | G6: 3A03 | H6: Montrose Three Lite Slider (1/4-1/2-1/4) | I6: 0 | J6: 0 | M6: 47.5 | N6: 11.25 | O6: =IF(EXTSELECT=2,108,IF(EXTSELECT=3,120,"")) ->  | P6: =IF(EXTSELECT=2,56,IF(EXTSELECT=3,72,"")) ->  | Q6: =IF(EXTSELECT=2,164,IF(EXTSELECT=3,192,"")) ->  | R6: Standard (1/4-1/2-1/4) | V6: Half | W6: Full | Y6: Select Reinforcement | Z6: Composite | AA6: Steel | AE6: Single Strength (2.5 mm) | AF6: Double Strength (3 mm) | AG6: Triple Strength (5 mm) | AH6: Triple IG Single Strength | AI6: Triple IG Double Strength | AJ6: Laminated | BE6: =(Frame_Width/4)-2.25 -> -2.25 | BL6: 3 | BM6: Triple Strength (5 mm) | BP6: Max. Long | BQ6: =IF(TG2H>62,0,62) -> 62 | BR6: =IF(TG2H>76,0,76) -> 76 | BS6: =IF(TG2H>90,0,90) -> 90 | BT6: =IF(TG2H>102,0,102) -> 102 | BU6: Annealed | BX6: Mezzo/N.F | BY6: 26 | BZ6: 41
A7: =IF(ModelNo=B7,6,"") ->  | B7: 3A01 | C7: Top Glass Height | D7: =TSH_3A01-1.625 -> -3.25 | F7: 5 | G7: 3A04 | H7: Montrose Picture Window | I7: 0 | J7: 0 | M7: 9.5 | N7: 9.5 | O7: 120 | P7: 120 | Q7: 180 | R7: Standard | AE7: Single Strength (2.5 mm) | AF7: Double Strength (3 mm) | AG7: Triple Strength (5 mm) | AH7: Triple IG Single Strength | AI7: Triple IG Double Strength | AJ7: Laminated | BL7: 4 | BM7: Triple IG Single Strrength | BP7: Max Sq.Ft. | BQ7: =IF(TG2A>12,0,12) -> 12 | BR7: =IF(TG2A>22,0,22) -> 22 | BS7: =IF(TG2A>32,0,32) -> 32 | BT7: =IF(TG2A>35,0,35) -> 35 | BU7: Annealed | BX7: New Construction | BY7: 20 | BZ7: 36
A8: =IF(ModelNo=B8,7,"") ->  | B8: 3A01 | C8: Bottom Glass Width | D8: =BSW_3A01-1.6875 -> -4.8125 | F8: 6 | G8: 3A09 | H8: Montrose Three Lite Slider Equal Lite | I8: 0 | J8: 0 | M8: 37.25 | N8: 11.25 | O8: =IF(EXTSELECT=2,108,IF(EXTSELECT=3,130,"")) ->  | P8: =IF(EXTSELECT=2,56,IF(EXTSELECT=3,72,"")) ->  | Q8: =IF(EXTSELECT=2,164,IF(EXTSELECT=3,192,"")) ->  | R8: Standard (1/3-1/3-1/3) | V8: Half | W8: Full | Y8: Select Reinforcement | Z8: Composite | AA8: Steel | AE8: Single Strength (2.5 mm) | AF8: Double Strength (3 mm) | AG8: Triple Strength (5 mm) | AH8: Triple IG Single Strength | AI8: Triple IG Double Strength | AJ8: Laminated | BE8: =(Frame_Width/3)-4.375 -> -4.375 | BL8: 5 | BM8: Triple IG Double Strength | BP8: Max. Short | BQ8: 0 | BR8: =IF(TG2W>42,0,42) -> 42 | BS8: =IF(TG2W>70,0,70) -> 70 | BT8: =IF(TG2W>70,0,70) -> 70 | BU8: Tempered | BX8: 0700 Series | BY8: 20 | BZ8: 36
A9: =IF(ModelNo=B9,8,"") ->  | B9: 3A01 | C9: Bottom Glass Height | D9: =BSH_3A01-1.625 -> -2.25 | F9: 7 | G9: 03S0 | H9: Montrose Single Hung | I9: 0 | J9: 0 | M9: 12 | N9: 22 | O9: =IF(EXTSELECT=2,48,IF(EXTSELECT=3,52,"")) ->  | P9: =IF(EXTSELECT=2,78,IF(EXTSELECT=3,96,"")) ->  | Q9: =IF(EXTSELECT=2,126,IF(EXTSELECT=3,148,"")) ->  | R9: Standard | S9: Custom | U9: =IF(AND(W>0,H>0,BTYPE="Custom",CMR=0),"<< Enter CMR Location",IF(AND(W>0,H>0,BTYPE="Custom"),"<< CMR, Bottom-Up","")) ->  | V9: Half | W9: Full | X9: Locking | Y9: Select Reinforcement | Z9: Composite | AA9: Steel | AE9: Single Strength (2.5 mm) | AF9: Double Strength (3 mm) | AG9: Triple Strength (5 mm) | AH9: Triple IG Single Strength | AI9: Triple IG Double Strength | AJ9: Laminated | AN9: =Frame_Height-DDIM_03S0 -> 0 | AO9: =IF(TYPE=1,(Frame_Height/2),IF(TYPE=2,Frame_Height-CMR)) -> 0 | AR9: =TGW_03S0 -> -4.6875 | AS9: =TGH_03S0 -> -2.59375 | AT9: =(AR9*AS9)/144 -> 0.08443196615 | AU9: =BSW_03S0 -> -3.125 | AV9: =BSH_03S0 -> -1.125 | AW9: =BGW_03S0 -> -4.8125 | AX9: =BGH_03S0 -> -2.75 | AY9: =(AW9*AX9)/144 -> 0.09190538194 | AZ9: =BWGT_03S0 ->  | BB9: =IF(COIL=1,3.875-0.6875,3.875+((COIL-1)*1.625)-0.6875) ->  | BC9: 6 | BD9: 1.875 | BE9: =Frame_Width-5.8125 -> -5.8125 | BF9: =IF(AND(AV9>36.0625,(Frame_Height/2)<=CMR),CDIM_03S0-BD9-BB9-0.125,IF(OR(AND(AV9>36.0625,(Frame_Height/2)<=CMR),(Frame_Height/2)>=CMR),Frame_Height-AV9-BC9-BD9,CDIM_03S0-BD9-BB9-0.125)) -> -6.75 | BL9: 6 | BM9: Laminated | BP9: Max. Long | BQ9: 0 | BR9: =IF(TG2H>84,0,84) -> 84 | BS9: =IF(TG2H>129,0,129) -> 129 | BT9: =IF(TG2H>129,0,129) -> 129 | BU9: Tempered | BX9: Fusion | BY9: 23.5 | BZ9: 38
A10: =IF(ModelNo=B10,9,"") ->  | B10: 3A01 | C10: Top Sash Stop Length | D10: =SASHSTOP3001 -> 7 | F10: 8 | G10: 03S2 | H10: Montrose Two Lite Single Slider | I10: 0 | J10: 0 | M10: 18.5 | N10: 12 | O10: =IF(EXTSELECT=2,72,IF(EXTSELECT=3,96,"")) ->  | P10: =IF(EXTSELECT=2,56,IF(EXTSELECT=3,72,"")) ->  | Q10: =IF(EXTSELECT=2,128,IF(EXTSELECT=3,156,"")) ->  | R10: Standard | V10: Half | W10: Full | Y10: Select Reinforcement | Z10: Composite | AA10: Steel | AE10: Single Strength (2.5 mm) | AF10: Double Strength (3 mm) | AG10: Triple Strength (5 mm) | AH10: Triple IG Single Strength | AI10: Triple IG Double Strength | AJ10: Laminated | BL10: 7 | BM10: HP Package | BP10: Max Sq.Ft. | BQ10: 0 | BR10: =IF(TG2A>24.5,0,24.5) -> 24.5 | BS10: =IF(TG2A>42,0,42) -> 42 | BT10: =IF(TG2A>42,0,42) -> 42 | BU10: Tempered | BX10: 1700 | BY10: 24
A11: =IF(ModelNo=B11,10,"") ->  | B11: 3A01 | C11: Screen Width | D11: =IF(Screen="H",Frame_Width-4.5,Frame_Width-4.5625) -> -4.5 | F11: 9 | G11: 03S3 | H11: Montrose Three Lite Slider (1/4-1/2-1/4) | I11: 0 | J11: 0 | M11: 52 | N11: 12 | O11: =IF(EXTSELECT=2,108,IF(EXTSELECT=3,130,"")) ->  | P11: =IF(EXTSELECT=2,56,IF(EXTSELECT=3,72,"")) ->  | Q11: =IF(EXTSELECT=2,164,IF(EXTSELECT=3,182,"")) ->  | R11: Standard (1/4-1/2-1/4) | V11: Half | W11: Full | Y11: Select Reinforcement | Z11: Composite | AA11: Steel | AE11: Single Strength (2.5 mm) | AF11: Double Strength (3 mm) | AG11: Triple Strength (5 mm) | AH11: Triple IG Single Strength | AI11: Triple IG Double Strength | AJ11: Laminated | BL11: 8 | BM11: Impact Laminated | BQ11: =IF(AND(BQ5>0,BQ6>0,BQ7>0),1,0) -> 1 | BR11: =IF(AND(BR5>0,BR6>0,BR7>0),1,0) -> 1 | BS11: =IF(AND(BS5>0,BS6>0,BS7>0),1,0) -> 1 | BT11: =IF(AND(BT5>0,BT6>0,BT7>0),1,0) -> 1 | BU11: =IF(BQ11>0,"≥SS Annealed",IF(BR11>0,"≥DS Annealed",IF(BT11>0,"TS Annealed",""))) -> ≥SS Annealed | BX11: 1900 | BY11: 24
A12: =IF(ModelNo=B12,11,"") ->  | B12: 3A01 | C12: Screen Height | D12: =IF(Screen="L",TRUNC((CDIM_3A01-0.75)*16+0.5)/16,IF(Screen="F",TRUNC((Frame_Height-3.3125)*16+0.5)/16,TRUNC((CDIM_3A01-0.75)*16+0.5)/16)) -> -0.6875 | F12: 10 | G12: 03S4 | H12: Montrose Picture Window | I12: 0 | J12: 0 | M12: 9.5 | N12: 9.5 | O12: 120 | P12: 120 | Q12: 180 | R12: Standard | AE12: Single Strength (2.5 mm) | AF12: Double Strength (3 mm) | AG12: Triple Strength (5 mm) | AH12: Triple IG Single Strength | AI12: Triple IG Double Strength | AJ12: Laminated | BR12: =IF(AND(BR8>0,BR9>0,BR10>0),1,0) -> 1 | BS12: =IF(AND(BS8>0,BS9>0,BS10>0),1,0) -> 1 | BT12: =IF(AND(BT8>0,BT9>0,BT10>0),1,0) -> 1 | BU12: =IF(BR12>0,"≥DS Tempered",IF(BT12>0,"TS Tempered","")) -> ≥DS Tempered
A13: =IF(ModelNo=B13,12,"") ->  | B13: 3A01 | C13: Top Sash Weight (Plus 1 lb) | D13: =IF(ISERROR(TOP_WGT&" "&"lb"),"N/A",TOP_WGT&" "&"lb") -> 0 lb | F13: 11 | G13: 03S9 | H13: Montrose Three Lite Slider Equal Lite | I13: 0 | J13: 0 | M13: 52 | N13: 12 | O13: =IF(EXTSELECT=2,108,IF(EXTSELECT=3,130,"")) ->  | P13: =IF(EXTSELECT=2,56,IF(EXTSELECT=3,72,"")) ->  | Q13: =IF(EXTSELECT=2,164,IF(EXTSELECT=3,192,"")) ->  | R13: Standard (1/3-1/3-1/3) | V13: Half | W13: Full | Y13: Select Reinforcement | Z13: Composite | AA13: Steel | AE13: Single Strength (2.5 mm) | AF13: Double Strength (3 mm) | AG13: Triple Strength (5 mm) | AH13: Triple IG Single Strength | AI13: Triple IG Double Strength | AJ13: Laminated | BQ13: 2.5 mm | BR13: 3.2 mm | BS13: 4 mm | BT13: 5 mm
A14: =IF(ModelNo=B14,13,"") ->  | B14: 3A01 | C14: Top Balance Size (C.F) | D14: =IF(ISERROR((VLOOKUP(TOP_WGT,CFB,2,FALSE))),"N/A",(VLOOKUP(TOP_WGT,CFB,2,FALSE))) -> N/A | F14: 12 | G14: A581 | H14: 80 Series Single Hung | I14: 0.5 | J14: 0.5 | M14: =IF(AND(W>0,H>0,Frame_Height>=30),10.5,15) -> 15 | N14: =IF(AND(W>0,H>0,Frame_Width>=15),24,30) -> 30 | O14: 54 | P14: 96 | Q14: 144 | R14: Standard | S14: Custom | U14: =IF(AND(W>0,H>0,BTYPE="Custom",CMR=0),"<< Enter CMR Location",IF(AND(W>0,H>0,BTYPE="Custom"),"<< CMR, Bottom-Up","")) ->  | V14: Half Only | AE14: Single Strength (2.5 mm) | AF14: Double Strength (3 mm) | AG14: Triple Strength (5 mm) | AH14: Triple IG Single Strength | AI14: Triple IG Double Strength | AJ14: Laminated | AM14: << Select Opening | AN14: =IF(TYPE=1,TRUNC((Frame_Height/2)*16+0.5)/16,IF(TYPE=2,TRUNC((CMR-0.25)*16+0.5)/16,0)) -> 0 | AO14: =Frame_Height-CDIM_A581 -> 0 | AR14: =Frame_Width-2.5625 -> -2.5625 | AS14: =DDIM_A581-2 -> -2 | AT14: =(AR14*AS14)/144 -> 0.03559027778 | AU14: =Frame_Width-2.8125 -> -2.8125 | AV14: =CDIM_A581-1.5 -> -1.5 | AW14: =BSW_A581-2.5625 -> -5.375 | AX14: =BSH_A581-2.5625 -> -4.0625 | AY14: =(AW14*AX14)/144 -> 0.1516384549 | AZ14: =BWGT_A581 ->  | BD14: 1.75 | BE14: =Frame_Width-3.625 -> -3.625 | BF14: =IF(AND(TYPE=2,CMR>=(Frame_Height/2)),Frame_Height-3.75-BD14-BSH_A581,IF(AND(TYPE=2,CMR<(Frame_Height/2)),CMR-1.4375-BD14,Frame_Height/2-BD14-2.25)) -> -4 | BP14: Max. Short | BQ14: =IF(TG2H>41,0,41) -> 41 | BR14: =IF(TG2H>56,0,56) -> 56 | BS14: =IF(TG2H>67,0,67) -> 67 | BT14: =IF(TG2H>70,0,70) -> 70 | BU14: Annealed
A15: =IF(ModelNo=B15,14,"") ->  | B15: 3A01 | C15: Bottom Sash Weight | D15: =IF(ISERROR(BTM_WGT&" "&"lb"),"N/A",BTM_WGT&" "&"lb") -> 0 lb | F15: 13 | G15: A580 | H15: 80 Series Picture Window | I15: 0.5 | J15: 0.5 | M15: 10.5 | N15: 10.5 | O15: 120 | P15: 120 | Q15: 180 | R15: Standard | AE15: Single Strength (2.5 mm) | AF15: Double Strength (3 mm) | AG15: Triple Strength (5 mm) | AH15: Triple IG Single Strength | AI15: Triple IG Double Strength | AJ15: Laminated | AM15: << Select Opening | BP15: Max. Long | BQ15: =IF(TG2W>62,0,62) -> 62 | BR15: =IF(TG2W>76,0,76) -> 76 | BS15: =IF(TG2W>90,0,90) -> 90 | BT15: =IF(TG2W>102,0,102) -> 102 | BU15: Annealed
A16: =IF(ModelNo=B16,15,"") ->  | B16: 3A01 | C16: Bottom Balance Size (C.F) | D16: =IF(ISERROR((VLOOKUP(BTM_WGT,CFB,2,FALSE))),"N/A",(VLOOKUP(BTM_WGT,CFB,2,FALSE))) -> N/A | F16: 14 | G16: A280 | H16: 80 Series Picture Window | I16: 0.5 | J16: 0.5 | M16: 10.5 | N16: 10.5 | O16: 120 | P16: 120 | Q16: 180 | R16: Standard | AE16: Single Strength (2.5 mm) | AF16: Double Strength (3 mm) | AG16: Triple Strength (5 mm) | AH16: Triple IG Single Strength | AI16: Triple IG Double Strength | AJ16: Laminated | AM16: << Select Opening | BP16: Max Sq.Ft. | BQ16: =IF(TG2A>12,0,12) -> 12 | BR16: =IF(TG2A>22,0,22) -> 22 | BS16: =IF(TG2A>32,0,32) -> 32 | BT16: =IF(TG2A>35,0,35) -> 35 | BU16: Annealed
A17: =IF(ModelNo=B17,16,"") ->  | B17: 3A01 | C17: Egress Opening Width | D17: =IF(ISERROR(EW),"N/A",EW) -> 0 | F17: 15 | G17: A282 | H17: 80 Series Single Slider | I17: 0.5 | J17: 0.5 | M17: =IF(AND(W>0,H>0,Frame_Height>=14.5),20,29.5) -> 29.5 | N17: =IF(AND(W>0,H>0,Frame_Width>=29.5),10.5,14.5) -> 14.5 | O17: 96 | P17: 72 | Q17: 168 | R17: Standard | S17: Custom | U17: =IF(AND(W>0,H>0,BTYPE="Custom",CMR=0),"<< Enter CMR Location",IF(AND(W>0,H>0,BTYPE="Custom"),"<< CMR, Left to Right","")) ->  | V17: Half | W17: Full | AE17: Single Strength (2.5 mm) | AF17: Double Strength (3 mm) | AG17: Triple Strength (5 mm) | AH17: Triple IG Single Strength | AI17: Triple IG Double Strength | AJ17: Laminated | AM17: << Select Opening | AN17: =IF(TYPE=1,TRUNC((Frame_Width/2)*16+0.5)/16,IF(TYPE=2,TRUNC((CMR-0.25)*32+0.5)/32,0)) -> 0 | AO17: =Frame_Width-CDIM_A282 -> 0 | BP17: Max. Short | BQ17: 0 | BR17: =IF(TG2H>42,0,42) -> 42 | BS17: =IF(TG2H>70,0,70) -> 70 | BT17: =IF(TG2H>70,0,70) -> 70 | BU17: Tempered
A18: =IF(ModelNo=B18,17,"") ->  | B18: 3A01 | C18: Egress Opening Height | D18: =IF(ISERROR(EH),"N/A",EH) -> 0 | F18: 16 | G18: A283 | H18: 80 Series Three Lite Slider | I18: 0.5 | J18: 0.5 | M18: 40 | N18: 10.5 | O18: 120 | P18: 72 | Q18: 192 | R18: 1/4-1/2-1/4 | S18: 1/3-1/3-1/3 | T18: Custom | U18: =IF(AND(W>0,H>0,BTYPE="Custom",CMR=0),"<< Enter CMR Location",IF(AND(W>0,H>0,BTYPE="Custom"),"<< CMR, Ends to M.R","")) ->  | V18: Half | W18: Full | AE18: Single Strength (2.5 mm) | AF18: Double Strength (3 mm) | AG18: Triple Strength (5 mm) | AH18: Triple IG Single Strength | AI18: Triple IG Double Strength | AJ18: Laminated | AM18: << Select Opening | AN18: =IF(TYPE=1,TRUNC(((W/4)-0.25)*16+0.5)/16,IF(TYPE=2,TRUNC(((W/3)-0.25)*16+0.5)/16,IF(TYPE=3,TRUNC((CMR-0.25)*16+0.5)/16,0))) -> -0.1875 | AO18: =TRUNC((Frame_Width-(CDIM_A283*2))*16+0.5)/16 -> 0.375 | BP18: Max. Long | BQ18: 0 | BR18: =IF(TG2W>84,0,84) -> 84 | BS18: =IF(TG2W>129,0,129) -> 129 | BT18: =IF(TG2W>129,0,129) -> 129 | BU18: Tempered
A19: =IF(ModelNo=B19,18,"") ->  | B19: 3A01 | C19: Egress Opening Area (sq.ft.) | D19: =ROUNDUP(((D17*D18)/144),4) -> 0 | F19: 17 | G19: A780 | H19: 80 Series. Picture Window | I19: 0.5 | J19: 0.5 | M19: 10 | N19: 10 | O19: 120 | P19: 120 | Q19: 180 | R19: Standard | AE19: Single Strength (2.5 mm) | AF19: Double Strength (3 mm) | AG19: Triple Strength (5 mm) | AH19: Triple IG Single Strength | AI19: Triple IG Double Strength | AJ19: Laminated | AM19: << Select Opening | BP19: Max Sq.Ft. | BQ19: 0 | BR19: =IF(TG2A>24.5,0,24.5) -> 24.5 | BS19: =IF(TG2A>42,0,42) -> 42 | BT19: =IF(TG2A>42,0,42) -> 42 | BU19: Tempered
A20: =IF(ModelNo=B20,1,"") ->  | B20: 03S0 | C20: Bottom Sash Width | D20: =Frame_Width-3.125 -> -3.125 | F20: 18 | G20: 8SH2 | H20: 80 Series Twin Single Hung | I20: 0.5 | J20: 0.5 | M20: 30 | N20: 24 | O20: 72 | P20: 72 | Q20: 144 | R20: Standard | S20: Custom | U20: =IF(AND(W>0,H>0,BTYPE="Custom",CMR=0),"<< Enter CMR Location",IF(AND(W>0,H>0,BTYPE="Custom"),"<< CMR, Bottom-Up","")) ->  | V20: Half Only | AE20: Single Strength (2.5 mm) | AF20: Double Strength (3 mm) | AG20: Triple Strength (5 mm) | AH20: Triple IG Single Strength | AI20: Triple IG Double Strength | AJ20: Laminated | AM20: << Select Opening | AN20: =IF(TYPE=1,Frame_Height/2,IF(TYPE=2,CMR-0.25,0)) -> 0 | AO20: =Frame_Height-CDIM_8SH2 -> 0 | AR20: =TRUNC((Frame_Width/2-2.125)*32+0.5)/32 -> -2.09375 | AS20: =DDIM_8SH2-2 -> -2 | AT20: =(AR20*AS20)/144 -> 0.02907986111 | AU20: =TRUNC((Frame_Width/2-2.3125)*32+0.5)/32 -> -2.28125 | AV20: =CDIM_8SH2-1.5 -> -1.5 | AW20: =BSW_8SH2-2.5625 -> -4.84375 | AX20: =BSH_8SH2-2.5 -> -4 | AY20: =(BGW_8SH2*BGH_8SH2)/144 -> 0.1345486111 | AZ20: =BWGT_8SH2 ->  | BD20: 1.75 | BE20: =(Frame_Width/2)-3.0625 -> -3.0625 | BF20: =IF(AND(TYPE=2,CMR>=(Frame_Height/2)),Frame_Height-3.75-BD20-BSH_8SH2,IF(AND(TYPE=2,CMR<(Frame_Height/2)),CMR-1.4375-BD20,Frame_Height/2-BD20-2.25)) -> -4 | BQ20: =IF(AND(BQ14>0,BQ15>0,BQ16>0),1,0) -> 1 | BR20: =IF(AND(BR14>0,BR15>0,BR16>0),1,0) -> 1 | BS20: =IF(AND(BS14>0,BS15>0,BS16>0),1,0) -> 1 | BT20: =IF(AND(BT14>0,BT15>0,BT16>0),1,0) -> 1 | BU20: =IF(BQ20>0,"≥SS Annealed",IF(BR20>0,"≥DS Annealed",IF(BT20>0,"TS Annealed",""))) -> ≥SS Annealed
A21: =IF(ModelNo=B21,2,"") ->  | B21: 03S0 | C21: Bottom Sash Height | D21: =CDIM_03S0-1.125 -> -1.125 | F21: 19 | G21: 8SH3 | H21: 80 Series Triple Single Hung | I21: 0.5 | J21: 0.5 | M21: 45 | N21: 24 | O21: 120 | P21: 96 | Q21: 194 | R21: Standard | S21: Custom | U21: =IF(AND(W>0,H>0,BTYPE="Custom",CMR=0),"<< Enter CMR Location",IF(AND(W>0,H>0,BTYPE="Custom"),"<< CMR, Bottom-Up","")) ->  | V21: Half Only | AE21: Single Strength (2.5 mm) | AF21: Double Strength (3 mm) | AG21: Triple Strength (5 mm) | AH21: Triple IG Single Strength | AI21: Triple IG Double Strength | AJ21: Laminated | AM21: << Select Opening | AN21: =IF(TYPE=1,Frame_Height/2,IF(TYPE=2,CMR-0.25,0)) -> 0 | AO21: =Frame_Height-CDIM_8SH3 -> 0 | AR21: =TRUNC(((Frame_Width/3)-2.03125)*32+0.5)/32 -> -2 | AS21: =DDIM_8SH3-2 -> -2 | AT21: =(AR21*AS21)/144 -> 0.02777777778 | AU21: =TRUNC(((Frame_Width/3)-2.779875+0.57)*32+0.5)/32 -> -2.1875 | AV21: =CDIM_8SH3-1.5 -> -1.5 | AW21: =BSW_8SH3-2.5 -> -4.6875 | AX21: =BSH_8SH3-2.5 -> -4 | AY21: =(BGW_8SH3*BGH_8SH3)/144 -> 0.1302083333 | AZ21: =BWGT_8SH3 ->  | BD21: 1.75 | BE21: =BSW_8SH3-0.6875 -> -2.875 | BF21: =IF(AND(TYPE=2,CMR>=(Frame_Height/2)),Frame_Height-3.75-BD21-BSH_8SH3,IF(AND(TYPE=2,CMR<(Frame_Height/2)),CMR-1.4375-BD21,Frame_Height/2-BD21-2.25)) -> -4 | BR21: =IF(AND(BR17>0,BR18>0,BR19>0),1,0) -> 1 | BS21: =IF(AND(BS17>0,BS18>0,BS19>0),1,0) -> 1 | BT21: =IF(AND(BT17>0,BT18>0,BT19>0),1,0) -> 1 | BU21: =IF(BR21>0,"≥DS Tempered",IF(BT21>0,"TS Tempered","")) -> ≥DS Tempered
A22: =IF(ModelNo=B22,3,"") ->  | B22: 03S0 | C22: Bottom Glass Width | D22: =BSW_03S0-1.6875 -> -4.8125 | F22: 20 | G22: 82HP | H22: 80 Series Twin Stacked P.W | I22: 0.5 | J22: 0.5 | M22: 12 | N22: 24 | O22: 44 | P22: 84 | Q22: 120 | R22: Standard | S22: Custom | U22: =IF(AND(W>0,H>0,BTYPE="Custom",CMR=0),"<< Enter CMR Location",IF(AND(W>0,H>0,BTYPE="Custom"),"<< CMR Bottom-Up","")) ->  | Y22: Select Extrusion | Z22: Slider Frame (280/580) | AA22: P.W Frame (A780) | AD22: =IF(EXTSELECT=3,2,2.125) -> 2.125 | AE22: Single Strength (2.5 mm) | AF22: Double Strength (3 mm) | AG22: Triple Strength (5 mm) | AH22: Triple IG Single Strength | AI22: Triple IG Double Strength | AJ22: Laminated | AM22: << Select Opening | BP22: =IF(AND(OR(BU11="≥SS Annealed",BU11="≥DS Annealed",BU12="≥DS Tempered",BU20="≥SS Annealed",BU20="≥DS Annealed",BU21="≥DS Tempered")),"TIG","") -> TIG | BQ22: =IF(AND(ANNEALED1=0,ANNEALED2=0,OR(TEMPERED1>0,TEMPERED2>0)),"Tempered is Required for TIG","") -> 
A23: =IF(ModelNo=B23,4,"") ->  | B23: 03S0 | C23: Bottom Glass Height | D23: =BSH_03S0-1.625 -> -2.75 | F23: 21 | G23: 82WP | H23: 80 Series Twin Side by Side P.W | I23: 0.5 | J23: 0.5 | M23: 24 | N23: 12 | O23: 84 | P23: 44 | Q23: 120 | R23: Standard | S23: Custom | U23: =IF(AND(W>0,H>0,BTYPE="Custom",CMR=0),"<< Enter CMR Location",IF(AND(W>0,H>0,BTYPE="Custom"),"<< CMR, Left to Right","")) ->  | Y23: Select Extrusion | Z23: Slider Frame (280/580) | AA23: P.W Frame (A780) | AD23: =IF(EXTSELECT=3,2,2.125) -> 2.125 | AE23: Single Strength (2.5 mm) | AF23: Double Strength (3 mm) | AG23: Triple Strength (5 mm) | AH23: Triple IG Single Strength | AI23: Triple IG Double Strength | AJ23: Laminated | AM23: << Select Opening | BP23: Model | BQ23: Width | BR23: Height | BS23: Area | BT23: Balance
A24: =IF(ModelNo=B24,5,"") ->  | B24: 03S0 | C24: Top Glass Width | D24: =TRUNC((Frame_Width-4.75)*16+0.5)/16 -> -4.6875 | F24: 22 | G24: 83HP | H24: 80 Series Triple Stacked P.W | I24: 0.5 | J24: 0.5 | M24: 12 | N24: 36 | O24: 84 | P24: 108 | Q24: 168 | R24: Standard | S24: Custom | U24: =IF(AND(W>0,H>0,BTYPE="Custom",CMR=0),"<< Enter CMR Location",IF(AND(W>0,H>0,BTYPE="Custom"),"<< CMR Bottom-Up","")) ->  | Y24: Select Extrusion | Z24: Slider Frame (280/580) | AA24: P.W Frame (A780) | AD24: 2.5625 | AE24: Single Strength (2.5 mm) | AF24: Double Strength (3 mm) | AG24: Triple Strength (5 mm) | AH24: Triple IG Single Strength | AI24: Triple IG Double Strength | AJ24: Laminated | AM24: << Select Opening | AN24: =TRUNC((IF(TYPE=1,Frame_Height/3,IF(TYPE=2,CMR,0))*16+0.5))/16 -> 0 | BO24: =IF(ModelNo=BP24,ModelNo,0) -> 0 | BP24: 3A01 | BQ24: =MAX(BGW_3A01,TGW_3A01) -> -4.8125 | BR24: =MAX(BGH_3A01,TGH_3A01) -> -2.25 | BS24: =(BQ24*BR24)/144 -> 0.0751953125 | BT24: =IF(AND(OR(Glass=4,Glass=5),OR((ISERROR((VLOOKUP(TOP_WGT,CFB,2,FALSE)))),(ISERROR((VLOOKUP(BTM_WGT,CFB,2,FALSE)))))),1,IF(AND(Glass=3,Single_ST=0),1,0)) -> 0
A25: =IF(ModelNo=B25,6,"") ->  | B25: 03S0 | C25: Top Glass Height | D25: =TRUNC((DDIM_03S0-2.625)*32+0.5)/32 -> -2.59375 | F25: 23 | G25: 83WP | H25: 80 Series Triple Side by Side P.W | I25: 0.5 | J25: 0.5 | M25: 36 | N25: 12 | O25: 108 | P25: 84 | Q25: 168 | R25: Standard | S25: Custom | U25: =IF(AND(W>0,H>0,BTYPE="Custom",CMR=0),"<< Enter CMR Location",IF(AND(W>0,H>0,BTYPE="Custom"),"<< CMR, Ends to Mull","")) ->  | Y25: Select Extrusion | Z25: Slider Frame (280/580) | AA25: P.W Frame (A780) | AD25: 2.5625 | AE25: Single Strength (2.5 mm) | AF25: Double Strength (3 mm) | AG25: Triple Strength (5 mm) | AH25: Triple IG Single Strength | AI25: Triple IG Double Strength | AJ25: Laminated | AM25: << Select Opening | AN25: =TRUNC((IF(TYPE=1,Frame_Width/3,IF(TYPE=2,CMR,0))*16+0.5))/16 -> 0 | BO25: 0 | BP25: 3A02 | BQ25: =GW_3A02 -> -2.5625 | BR25: =GH_3A02 -> -5.4375 | BS25: =(BQ25*BR25)/144 -> 0.09676106771
A26: =IF(ModelNo=B26,7,"") ->  | B26: 03S0 | C26: Astragal Length | D26: =TRUNC((Frame_Width-4)*16+0.5)/16 -> -3.9375 | F26: 24 | G26: A570 | H26: 70 Series Picture Window | I26: 0.5 | J26: 0.5 | M26: 8.5 | N26: 8.5 | O26: 79 | P26: 79 | Q26: 158 | R26: Standard | AE26: Single Strength (2.5 mm) | AF26: Double Strength (3 mm) | AG26: Triple Strength (5 mm) | AH26: Triple IG Single Strength | AI26: Triple IG Double Strength | AJ26: Laminated | AM26: << Select Opening | BO26: 0 | BP26: 3A03 | BQ26: =MAX(OGW_3A03,FGW_3A03) -> -1.5 | BR26: =MAX(OGH_3A03,FGH_3A03) -> -5.4375 | BS26: 0.056640625
A27: =IF(ModelNo=B27,8,"") ->  | B27: 03S0 | C27: Screen Width | D27: =Frame_Width-4.5 -> -4.5 | F27: 25 | G27: A571 | H27: 70 Series Single Hung | I27: 0.5 | J27: 0.5 | M27: =IF(AND(W>0,H>0,Frame_Height>=29.5),10,14.5) -> 14.5 | N27: =IF(AND(W>0,H>0,Frame_Width>=14.5),23.5,29.5) -> 29.5 | O27: 48 | P27: 96 | Q27: 144 | R27: Standard | S27: Custom | U27: =IF(AND(W>0,H>0,BTYPE="Custom",CMR=0),"<< Enter CMR Location",IF(AND(W>0,H>0,BTYPE="Custom"),"<< CMR, Bottom-Up","")) ->  | V27: Half Only | AE27: Single Strength (2.5 mm) | AF27: Double Strength (3 mm) | AG27: Triple Strength (5 mm) | AH27: Triple IG Single Strength | AI27: Triple IG Double Strength | AJ27: Laminated | AM27: << Select Opening | AN27: =IF(TYPE=1,TRUNC((Frame_Height/2)*16+0.5)/16,IF(TYPE=2,TRUNC((CMR-0.25)*16+0.5)/16,0)) -> 0 | AO27: =Frame_Height-CDIM_A571 -> 0 | AR27: =TGW_A571 -> -2.3125 | AS27: =TGH_A571 -> -1.8125 | AT27: =(AR27*AS27)/144 -> 0.02910698785 | AU27: =BSW_A571 -> -2.125 | AV27: =BSH_A571 -> -0.875 | AW27: =BGW_A571 -> -4.3125 | AX27: =BGH_A571 -> -3.0625 | AY27: =(AW27*AX27)/144 -> 0.09171549479 | AZ27: =BWGT_A571 ->  | BD27: 1.4375 | BE27: =Frame_Width-3 -> -3 | BF27: =IF(AND(TYPE=2,CMR>=(Frame_Height/2)),Frame_Height-3.5-BD27-BSH_A571,IF(AND(TYPE=2,CMR<(Frame_Height/2)),CMR-1.4375-BD27,Frame_Height/2-BD27-2.125)) -> -3.5625 | BO27: 0 | BP27: 3A04 | BQ27: =GW_3A04 -> -4.1875 | BR27: =GH_3A04 -> -4.1875 | BS27: 0.1217719184
A28: =IF(ModelNo=B28,9,"") ->  | B28: 03S0 | C28: Screen Height | D28: =IF(Screen="F",Frame_Height-3.3125,IF(Screen="L",CDIM_03S0-1.0625,CDIM_03S0-1.3125)) -> -1.3125 | F28: 26 | G28: A270 | H28: 70 Series Picture Window | I28: 0.5 | J28: 0.5 | M28: 8.5 | N28: 8.5 | O28: 79 | P28: 79 | Q28: 158 | R28: Standard | AE28: Single Strength (2.5 mm) | AF28: Double Strength (3 mm) | AG28: Triple Strength (5 mm) | AH28: Triple IG Single Strength | AI28: Triple IG Double Strength | AJ28: Laminated | AM28: << Select Opening | BO28: 0 | BP28: 3A09 | BQ28: =MAX(OGW_3A09,FGW_3A09) -> -1.875 | BR28: =MAX(OGH_3A09,FGH_3A09) -> -5.4375 | BS28: 0.07080078125
A29: =IF(ModelNo=B29,10,"") ->  | B29: 03S0 | C29: Bottom Sash Weight | D29: =IF(ISERROR(BTM_WGT&" "&"lb"),"N/A",BTM_WGT&" "&"lb") -> 0 lb | F29: 27 | G29: A272 | H29: 70 Series Single Slider | I29: 0.5 | J29: 0.5 | M29: 18 | N29: 8.5 | O29: 72 | P29: 72 | Q29: 144 | R29: Standard | S29: Custom | U29: =IF(AND(W>0,H>0,BTYPE="Custom",CMR=0),"<< Enter CMR Location",IF(AND(W>0,H>0,BTYPE="Custom"),"<< CMR, Left to Right","")) ->  | V29: Half | W29: Full | AE29: Single Strength (2.5 mm) | AF29: Double Strength (3 mm) | AG29: Triple Strength (5 mm) | AH29: Triple IG Single Strength | AI29: Triple IG Double Strength | AJ29: Laminated | AM29: << Select Opening | AN29: =IF(TYPE=1,TRUNC(((Frame_Width/2))*16+0.5)/16,IF(TYPE=2,CMR-0.25)) -> 0 | AO29: =Frame_Width-CDIM_A272 -> 0 | BO29: 0 | BP29: 03S0 | BQ29: =MAX(TGW_03S0,BGW_03S0) -> -4.6875 | BR29: =MAX(TGH_03S0,BGH_03S0) -> -2.59375 | BS29: 0.08443196615 | BT29: =IF(AND(OR(Glass=4,Glass=5),(ISERROR((VLOOKUP(BTM_WGT,CFB,2,FALSE))))),1,IF(AND(Glass=3,Single_ST=0),1,0)) -> 0
A30: =IF(ModelNo=B30,11,"") ->  | B30: 03S0 | C30: Balance Size | D30: =IF(ISERROR((VLOOKUP(BTM_WGT,CFB,2,FALSE))&(VLOOKUP(BTM_WGT,CFB,3,FALSE))),"N/A",(VLOOKUP(BTM_WGT,CFB,2,FALSE))) -> N/A | F30: 28 | G30: A273 | H30: 70 Series Three Lite Slider | I30: 0.5 | J30: 0.5 | M30: =IF(AND(W>0,H>0,Frame_Height>=14.5),47.5,71.5) -> 71.5 | N30: =IF(AND(W>0,H>0,Frame_Width>=71.5),9.5,14.5) -> 14.5 | O30: 120 | P30: 72 | Q30: 192 | R30: 1/4-1/2-1/4 | S30: 1/3-1/3-1/3 | T30: Custom | U30: =IF(AND(W>0,H>0,BTYPE="Custom",CMR=0),"<< Enter CMR Location",IF(AND(W>0,H>0,BTYPE="Custom"),"<< CMR, Ends to M.R","")) ->  | V30: Half | W30: Full | AE30: Single Strength (2.5 mm) | AF30: Double Strength (3 mm) | AG30: Triple Strength (5 mm) | AH30: Triple IG Single Strength | AI30: Triple IG Double Strength | AJ30: Laminated | AM30: << Select Opening | AN30: =IF(TYPE=1,TRUNC(((W/4)-0.25)*16+0.5)/16,IF(TYPE=2,TRUNC(((W/3)-0.25)*16+0.5)/16,IF(TYPE=3,TRUNC((CMR-0.25)*16+0.5)/16,0))) -> -0.1875 | AO30: =TRUNC((Frame_Width-(CDIM_A273*2))*16+0.5)/16 -> 0.375 | BO30: 0 | BP30: 03S2 | BQ30: =MAX(SGW_03S2,FGW_03S2) -> -2.5625 | BR30: =MAX(SGH_03S2,FGH_03S2) -> -4.6875 | BS30: 0.08341471354
A31: =IF(ModelNo=B31,12,"") ->  | B31: 03S0 | C31: Egress Opening Width | D31: =IF(ISERROR(EW),"N/A",EW) -> 0 | F31: 29 | G31: A770 | H31: 70 Series Picture Window | I31: 0.5 | J31: 0.5 | M31: 8.5 | N31: 8.5 | O31: 120 | P31: 120 | Q31: 180 | R31: Standard | AE31: Single Strength (2.5 mm) | AF31: Double Strength (3 mm) | AG31: Triple Strength (5 mm) | AH31: Triple IG Single Strength | AI31: Triple IG Double Strength | AJ31: Laminated | AM31: << Select Opening | BO31: 0 | BP31: 03S3 | BQ31: =MAX(OGW_03S3,FGW_03S3) -> -1.5 | BR31: =MAX(OGH_03S3,FGH_03S3) -> -4.6875 | BS31: 0.048828125
A32: =IF(ModelNo=B32,13,"") ->  | B32: 03S0 | C32: Egress Opening Height | D32: =IF(ISERROR(EH),"N/A",EH) -> 0 | F32: 30 | G32: 7SH2 | H32: 70 Series Twin Single Hung | I32: 0.5 | J32: 0.5 | M32: 30 | N32: 24 | O32: 84 | P32: 72 | Q32: 156 | R32: Standard | S32: Custom | U32: =IF(AND(W>0,H>0,BTYPE="Custom",CMR=0),"<< Enter CMR Location",IF(AND(W>0,H>0,BTYPE="Custom"),"<< CMR, Bottom-Up","")) ->  | V32: Half Only | AE32: Single Strength (2.5 mm) | AF32: Double Strength (3 mm) | AG32: Triple Strength (5 mm) | AH32: Triple IG Single Strength | AI32: Triple IG Double Strength | AJ32: Laminated | AM32: << Select Opening | AN32: =IF(TYPE=1,Frame_Height/2,IF(TYPE=2,CMR-0.25,0)) -> 0 | AO32: =Frame_Height-CDIM_7SH2 -> 0 | AR32: =TRUNC((Frame_Width/2+0.25-2.25)*32+0.5)/32 -> -1.96875 | AS32: =DDIM_7SH2-1.8125 -> -1.8125 | AT32: =(AR32*AS32)/144 -> 0.02478027344 | AU32: =TRUNC((Frame_Width/2+0.25-2.0625)*32+0.5)/32 -> -1.78125 | AV32: =CDIM_7SH2-0.875 -> -0.875 | AW32: =BSW_7SH2-2.1875 -> -3.96875 | AX32: =BSH_7SH2-2.1875 -> -3.0625 | AY32: =(AW32*AX32)/144 -> 0.08440483941 | AZ32: =BWGT_7SH2 ->  | BD32: 1.4375 | BE32: =(Frame_Width/2)-3.25 -> -3.25 | BF32: =IF(AND(TYPE=2,CMR>=(Frame_Height/2)),Frame_Height-3.5-BD32-BSH_7SH2,IF(AND(TYPE=2,CMR<(Frame_Height/2)),CMR-1.4375-BD32,Frame_Height/2-BD32-2.125)) -> -3.5625 | BO32: 0 | BP32: 03S4 | BQ32: =GW_3A04 -> -4.1875 | BR32: =GH_3A04 -> -4.1875 | BS32: 0.1217719184
A33: =IF(ModelNo=B33,14,"") ->  | B33: 03S0 | C33: Egress Opening Area (sq.ft.) | D33: =ROUNDUP(((D31*D32)/144),4) -> 0 | F33: 31 | G33: 7SH3 | H33: 70 Series Triple Single Hung | I33: 0.5 | J33: 0.5 | M33: 45 | N33: 24 | O33: 108 | P33: 84 | Q33: 168 | R33: Standard | S33: Custom | U33: =IF(AND(W>0,H>0,BTYPE="Custom",CMR=0),"<< Enter CMR Location",IF(AND(W>0,H>0,BTYPE="Custom"),"<< CMR, Bottom-Up","")) ->  | V33: Half Only | AE33: Single Strength (2.5 mm) | AF33: Double Strength (3 mm) | AG33: Triple Strength (5 mm) | AH33: Triple IG Single Strength | AI33: Triple IG Double Strength | AJ33: Laminated | AM33: << Select Opening | AN33: =IF(TYPE=1,Frame_Height/2,IF(TYPE=2,CMR-0.25,0)) -> 0 | AO33: =Frame_Height-CDIM_7SH3 -> 0 | AR33: =TRUNC((((Frame_Width+0.5)-6.25)/3)*32+0.5)/32 -> -1.875 | AS33: =DDIM_7SH3-1.8125 -> -1.8125 | AT33: =(AR33*AS33)/144 -> 0.02360026042 | AU33: =TRUNC((((Frame_Width+0.5)-5.6875)/3)*32)/32 -> -1.71875 | AV33: =CDIM_7SH3-0.875 -> -0.875 | AW33: =BSW_7SH3-2.1875 -> -3.90625 | AX33: =BSH_7SH3-2.1875 -> -3.0625 | AY33: =(AW33*AX33)/144 -> 0.08307562934 | AZ33: =BWGT_7SH3 ->  | BD33: 1.4375 | BE33: =(Frame_Width/3)-3.25 -> -3.25 | BF33: =IF(AND(TYPE=2,CMR>=(Frame_Height/2)),Frame_Height-3.5-BD33-BSH_7SH3,IF(AND(TYPE=2,CMR<(Frame_Height/2)),CMR-1.4375-BD33,Frame_Height/2-BD33-2.125)) -> -3.5625 | BO33: 0 | BP33: 03S9 | BQ33: =MAX(OGW_03S9,FGW_03S9) -> -1.875 | BR33: =MAX(OGH_03S9,FGH_03S9) -> -4.6875 | BS33: 0.06103515625
A34: =IF(ModelNo=B34,1,"") ->  | B34: 3A02 | C34: Sash Width | D34: =(Frame_Width/2)-0.875 -> -0.875 | F34: 32 | G34: 72HP | H34: 70 Series Twin Stacked P.W | I34: 0.5 | J34: 0.5 | M34: 12 | N34: 24 | O34: 72 | P34: =IF(Frame_Width>44,72,84) -> 84 | Q34: 144 | R34: Standard | S34: Custom | U34: =IF(AND(W>0,H>0,BTYPE="Custom",CMR=0),"<< Enter CMR Location",IF(AND(W>0,H>0,BTYPE="Custom"),"<< CMR Bottom-Up","")) ->  | Y34: Select Extrusion | Z34: Slider Frame (270/570) | AA34: P.W Frame (A770) | AD34: =IF(EXTSELECT=3,1.875,2) -> 2 | AE34: Single Strength (2.5 mm) | AF34: Double Strength (3 mm) | AG34: Triple Strength (5 mm) | AH34: Triple IG Single Strength | AI34: Triple IG Double Strength | AJ34: Laminated | AM34: << Select Opening | BP34: A571 | BQ34: =MAX(BGW_A571,TGW_A571) -> -2.3125 | BR34: =MAX(BGH_A571,TGH_A571) -> -1.8125 | BS34: =(BQ34*BR34)/144 -> 0.02910698785
A35: =IF(ModelNo=B35,2,"") ->  | B35: 3A02 | C35: Sash Height | D35: =Frame_Height-3.8125 -> -3.8125 | F35: 33 | G35: 72WP | H35: 70 Series Twin Side by Side P.W | I35: 0.5 | J35: 0.5 | M35: 19 | N35: 32 | O35: =IF(Frame_Height>44,72,84) -> 84 | P35: 96 | Q35: 144 | R35: Standard | S35: Custom | U35: =IF(AND(W>0,H>0,BTYPE="Custom",CMR=0),"<< Enter CMR Location",IF(AND(W>0,H>0,BTYPE="Custom"),"<< CMR, Left to Right","")) ->  | Y35: Select Extrusion | Z35: Slider Frame (270/570) | AA35: P.W Frame (A770) | AD35: =IF(EXTSELECT=3,1.875,2) -> 2 | AE35: Single Strength (2.5 mm) | AF35: Double Strength (3 mm) | AG35: Triple Strength (5 mm) | AH35: Triple IG Single Strength | AI35: Triple IG Double Strength | AJ35: Laminated | AM35: << Select Opening | BO35: 0 | BP35: A570 | BQ35: =GW_A570 -> -2.5625 | BR35: =GH_A570 -> -2.5625 | BS35: 0.0456000434
A36: =IF(ModelNo=B36,3,"") ->  | B36: 3A02 | C36: Roller Track Length | D36: =Frame_Width-2.5625 -> -2.5625 | F36: 34 | G36: 73HP | H36: 70 Series Triple Stacked P.W | I36: 0.5 | J36: 0.5 | M36: 12 | N36: 36 | O36: 84 | P36: 108 | Q36: 168 | R36: Standard | S36: Custom | U36: =IF(AND(W>0,H>0,BTYPE="Custom",CMR=0),"<< Enter CMR Location",IF(AND(W>0,H>0,BTYPE="Custom"),"<< CMR Bottom-Up","")) ->  | Y36: Select Extrusion | Z36: Slider Frame (270/570) | AA36: P.W Frame (A770) | AD36: 2.3125 | AE36: Single Strength (2.5 mm) | AF36: Double Strength (3 mm) | AG36: Triple Strength (5 mm) | AH36: Triple IG Single Strength | AI36: Triple IG Double Strength | AJ36: Laminated | AM36: << Select Opening | AN36: =TRUNC((IF(TYPE=1,Frame_Height/3,IF(TYPE=2,CMR,0))*16+0.5))/16 -> 0 | BP36: A581 | BQ36: =MAX(BGW_A581,TGW_A581) -> -2.5625 | BR36: =MAX(BGH_A581,TGH_A581) -> -2 | BS36: 0.03559027778
A37: =IF(ModelNo=B37,4,"") ->  | B37: 3A02 | C37: Glass Width | D37: =D34-1.6875 -> -2.5625 | F37: 35 | G37: 73WP | H37: 70 Series Triple Side by Side P.W | I37: 0.5 | J37: 0.5 | M37: 36 | N37: 12 | O37: 108 | P37: 84 | Q37: 168 | R37: Standard | S37: Custom | U37: =IF(AND(W>0,H>0,BTYPE="Custom",CMR=0),"<< Enter CMR Location",IF(AND(W>0,H>0,BTYPE="Custom"),"<< CMR, Ends to Mull","")) ->  | Y37: Select Extrusion | Z37: Slider Frame (270/570) | AA37: P.W Frame (A770) | AD37: 2.3125 | AE37: Single Strength (2.5 mm) | AF37: Double Strength (3 mm) | AG37: Triple Strength (5 mm) | AH37: Triple IG Single Strength | AI37: Triple IG Double Strength | AJ37: Laminated | AM37: << Select Opening | AN37: =TRUNC((IF(TYPE=1,Frame_Width/3,IF(TYPE=2,CMR,0))*16+0.5))/16 -> 0 | BO37: 0 | BP37: A580 | BQ37: =GW_A580 -> -2.5625 | BR37: =GH_A580 -> -2.5625 | BS37: 0.0456000434
A38: =IF(ModelNo=B38,5,"") ->  | B38: 3A02 | C38: Glass Height | D38: =D35-1.625 -> -5.4375 | F38: 36 | G38: A680 | H38: Casement Picture Window | I38: 0.5 | J38: 0.5 | M38: 11.5 | N38: 11.5 | O38: 120 | P38: 120 | Q38: 180 | R38: Standard | AE38: Single Strength (2.5 mm) | AF38: Double Strength (3 mm) | AG38: Triple Strength (5 mm) | AH38: Triple IG Single Strength | AI38: Triple IG Double Strength | AJ38: Laminated | AM38: << Select Opening | BO38: 0 | BP38: A270 | BQ38: =GW_A570 -> -2.5625 | BR38: =GH_A570 -> -2.5625 | BS38: 0.0456000434
A39: =IF(ModelNo=B39,6,"") ->  | B39: 3A02 | C39: Screen Width | D39: =IF(Screen="F",Frame_Width-5,IF(Screen="L","N/A",(Frame_Width/2)-2.4375)) -> -2.4375 | F39: 37 | G39: A681 | H39: Single Vent Awning | I39: 0.5 | J39: 0.5 | M39: =IF(AND(W>0,H>0,Frame_Height>=18),16,20) -> 20 | N39: =IF(AND(W>0,H>0,Frame_Width>=20),11.5,18) -> 18 | O39: 48 | P39: 48 | Q39: 96 | R39: Standard | V39: Full | AE39: Single Strength (2.5 mm) | AF39: Double Strength (3 mm) | AG39: Triple Strength (5 mm) | AH39: Triple IG Single Strength | AI39: Triple IG Double Strength | AJ39: Laminated | AM39: << Select Opening | BO39: 0 | BP39: A770 | BQ39: =GW_A570 -> -2.5625 | BR39: =GH_A570 -> -2.5625 | BS39: 0.0456000434
A40: =IF(ModelNo=B40,7,"") ->  | B40: 3A02 | C40: Screen Height | D40: =Frame_Height-4.5625 -> -4.5625 | F40: 38 | G40: A682 | H40: Single Vent Casement | I40: 0.5 | J40: 0.5 | M40: 15.75 | N40: 17.5 | O40: 36 | P40: 78 | Q40: 114 | R40: Standard | V40: Full | AE40: Single Strength (2.5 mm) | AF40: Double Strength (3 mm) | AG40: Triple Strength (5 mm) | AH40: Triple IG Single Strength | AI40: Triple IG Double Strength | AJ40: Laminated | AM40: << Select Opening | BE40: =Frame_Width-11.4375 -> -11.4375 | BF40: =Frame_Height-5.125 -> -5.125 | BO40: 0 | BP40: A280 | BQ40: =GW_A580 -> -2.5625 | BR40: =GH_A580 -> -2.5625 | BS40: 0.0456000434
A41: =IF(ModelNo=B41,8,"") ->  | B41: 3A02 | C41: Egress Opening Width | D41: =(Frame_Width/2)-4.75 -> -4.75 | F41: 39 | G41: 6502 | H41: 6500 Series Custom 2 Lite Patio Door | I41: 0 | J41: 0 | M41: 48 | N41: 72 | O41: 96 | P41: 96 | Q41: 192 | R41: 3" Sash | S41: 5" Sash | T41: French | V41: Half | AE41: Single Strength (2.5 mm) | AF41: Double Strength (3 mm) | AG41: Triple Strength (5 mm) | AH41: Triple IG Single Strength | AI41: Triple IG Double Strength | AJ41: Laminated | AM41: =IF(RO=2,"<< Exact Size Only","") ->  | BO41: 0 | BP41: A780 | BQ41: =GW_A580 -> -2.5625 | BR41: =GH_A580 -> -2.5625 | BS41: 0.0456000434
A42: =IF(ModelNo=B42,9,"") ->  | B42: 3A02 | C42: Egress Opening Height | D42: =Frame_Height-5.25 -> -5.25 | F42: 40 | G42: 6503 | H42: 6500 Series Custom 3 Lite Patio Door | I42: 0 | J42: 0 | M42: 84 | N42: 72 | O42: 144 | P42: 96 | Q42: 240 | R42: 3" Sash | S42: 5" Sash | T42: French | V42: Half | AE42: Single Strength (2.5 mm) | AF42: Double Strength (3 mm) | AG42: Triple Strength (5 mm) | AH42: Triple IG Single Strength | AI42: Triple IG Double Strength | AJ42: Laminated | AM42: =IF(RO=2,"<< Exact Size Only","") ->  | BO42: 0 | BP42: A272 | BQ42: =MAX(GW_A272,FGW_A272) -> -1.8125 | BR42: =MAX(GH_A272,FGH_A272) -> -2.3125 | BS42: 0.02910698785
A43: =IF(ModelNo=B43,10,"") ->  | B43: 3A02 | C43: Egress Opening Area (sq.ft.) | D43: =ROUNDUP(((D41*D42)/144),4) -> 0.1732 | F43: 41 | G43: 6504 | H43: 6500 Series Custom 4 Lite Patio Door | I43: 0 | J43: 0 | M43: 96 | N43: 72 | O43: 144 | P43: 96 | Q43: 240 | R43: 3" Sash | S43: 5" Sash | T43: French | V43: Half | AE43: Single Strength (2.5 mm) | AF43: Double Strength (3 mm) | AG43: Triple Strength (5 mm) | AH43: Triple IG Single Strength | AI43: Triple IG Double Strength | AJ43: Laminated | AM43: =IF(RO=2,"<< Exact Size Only","") ->  | BO43: 0 | BP43: A273 | BQ43: =MAX(OGW_A273,FGW_A273) -> -1.0625 | BR43: =MAX(OGH_A273,FGH_A273) -> -2.3125 | BS43: 0.01706271701
A44: =IF(ModelNo=B44,1,"") ->  | B44: 3A03 | C44: Operating Sash Width | D44: =TRUNC((((Frame_Width/4)+0.1875))*16+0.5)/16 -> 0.1875 | F44: 42 | G44: 6505 | H44: 6500 Series Five Foot 2 Lite Patio Door | I44: 1.375 | J44: 0.5 | K44: 60 | L44: 80 | M44: 58.625 | N44: 79.5 | O44: 58.625 | P44: 95.5 | Q44: 156 | R44: 3" Sash | S44: 5" Sash | T44: French | V44: Half | AE44: Single Strength (2.5 mm) | AF44: Double Strength (3 mm) | AG44: Triple Strength (5 mm) | AH44: Triple IG Single Strength | AI44: Triple IG Double Strength | AJ44: Laminated | AM44: =IF(RO=1,"<< Rough Opening Only","") -> << Rough Opening Only | BO44: 0 | BP44: A282 | BQ44: =MAX(GW_A282,FGW_A282) -> -2 | BR44: =MAX(GH_A282,FGH_A282) -> -2.5625 | BS44: 0.03559027778
A45: =IF(ModelNo=B45,2,"") ->  | B45: 3A03 | C45: Operating Sash Height | D45: =Frame_Height-3.8125 -> -3.8125 | F45: 43 | G45: 6506 | H45: 6500 Series Six Foot 2 Lite Patio Door | I45: 1.375 | J45: 0.5 | K45: 72 | L45: 80 | M45: 70.625 | N45: 79.5 | O45: 70.625 | P45: 95.5 | Q45: 168 | R45: 3" Sash | S45: 5" Sash | T45: French | V45: Half | AE45: Single Strength (2.5 mm) | AF45: Double Strength (3 mm) | AG45: Triple Strength (5 mm) | AH45: Triple IG Single Strength | AI45: Triple IG Double Strength | AJ45: Laminated | AM45: << Rough Opening Only | BO45: 0 | BP45: A283 | BQ45: =MAX(OGW_A283,FGW_A283) -> -1.125 | BR45: =MAX(OGH_A283,FGH_A283) -> -2.5625 | BS45: 0.02001953125
A46: =IF(ModelNo=B46,3,"") ->  | B46: 3A03 | C46: Fixed Sash Width | D46: =(Frame_Width-(2*(TRUNC((((Frame_Width/4)+1))*16+0.5)/16)))+0.75 -> -1.25 | F46: 44 | G46: 6508 | H46: 6500 Series Eight Foot 2 Lite Patio Door | I46: 1.75 | J46: 0.5 | K46: 96 | L46: 80 | M46: 94.25 | N46: 79.5 | O46: 94.25 | P46: 95.5 | Q46: 192 | R46: 3" Sash | S46: 5" Sash | T46: French | V46: Half | AE46: Single Strength (2.5 mm) | AF46: Double Strength (3 mm) | AG46: Triple Strength (5 mm) | AH46: Triple IG Single Strength | AI46: Triple IG Double Strength | AJ46: Laminated | AM46: << Rough Opening Only | BO46: 0 | BP46: A680 | BQ46: =MAX(GW1_A680,GW2_A680) -> -4.125 | BR46: =MAX(GH1_A680,GH2_A680,GH3_A680) -> -4.125 | BS46: 0.1181640625
A47: =IF(ModelNo=B47,4,"") ->  | B47: 3A03 | C47: Fixed Sash Height | D47: =Frame_Height-3.8125 -> -3.8125 | F47: 45 | G47: 6509 | H47: 6500 Series Nine Foot 3 Lite Patio Door | I47: 2.5 | J47: 0.5 | K47: 108 | L47: 80 | M47: 105.5 | N47: 79.5 | O47: 105.5 | P47: 95.5 | Q47: 204 | R47: 3" Sash | S47: 5" Sash | T47: French | V47: Half | AE47: Single Strength (2.5 mm) | AF47: Double Strength (3 mm) | AG47: Triple Strength (5 mm) | AH47: Triple IG Single Strength | AI47: Triple IG Double Strength | AJ47: Laminated | AM47: << Rough Opening Only | BO47: 0 | BP47: A681 | BQ47: =GW_A681 -> -5.5625 | BR47: =MAX(GH1_A681,GH2_A681) -> -5.5625 | BS47: 0.2148708767
A48: =IF(ModelNo=B48,5,"") ->  | B48: 3A03 | C48: Roller Track Length | D48: =Frame_Width-2.5625 -> -2.5625 | F48: 46 | G48: 6512 | H48: 6500 Series Twelve Foot 4 Lite Patio Door | I48: 4.5 | J48: 0.5 | K48: 144 | L48: 80 | M48: 139.5 | N48: 79.5 | O48: 139.5 | P48: 95.5 | Q48: 240 | R48: 3" Sash | S48: 5" Sash | T48: French | V48: Half | AE48: Single Strength (2.5 mm) | AF48: Double Strength (3 mm) | AG48: Triple Strength (5 mm) | AH48: Triple IG Single Strength | AI48: Triple IG Double Strength | AJ48: Laminated | AM48: << Rough Opening Only | BP48: A681 | BQ48: =GW_A682 -> -5.5625 | BR48: =MAX(GH1_A682,GH2_A682) -> -5.5625 | BS48: =(BQ48*BR48)/144 -> 0.2148708767
A49: =IF(ModelNo=B49,6,"") ->  | B49: 3A03 | C49: Operating Sash Glass Width | D49: =D44-1.6875 -> -1.5 | F49: 47 | G49: 6522 | H49: 6500 Series Twelve Foot 3 Lite Patio Door | I49: 3.125 | J49: 0.5 | K49: 144 | L49: 80 | M49: 140.875 | N49: 79.5 | O49: 140.875 | P49: 95.5 | Q49: 240 | R49: 3" Sash | S49: 5" Sash | T49: French | V49: Half | AE49: Single Strength (2.5 mm) | AF49: Double Strength (3 mm) | AG49: Triple Strength (5 mm) | AH49: Triple IG Single Strength | AI49: Triple IG Double Strength | AJ49: Laminated | AM49: << Rough Opening Only | BO49: =IF(ModelNo=BP50,ModelNo,0) -> 0 | BP49: 6502 | BQ49: =GW_6502 -> -5.125 | BR49: =GH_6502 -> -8.625 | BS49: =(BQ49*BR49)/144 -> 0.3069661458
A50: =IF(ModelNo=B50,7,"") ->  | B50: 3A03 | C50: Operating Sash Glass Height | D50: =D45-1.625 -> -5.4375 | F50: 48 | G50: A17A | H50: 170 Series Patio Door Sidelite | I50: 0.5 | J50: 0.5 | M50: 11.5 | N50: 47.5 | O50: 84 | P50: 96 | Q50: 180 | R50: 3" Sash | S50: 5" Sash | T50: French | V50: Half | AE50: Single Strength (2.5 mm) | AF50: Double Strength (3 mm) | AG50: Triple Strength (5 mm) | AH50: Triple IG Single Strength | AI50: Triple IG Double Strength | AJ50: Laminated | AM50: << Select Opening | BO50: 0 | BP50: 6503 | BQ50: =GW_6503 -> -5 | BR50: =GH_6503 -> -8.625 | BS50: 0.2994791667
A51: =IF(ModelNo=B51,8,"") ->  | B51: 3A03 | C51: Fixed Sash Glass Width | D51: =D46-1.6875 -> -2.9375 | F51: 49 | G51: A171 | H51: 170 Series Patio Door Transom | I51: 0.5 | J51: 0.5 | M51: 47.5 | N51: 11.5 | O51: 108 | P51: 49 | Q51: 156 | R51: Standard | AE51: Single Strength (2.5 mm) | AF51: Double Strength (3 mm) | AG51: Triple Strength (5 mm) | AH51: Triple IG Single Strength | AI51: Triple IG Double Strength | AJ51: Laminated | AM51: << Select Opening | AN51: =Frame_Height-AO51 -> 0 | AO51: =IF(TYPE=1,(Frame_Height/2),IF(TYPE=2,CMR)) -> 0 | BO51: 0 | BP51: 6504 | BQ51: =GW_6504 -> -4.6875 | BR51: =GH_6504 -> -8.625 | BS51: 0.2807617188
A52: =IF(ModelNo=B52,9,"") ->  | B52: 3A03 | C52: Fixed Sash Glass Height | D52: =D47-1.625 -> -5.4375 | F52: 50 | G52: A172 | H52: Two Lite Sliding Patio Door | I52: 0.5 | J52: 0.5 | M52: 47.5 | N52: 47.5 | O52: 96 | P52: 96 | Q52: 192 | R52: Standard | S52: Custom | V52: Full | W52: Premium | AE52: Single Strength (2.5 mm) | AF52: Double Strength (3 mm) | AG52: Triple Strength (5 mm) | AH52: Triple IG Single Strength | AI52: Triple IG Double Strength | AJ52: Laminated | AM52: << Select Opening | AN52: =IF(TYPE=1,TRUNC(((Frame_Width/2))*16+0.5)/16,IF(TYPE=2,CMR)) -> 0 | AO52: =Frame_Width-CDIM_A172 -> 0 | BO52: 0 | BP52: 6505 | BQ52: =GW_6502 -> -5.125 | BR52: =GH_6502 -> -8.625 | BS52: 0.3069661458
A53: =IF(ModelNo=B53,10,"") ->  | B53: 3A03 | C53: Screen Width | D53: =IF(Screen="F",Frame_Width-5,IF(Screen="L","N/A",TRUNC(((Frame_Width/4)-1.25)*16+0.5)/16)) -> -1.1875 | F53: 51 | G53: A173 | H53: Three Lite Sliding Patio Door | I53: 0.5 | J53: 0.5 | M53: 71.5 | N53: 47.5 | O53: 108 | P53: 96 | Q53: 204 | R53: Standard | S53: Custom | V53: Full | W53: Premium | AE53: Single Strength (2.5 mm) | AF53: Double Strength (3 mm) | AG53: Triple Strength (5 mm) | AH53: Triple IG Single Strength | AI53: Triple IG Double Strength | AJ53: Laminated | AM53: << Select Opening | AN53: =IF(TYPE=1,TRUNC(((Frame_Width/3)+0.333)*16+0.5)/16,IF(TYPE=2,CMR+0.1875)) -> 0.3125 | AO53: =TRUNC((((Frame_Width-CDIM_A173)/2)-0.25)*16+0.5)/16 -> -0.375 | BO53: 0 | BP53: 6506 | BQ53: =GW_6502 -> -5.125 | BR53: =GH_6502 -> -8.625 | BS53: 0.3069661458
A54: =IF(ModelNo=B54,11,"") ->  | B54: 3A03 | C54: Screen Height | D54: =Frame_Height-4.5625 -> -4.5625 | F54: 52 | G54: A175 | H54: Four Lite Sliding Patio Door | I54: 0.5 | J54: 0.5 | M54: 95.5 | N54: 47.5 | O54: 142 | P54: 96 | Q54: 238 | R54: Standard | S54: Custom | V54: Full | W54: Premium | AE54: Single Strength (2.5 mm) | AF54: Double Strength (3 mm) | AG54: Triple Strength (5 mm) | AH54: Triple IG Single Strength | AI54: Triple IG Double Strength | AJ54: Laminated | AM54: << Select Opening | AN54: =IF(TYPE=1,TRUNC(((Frame_Width/4)+0.3595)*16+0.5)/16,IF(TYPE=2,CMR-0.25)) -> 0.375 | AO54: =TRUNC(((Frame_Width+0.5)/2-CDIM_A175+0.469)*16+0.5)/16 -> 0.375 | BO54: 0 | BP54: 6508 | BQ54: =GW_6502 -> -5.125 | BR54: =GH_6502 -> -8.625 | BS54: 0.3069661458
A55: =IF(ModelNo=B55,12,"") ->  | B55: 3A03 | C55: Egress Opening Width | D55: =(Frame_Width/4)-2.25 -> -2.25 | F55: 53 | G55: A140 | H55: Arched Top Single Hung (Round-Top) | I55: 0 | J55: 0 | M55: =MINR*2 -> 0 | N55: 42 | O55: 52 | P55: 96 | Q55: 148 | R55: Standard | S55: Custom | U55: =IF(AND(W>0,H>0,BTYPE="Custom",CMR=0),"<< Enter CMR Location",IF(AND(W>0,H>0,BTYPE="Custom"),"<< CMR, Bottom-Up","")) ->  | V55: Half | Y55: Select Extrusion | Z55: Mezzo | AA55: Mezzo/N.F | AB55: Mezzo w/Stucco | AD55: 2.40625 | AE55: Single Strength (2.5 mm) | AF55: Double Strength (3 mm) | AG55: Triple Strength (5 mm) | AH55: Triple IG Single Strength | AI55: Triple IG Double Strength | AJ55: Laminated | AM55: =IF(RO=2,"<< Exact Size Only","") ->  | AN55: =CDIM_A140 -> 0 | AO55: =DDIM_A140 -> 6 | AU55: =BSW_SHAT -> 0 | AV55: =BSH_SHAT -> 0 | AW55: =BGW_SHAT -> 0 | AX55: =BGH_SHAT -> 0 | AY55: =(BGW_SHAT*BGH_SHAT)/144 -> 0 | AZ55: =BWGT_SHAT -> 0 | BB55: =IF(COIL=1,3.875-0.6875,3.875+((COIL-1)*1.625)-0.6875) ->  | BD55: 1.875 | BE55: =Frame_Width-5.875 -> -5.875 | BF55: =IF(AV55>(LEG-CDIM_SHAT),LEG-AV55-BD55-0.125,CDIM_SHAT-BD55-0.125) -> -2 | BO55: 0 | BP55: 6509 | BQ55: =GW_6503 -> -5 | BR55: =GH_6503 -> -8.625 | BS55: 0.2994791667
A56: =IF(ModelNo=B56,13,"") ->  | B56: 3A03 | C56: Egress Opening Height | D56: =Frame_Height-5.25 -> -5.25 | F56: 54 | G56: A144 | H56: Arched Top Single Hung (Eyebrow) | I56: 0 | J56: 0 | M56: 16 | N56: 43 | O56: 52 | P56: 96 | Q56: 148 | R56: Standard | S56: Custom | V56: Half | Y56: Select Extrusion | Z56: Mezzo | AA56: Mezzo/N.F | AB56: Mezzo w/Stucco | AD56: 2.40625 | AE56: Single Strength (2.5 mm) | AF56: Double Strength (3 mm) | AG56: Triple Strength (5 mm) | AH56: Triple IG Single Strength | AI56: Triple IG Double Strength | AJ56: Laminated | AN56: =CDIM_A140 -> 0 | AO56: =DDIM_A140 -> 6 | AU56: 0 | AV56: 0 | AW56: 0 | AX56: 0 | AY56: 0 | AZ56: 0 | BB56: =IF(COIL=1,3.875-0.6875,3.875+((COIL-1)*1.625)-0.6875) ->  | BD56: 1.875 | BE56: =Frame_Width-5.875 -> -5.875 | BF56: -2 | BO56: 0 | BP56: 6512 | BQ56: =GW_6504 -> -4.6875 | BR56: =GH_6504 -> -8.625 | BS56: 0.2807617188
A57: =IF(ModelNo=B57,14,"") ->  | B57: 3A03 | C57: Egress Opening Area (sq.ft.) | D57: =ROUNDUP(((D55*D56)/144),4) -> 0.0821 | F57: 55 | G57: A146 | H57: Arched Top Single Hung (1/2 Eyebrow) | I57: 0 | J57: 0 | M57: 16 | N57: 43 | O57: 52 | P57: 96 | Q57: 148 | R57: Standard | S57: Custom | V57: Half | Y57: Select Extrusion | Z57: Mezzo | AA57: Mezzo/N.F | AB57: Mezzo w/Stucco | AD57: 2.40625 | AE57: Single Strength (2.5 mm) | AF57: Double Strength (3 mm) | AG57: Triple Strength (5 mm) | AH57: Triple IG Single Strength | AI57: Triple IG Double Strength | AJ57: Laminated | AN57: =CDIM_A140 -> 0 | AO57: =DDIM_A140 -> 6 | AU57: 0 | AV57: 0 | AW57: 0 | AX57: 0 | AY57: 0 | AZ57: 0 | BB57: =IF(COIL=1,3.875-0.6875,3.875+((COIL-1)*1.625)-0.6875) ->  | BD57: 1.875 | BE57: =Frame_Width-5.875 -> -5.875 | BF57: -2 | BP57: 6522 | BQ57: =GW_6503 -> -5 | BR57: =GH_6503 -> -8.625 | BS57: 0.2994791667 | BT57: =IF(AND(OR(Glass=4,Glass=5),OR((ISERROR(TOP_TUBE)),(ISERROR(BTM_TUBE)))),1,IF(AND(Glass=3,Single_ST=0),1,0)) -> 0
A58: =IF(ModelNo=B58,15,"") ->  | B58: 3A03 | C58: Center of Meeting Rail from Edge of Frame | D58: =(Frame_Width/4)+1.0625 -> 1.0625 | F58: 56 | G58: A840 | H58: Arched Top Single Hung (Round-Top) | I58: 0.5 | J58: 0.5 | M58: 23.5 | N58: 36.5 | O58: 54 | P58: 96 | Q58: 144 | R58: Standard | S58: Custom | V58: Half Only | Y58: Select Extrusion | Z58: 80s 1-3/8" NFS | AA58: 80s 1" NFS | AB58: 80s Flush Fin | AD58: 1.28125 | AE58: Single Strength (2.5 mm) | AF58: Double Strength (3 mm) | AG58: Triple Strength (5 mm) | AH58: Triple IG Single Strength | AI58: Triple IG Double Strength | AJ58: Laminated | AM58: << Select Opening | AU58: 0 | AV58: 0 | AW58: 0 | AX58: 0 | AY58: 0 | AZ58: 0 | BD58: 1.75 | BE58: =Frame_Width-3.6255 -> -3.6255 | BF58: -1.875 | BP58: A17A | BQ58: =GW_A17A -> -2 | BR58: =GH_A17A -> -5.75 | BS58: 0.07986111111
A59: =IF(OR(ModelNo="3A04",ModelNo="03S4"),1,"") ->  | B59: 3A04 | C59: Glass Width | D59: =Frame_Width-4.1875 -> -4.1875 | F59: 57 | G59: A844 | H59: Arched Top Single Hung (Eyebrow) | I59: 0.5 | J59: 0.5 | M59: 15 | N59: 30 | O59: 54 | P59: 96 | Q59: 144 | R59: Standard | S59: Custom | V59: Half Only | Y59: Select Extrusion | Z59: 80s 1-3/8" NFS | AA59: 80s 1" NFS | AB59: 80s Flush Fin | AD59: 1.28125 | AE59: Single Strength (2.5 mm) | AF59: Double Strength (3 mm) | AG59: Triple Strength (5 mm) | AH59: Triple IG Single Strength | AI59: Triple IG Double Strength | AJ59: Laminated | AM59: << Select Opening | AU59: 0 | AV59: 0 | AW59: 0 | AX59: 0 | AY59: 0 | AZ59: 0 | BD59: 1.75 | BE59: =Frame_Width-3.6255 -> -3.6255 | BF59: -1.875 | BO59: =IF(ModelNo=BP58,ModelNo,0) -> 0 | BP59: A171 | BQ59: =GW_A171 -> -2 | BR59: =GH_A171 -> -2 | BS59: 0.02777777778
A60: =IF(OR(ModelNo="3A04",ModelNo="03S4"),2,"") ->  | B60: 3A04 | C60: Glass Height | D60: =Frame_Height-4.1875 -> -4.1875 | F60: 58 | G60: A846 | H60: Arched Top Single Hung (1/2 Eyebrow) | I60: 0.5 | J60: 0.5 | M60: 15 | N60: 30 | O60: 54 | P60: 96 | Q60: 144 | R60: Standard | S60: Custom | V60: Half Only | Y60: Select Extrusion | Z60: 80s 1-3/8" NFS | AA60: 80s 1" NFS | AB60: 80s Flush Fin | AD60: 1.28125 | AE60: Single Strength (2.5 mm) | AF60: Double Strength (3 mm) | AG60: Triple Strength (5 mm) | AH60: Triple IG Single Strength | AI60: Triple IG Double Strength | AJ60: Laminated | AM60: << Select Opening | AU60: 0 | AV60: 0 | AW60: 0 | AX60: 0 | AY60: 0 | AZ60: 0 | BD60: 1.75 | BE60: =Frame_Width-3.6255 -> -3.6255 | BF60: -1.875 | BO60: 0 | BP60: A172 | BQ60: =MAX(OGW_A172,FGW_A172) -> -2.5 | BR60: =MAX(OGH_A172,FGH_A172) -> -5.75 | BS60: 0.09982638889
A61: =IF(OR(ModelNo="3A04",ModelNo="03S4"),3,"") ->  | B61: 3A04 | C61: Glass Area (sq.ft.) | D61: =(D59*D60)/144 -> 0.1217719184 | F61: 59 | G61: A740 | H61: Arched Top Single Hung (Round-Top) | I61: 0.5 | J61: 0.5 | M61: 23.5 | N61: 37.5 | O61: 48 | P61: 96 | Q61: 144 | R61: Standard | S61: Custom | V61: Half Only | Y61: Select Extrusion | Z61: 70s 1-3/8" NFS | AA61: 70s 7/8" NFS | AB61: 70s J-Channel | AC61: 70s Flush Fin | AD61: 1.15625 | AE61: Single Strength (2.5 mm) | AF61: Double Strength (3 mm) | AG61: Triple Strength (5 mm) | AH61: Triple IG Single Strength | AI61: Triple IG Double Strength | AJ61: Laminated | AM61: << Select Opening | AN61: =Frame_Height-AO61 -> 0 | AO61: =IF(TYPE=1,(Frame_Height/2),IF(TYPE=2,CMR)) -> 0 | AU61: 0 | AV61: 0 | AW61: 0 | AX61: 0 | AY61: 0 | AZ61: 0 | BD61: 1.4375 | BE61: =Frame_Width-3 -> -3 | BF61: -1.5625 | BO61: 0 | BP61: A173 | BQ61: =MAX(OGW_A173,FGW_A173) -> -2.125 | BR61: =MAX(OGH_A173,FGH_A173) -> -5.75 | BS61: 0.08485243056
A62: =IF(ModelNo=B62,1,"") ->  | B62: 3A09 | C62: Operating Sash Width | D62: =TRUNC(((Frame_Width/3)-0.3125)*16+0.5)/16 -> -0.25 | F62: 60 | G62: A744 | H62: Arched Top Single Hung (Eyebrow) | I62: 0.5 | J62: 0.5 | M62: 14.5 | N62: 29.5 | O62: 48 | P62: 96 | Q62: 144 | R62: Standard | S62: Custom | V62: Half Only | Y62: Select Extrusion | Z62: 70s 1-3/8" NFS | AA62: 70s 7/8" NFS | AB62: 70s J-Channel | AC62: 70s Flush Fin | AD62: 1.15625 | AE62: Single Strength (2.5 mm) | AF62: Double Strength (3 mm) | AG62: Triple Strength (5 mm) | AH62: Triple IG Single Strength | AI62: Triple IG Double Strength | AJ62: Laminated | AM62: << Select Opening | AN62: =Frame_Height-AO62 -> 0 | AO62: =IF(TYPE=1,(Frame_Height/2),IF(TYPE=2,CMR)) -> 0 | AU62: 0 | AV62: 0 | AW62: 0 | AX62: 0 | AY62: 0 | AZ62: 0 | BD62: 1.4375 | BE62: =Frame_Width-3 -> -3 | BF62: -1.5625 | BO62: 0 | BP62: A175 | BQ62: =MAX(OGW_A175,FGW_A175) -> -2.125 | BR62: =MAX(OGH_A175,FGH_A175) -> -5.75 | BS62: 0.08485243056
A63: =IF(ModelNo=B63,2,"") ->  | B63: 3A09 | C63: Operating Sash Height | D63: =Frame_Height-3.8125 -> -3.8125 | F63: 61 | G63: A746 | H63: Arched Top Single Hung (1/2 Eyebrow) | I63: 0.5 | J63: 0.5 | M63: 14.5 | N63: 29.5 | O63: 48 | P63: 96 | Q63: 144 | R63: Standard | S63: Custom | V63: Half Only | Y63: Select Extrusion | Z63: 70s 1-3/8" NFS | AA63: 70s 7/8" NFS | AB63: 70s J-Channel | AC63: 70s Flush Fin | AD63: 1.15625 | AE63: Single Strength (2.5 mm) | AF63: Double Strength (3 mm) | AG63: Triple Strength (5 mm) | AH63: Triple IG Single Strength | AI63: Triple IG Double Strength | AJ63: Laminated | AM63: << Select Opening | AN63: =Frame_Height-AO63 -> 0 | AO63: =IF(TYPE=1,(Frame_Height/2),IF(TYPE=2,CMR)) -> 0 | AU63: 0 | AV63: 0 | AW63: 0 | AX63: 0 | AY63: 0 | AZ63: 0 | BD63: 1.4375 | BE63: =Frame_Width-3 -> -3 | BF63: -1.5625 | BO63: 0 | BP63: =ModelNo -> Select Model | BQ63: =IF(ISERROR(VLOOKUP(ModelNo,$BP$24:$BT$62,2,FALSE)),0,VLOOKUP(ModelNo,$BP$24:$BT$62,2,FALSE)) -> 0 | BR63: =IF(ISERROR(VLOOKUP(ModelNo,$BP$24:$BT$62,3,FALSE)),0,VLOOKUP(ModelNo,$BP$24:$BT$62,3,FALSE)) -> 0 | BS63: =IF(ISERROR(VLOOKUP(ModelNo,$BP$24:$BT$62,4,FALSE)),0,VLOOKUP(ModelNo,$BP$24:$BT$62,4,FALSE)) -> 0 | BT63: =IF(ISERROR(VLOOKUP(ModelNo,$BP$24:$BT$62,5,FALSE)),0,VLOOKUP(ModelNo,$BP$24:$BT$62,5,FALSE)) -> 0
A64: =IF(ModelNo=B64,3,"") ->  | B64: 3A09 | C64: Fixed Sash Width | D64: =TRUNC(((Frame_Width/3)-0.25)*16+0.5)/16 -> -0.1875 | G64: =ModelNo -> Select Model | H64: =VLOOKUP(Model_Select,Data,2,FALSE) -> 0 | I64: =VLOOKUP(Model_Select,Data,3,FALSE) -> 0 | J64: =VLOOKUP(Model_Select,Data,4,FALSE) -> 0 | K64: =VLOOKUP(Model_Select,Data,5,FALSE) -> 0 | L64: =VLOOKUP(Model_Select,Data,6,FALSE) -> 0 | M64: =VLOOKUP(Model_Select,Data,7,FALSE) -> 0 | N64: =VLOOKUP(Model_Select,Data,8,FALSE) -> 0 | O64: =VLOOKUP(Model_Select,Data,9,FALSE) -> 0 | P64: =VLOOKUP(Model_Select,Data,10,FALSE) -> 0 | Q64: =VLOOKUP(Model_Select,Data,11,FALSE) -> 0 | R64: =VLOOKUP(Model_Select,Data,12,FALSE) -> 0 | S64: =VLOOKUP(Model_Select,Data,13,FALSE) -> 0 | T64: =VLOOKUP(Model_Select,Data,14,FALSE) -> 0 | U64: =VLOOKUP(Model_Select,Data,15,FALSE) -> 0 | V64: =VLOOKUP(Model_Select,Data,16,FALSE) -> 0 | W64: =VLOOKUP(Model_Select,Data,17,FALSE) -> 0 | X64: =VLOOKUP(Model_Select,Data,18,FALSE) -> 0 | Y64: =VLOOKUP(Model_Select,Data,19,FALSE) -> 0 | Z64: =VLOOKUP(Model_Select,Data,20,FALSE) -> 0 | AA64: =VLOOKUP(Model_Select,Data,21,FALSE) -> 0 | AB64: =VLOOKUP(Model_Select,Data,22,FALSE) -> 0 | AC64: =VLOOKUP(Model_Select,Data,23,FALSE) -> 0 | AD64: =VLOOKUP(Model_Select,Data,24,FALSE) -> 0 | AE64: =VLOOKUP(Model_Select,Data,25,FALSE) -> 0 | AF64: =VLOOKUP(Model_Select,Data,26,FALSE) -> 0 | AG64: =VLOOKUP(Model_Select,Data,27,FALSE) -> 0 | AH64: =VLOOKUP(Model_Select,Data,28,FALSE) -> 0 | AI64: =VLOOKUP(Model_Select,Data,29,FALSE) -> 0 | AJ64: =VLOOKUP(Model_Select,Data,30,FALSE) -> 0 | AK64: =VLOOKUP(Model_Select,Data,31,FALSE) -> 0 | AL64: =VLOOKUP(Model_Select,Data,32,FALSE) -> 0 | AM64: =VLOOKUP(Model_Select,Data,33,FALSE) -> 0 | AN64: =VLOOKUP(Model_Select,Data,34,FALSE) -> 0 | AO64: =VLOOKUP(Model_Select,Data,35,FALSE) -> 0 | AP64: =VLOOKUP(Model_Select,Data,36,FALSE) -> 0 | AQ64: =VLOOKUP(Model_Select,Data,37,FALSE) -> 0 | AR64: =VLOOKUP(Model_Select,Data,38,FALSE) -> 0 | AS64: =VLOOKUP(Model_Select,Data,39,FALSE) -> 0 | AT64: =VLOOKUP(Model_Select,Data,40,FALSE) -> 0 | AU64: =VLOOKUP(Model_Select,Data,41,FALSE) -> 0 | AV64: =VLOOKUP(Model_Select,Data,42,FALSE) -> 0 | AW64: =VLOOKUP(Model_Select,Data,43,FALSE) -> 0 | AX64: =VLOOKUP(Model_Select,Data,44,FALSE) -> 0 | AY64: =VLOOKUP(Model_Select,Data,45,FALSE) -> 0 | AZ64: =VLOOKUP(Model_Select,Data,46,FALSE) -> 0 | BA64: =VLOOKUP(Model_Select,Data,47,FALSE) -> 0 | BB64: =VLOOKUP(Model_Select,Data,48,FALSE) -> 0 | BC64: =VLOOKUP(Model_Select,Data,49,FALSE) -> 0 | BD64: =VLOOKUP(Model_Select,Data,50,FALSE) -> 0 | BE64: =VLOOKUP(Model_Select,Data,51,FALSE) -> 0 | BF64: =VLOOKUP(Model_Select,Data,52,FALSE) -> 0
A65: =IF(ModelNo=B65,4,"") ->  | B65: 3A09 | C65: Fixed Sash Height | D65: =Frame_Height-3.8125 -> -3.8125 | G65: =IF(ISERROR(VLOOKUP(Model_Select,$F$188:$G$245,2,FALSE)),"",VLOOKUP(Model_Select,$F$188:$G$245,2,FALSE)) ->  | L65: =IF(OR(ModelNo="6405",ModelNo="6406",ModelNo="6408",ModelNo="6409",ModelNo="6412",ModelNo="6422",ModelNo="8405",ModelNo="8406",ModelNo="8408",ModelNo="8409",ModelNo="8412",ModelNo="8422",ModelNo="1106",ModelNo="1109"),1,0) -> 0 | AE65: =IF(AE64>0,1,0) -> 0 | AF65: =IF(AF64>0,1,0) -> 0 | AG65: 0 | AH65: 0 | AI65: 0 | AJ65: 0 | AK65: 0 | AL65: 0 | BO65: 0
A66: =IF(ModelNo=B66,5,"") ->  | B66: 3A09 | C66: Roller Track Length | D66: =Frame_Width-2.6875 -> -2.6875 | G66: =IF(ISERROR(VLOOKUP(Model_Select,$F$40:$G$40,2,FALSE)),"",VLOOKUP(Model_Select,$F$40:$G$40,2,FALSE)) ->  | L66: =IF(HCONTROL=1,96,"") ->  | AE66: =AE65 -> 0 | AF66: =SUM(AE65:AF65) -> 0 | AG66: =SUM(AE65:AG65) -> 0 | AH66: =SUM(AE65:AH65) -> 0 | AI66: =SUM(AE65:AI65) -> 0 | AJ66: =SUM(AE65:AJ65) -> 0 | AK66: =SUM(AE65:AK65) -> 0 | AL66: =SUM(AE65:AL65) -> 0 | BO66: 0
A67: =IF(ModelNo=B67,6,"") ->  | B67: 3A09 | C67: Operating Sash Glass Width | D67: =D62-1.6875 -> -1.9375 | G67: =IF(OR(Model_Select="A140",Model_Select="A144",Model_Select="A146",Model_Select="A740",Model_Select="A744",Model_Select="A746",Model_Select="A840",Model_Select="A844",Model_Select="A846"),1,0) -> 0 | AE67: =AE64 -> 0 | AF67: 0 | AG67: 0 | AH67: 0 | AI67: 0 | AJ67: 0 | AK67: 0 | AL67: 0 | BO67: 0
A68: =IF(ModelNo=B68,7,"") ->  | B68: 3A09 | C68: Operating Sash Glass Height | D68: =D63-1.625 -> -5.4375 | AE68: =IF(ISERROR(HLOOKUP(1,AE66:AL67,2,FALSE)),"",HLOOKUP(1,AE66:AL67,2,FALSE)) ->  | AF68: =IF(ISERROR(HLOOKUP(2,AE66:AL67,2,FALSE)),"",HLOOKUP(2,AE66:AL67,2,FALSE)) ->  | AG68: =IF(ISERROR(HLOOKUP(3,AE66:AL67,2,FALSE)),"",HLOOKUP(3,AE66:AL67,2,FALSE)) ->  | AH68: =IF(ISERROR(HLOOKUP(4,AE66:AL67,2,FALSE)),"",HLOOKUP(4,AE66:AL67,2,FALSE)) ->  | AI68: =IF(ISERROR(HLOOKUP(5,AE66:AL67,2,FALSE)),"",HLOOKUP(5,AE66:AL67,2,FALSE)) ->  | AJ68: =IF(ISERROR(HLOOKUP(6,AE66:AL67,2,FALSE)),"",HLOOKUP(6,AE66:AL67,2,FALSE)) ->  | AK68: =IF(ISERROR(HLOOKUP(7,AE66:AL67,2,FALSE)),"",HLOOKUP(7,AE66:AL67,2,FALSE)) ->  | AL68: =IF(ISERROR(HLOOKUP(8,AE66:AL67,2,FALSE)),"",HLOOKUP(8,AE66:AL67,2,FALSE)) ->  | BO68: 0
A69: =IF(ModelNo=B69,8,"") ->  | B69: 3A09 | C69: Fixed Sash Glass Width | D69: =D64-1.6875 -> -1.875 | AE69: Single Strength (2.5 mm) | AF69: S | AG69: 2.314 | BO69: 0
A70: =IF(ModelNo=B70,9,"") ->  | B70: 3A09 | C70: Fixed Sash Glass Height | D70: =D65-1.625 -> -5.4375 | AE70: Double Strength (3 mm) | AF70: D | AG70: 3.2 | BO70: 0
A71: =IF(ModelNo=B71,10,"") ->  | B71: 3A09 | C71: Screen Width | D71: =IF(Screen="F",Frame_Width-5,IF(Screen="L","N/A",TRUNC((Frame_Width/3+0.625)*16+0.5)/16-2.375)) -> -1.75 | AE71: Triple Strength (5 mm) | AF71: T | AG71: 4.816 | BO71: 0
A72: =IF(ModelNo=B72,11,"") ->  | B72: 3A09 | C72: Screen Height | D72: =Frame_Height-4.5625 -> -4.5625 | AE72: Triple IG Single Strength | AF72: STG | AG72: 3.471 | BO72: 0
A73: =IF(ModelNo=B73,12,"") ->  | B73: 3A09 | C73: Egress Opening Width | D73: =(Frame_Width/3)-4.375 -> -4.375 | AE73: Triple IG Double Strength | AF73: DTG | AG73: 4.8 | BO73: 0
A74: =IF(ModelNo=B74,13,"") ->  | B74: 3A09 | C74: Egress Opening Height | D74: =Frame_Height-5.25 -> -5.25 | AE74: Laminated | AF74: L | AG74: 5.366 | BO74: 0
A75: =IF(ModelNo=B75,14,"") ->  | B75: 3A09 | C75: Egress Opening Area (sq.ft.) | D75: =ROUNDUP(((D73*D74)/144),4) -> 0.1596 | AE75: HP package | AF75: H | AG75: 4.816 | BO75: 0
A76: =IF(ModelNo=B76,15,"") ->  | B76: 3A09 | C76: Center of Meeting Rail from Edge of Frame | D76: =(TRUNC((Frame_Width/3)*16+0.5)/16)+0.5625 -> 0.5625 | AE76: Impact Laminated | AF76: IL | AG76: 5.366 | BO76: 0
A77: =IF(ModelNo=B77,1,"") ->  | B77: 03S2 | C77: Sash Width | D77: =TRUNC(((Frame_Width/2)-1.0625)*16+0.5)/16 -> -1 | BO77: 0
A78: =IF(ModelNo=B78,2,"") ->  | B78: 03S2 | C78: Sash Height | D78: =Frame_Height-3.0625 -> -3.0625 | BO78: 0
A79: =IF(ModelNo=B79,3,"") ->  | B79: 03S2 | C79: Roller Track Length | D79: =Frame_Width-1.9375 -> -1.9375 | BO79: 0
A80: =IF(ModelNo=B80,4,"") ->  | B80: 03S2 | C80: Sash Glass Width | D80: =TRUNC(((Frame_Width/2)-2.75)*16+0.5)/16 -> -2.6875 | BO80: 0
A81: =IF(ModelNo=B81,5,"") ->  | B81: 03S2 | C81: Sash Glass Height | D81: =Frame_Height-4.6875 -> -4.6875 | BO81: 0
A82: =IF(ModelNo=B82,6,"") ->  | B82: 03S2 | C82: Fixed Glass Width | D82: =TRUNC(((Frame_Width/2)-2.625)*16+0.5)/16 -> -2.5625 | BO82: 0
A83: =IF(ModelNo=B83,7,"") ->  | B83: 03S2 | C83: Fixed Glass Height | D83: =TRUNC((Frame_Height-4.8125)*16+0.5)/16 -> -4.75 | BO83: 0
A84: =IF(ModelNo=B84,8,"") ->  | B84: 03S2 | C84: Screen Width | D84: =IF(Screen="F",Frame_Width-5,IF(Screen="L","N/A",TRUNC(((Frame_Width/2)-3.0625)*16+0.5)/16)) -> -3 | BO84: 0
A85: =IF(ModelNo=B85,9,"") ->  | B85: 03S2 | C85: Screen Height | D85: =Frame_Height-4.5625 -> -4.5625 | BO85: 0
A86: =IF(ModelNo=B86,10,"") ->  | B86: 03S2 | C86: Egress Opening Width | D86: =(Frame_Width/2)-4.75 -> -4.75 | BO86: 0
A87: =IF(ModelNo=B87,11,"") ->  | B87: 03S2 | C87: Egress Opening Height | D87: =Frame_Height-5.875 -> -5.875 | BO87: =IF(ModelNo=BP85,ModelNo,0) -> 0
A88: =IF(ModelNo=B88,12,"") ->  | B88: 03S2 | C88: Egress Opening Area (sq.ft.) | D88: =ROUNDUP(((D86*D87)/144),4) -> 0.1938
A89: =IF(ModelNo=B89,1,"") ->  | B89: 03S3 | C89: Operating Sash Width | D89: =TRUNC((((Frame_Width/4)+0.1875))*16+0.5)/16 -> 0.1875
A90: =IF(ModelNo=B90,2,"") ->  | B90: 03S3 | C90: Operating Sash Height | D90: =Frame_Height-3.0625 -> -3.0625
A91: =IF(ModelNo=B91,3,"") ->  | B91: 03S3 | C91: Roller Track Length | D91: =Frame_Width-1.9375 -> -1.9375
A92: =IF(ModelNo=B92,4,"") ->  | B92: 03S3 | C92: Operating Sash Glass Width | D92: =D89-1.6875 -> -1.5
A93: =IF(ModelNo=B93,5,"") ->  | B93: 03S3 | C93: Operating Sash Glass Height | D93: =Frame_Height-4.6875 -> -4.6875
A94: =IF(ModelNo=B94,6,"") ->  | B94: 03S3 | C94: Fixed Sash Glass Width | D94: =(Frame_Width-2*(TRUNC((Frame_Width/4+0.6875)*16+0.5)/16))-1.625 -> -3
A95: =IF(ModelNo=B95,7,"") ->  | B95: 03S3 | C95: Fixed Sash Glass Height | D95: =Frame_Height-4.8125 -> -4.8125
A96: =IF(ModelNo=B96,8,"") ->  | B96: 03S3 | C96: Screen Width | D96: =IF(Screen="F",Frame_Width-5,IF(Screen="L","N/A",(TRUNC((Frame_Width/4+0.6875)*16+0.5)/16)-2.5)) -> -1.8125
A97: =IF(ModelNo=B97,9,"") ->  | B97: 03S3 | C97: Screen Height | D97: =Frame_Height-4.5625 -> -4.5625
A98: =IF(ModelNo=B98,10,"") ->  | B98: 03S3 | C98: Egress Opening Width | D98: =(Frame_Width/4)-2.875 -> -2.875
A99: =IF(ModelNo=B99,11,"") ->  | B99: 03S3 | C99: Egress Opening Height | D99: =Frame_Height-5.875 -> -5.875
A100: =IF(ModelNo=B100,12,"") ->  | B100: 03S3 | C100: Egress Opening Area (sq.ft.) | D100: =ROUNDUP(((D98*D99)/144),4) -> 0.1173
A101: =IF(ModelNo=B101,13,"") ->  | B101: 03S3 | C101: Center of Meeting Rail from Edge of Frame | D101: =(Frame_Width/4)+1 -> 1
A102: =IF(ModelNo=B102,1,"") ->  | B102: 03S9 | C102: Operating Sash Width | D102: =TRUNC(((Frame_Width/3)-0.3125)*16+0.5)/16 -> -0.25
A103: =IF(ModelNo=B103,2,"") ->  | B103: 03S9 | C103: Operating Sash Height | D103: =Frame_Height-3.0625 -> -3.0625
A104: =IF(ModelNo=B104,3,"") ->  | B104: 03S9 | C104: Roller Track Length | D104: =Frame_Width-1.9375 -> -1.9375
A105: =IF(ModelNo=B105,4,"") ->  | B105: 03S9 | C105: Operating Sash Glass Width | D105: =TRUNC(((TRUNC(((Frame_Width/3)-0.3125)*16+0.5)/16)-1.6875)*16+0.5)/16 -> -1.875
A106: =IF(ModelNo=B106,5,"") ->  | B106: 03S9 | C106: Operating Sash Glass Height | D106: =Frame_Height-4.6875 -> -4.6875
A107: =IF(ModelNo=B107,6,"") ->  | B107: 03S9 | C107: Fixed Sash Glass Width | D107: =((Frame_Width-((TRUNC(((Frame_Width/3)+0.1875)*16+0.5)/16)*2))+1.1875)-2.8125 -> -2
A108: =IF(ModelNo=B108,7,"") ->  | B108: 03S9 | C108: Fixed Sash Glass Height | D108: =Frame_Height-4.8125 -> -4.8125
A109: =IF(ModelNo=B109,8,"") ->  | B109: 03S9 | C109: Screen Width | D109: =IF(Screen="F",Frame_Width-5,IF(Screen="L","N/A",(TRUNC((Frame_Width/3+0.1875)*16+0.5)/16)-2.5)) -> -2.3125
A110: =IF(ModelNo=B110,9,"") ->  | B110: 03S9 | C110: Screen Height | D110: =Frame_Height-4.5625 -> -4.5625
A111: =IF(ModelNo=B111,10,"") ->  | B111: 03S9 | C111: Egress Opening Width | D111: =(Frame_Width/3)-4.375 -> -4.375
A112: =IF(ModelNo=B112,11,"") ->  | B112: 03S9 | C112: Egress Opening Height | D112: =Frame_Height-5.875 -> -5.875
A113: =IF(ModelNo=B113,12,"") ->  | B113: 03S9 | C113: Egress Opening Area (sq.ft.) | D113: =ROUNDUP(((D111*D112)/144),4) -> 0.1785
A114: =IF(ModelNo=B114,13,"") ->  | B114: 03S9 | C114: Center of Meeting Rail from Edge of Frame | D114: =(TRUNC((Frame_Width/3)*16+0.5)/16)+0.5 -> 0.5
A115: =IF(ModelNo=B115,1,"") ->  | B115: A571 | C115: Bottom Sash Width | D115: =Frame_Width-2.125 -> -2.125
A116: =IF(ModelNo=B116,2,"") ->  | B116: A571 | C116: Bottom Sash Height | D116: =CDIM_A571-0.875 -> -0.875
A117: =IF(ModelNo=B117,3,"") ->  | B117: A571 | C117: Bottom Glass Width | D117: =D115-2.1875 -> -4.3125
A118: =IF(ModelNo=B118,4,"") ->  | B118: A571 | C118: Bottom Glass Height | D118: =D116-2.1875 -> -3.0625
A119: =IF(ModelNo=B119,5,"") ->  | B119: A571 | C119: Top Glass Width | D119: =Frame_Width-2.3125 -> -2.3125
A120: =IF(ModelNo=B120,6,"") ->  | B120: A571 | C120: Top Glass Height | D120: =DDIM_A571-1.8125 -> -1.8125
A121: =IF(ModelNo=B121,7,"") ->  | B121: A571 | C121: Astragal Length | D121: =Frame_Width-1.8125 -> -1.8125
A122: =IF(ModelNo=B122,8,"") ->  | B122: A571 | C122: Screen Width | D122: =Frame_Width-2.125 -> -2.125
A123: =IF(ModelNo=B123,9,"") ->  | B123: A571 | C123: Screen Height | D123: =CDIM_A571-1.8125 -> -1.8125
A124: =IF(ModelNo=B124,10,"") ->  | B124: A571 | C124: Bottom Sash Weight | D124: =IF(ISERROR(BTM_WGT&" "&"lb"),"N/A",BTM_WGT&" "&"lb") -> 0 lb
A125: =IF(ModelNo=B125,11,"") ->  | B125: A571 | C125: Balance Size (B&T) | D125: =IF(ISERROR(BTM_TUBE),"N/A",BTM_TUBE) -> N/A
A126: =IF(ModelNo=B126,12,"") ->  | B126: A571 | C126: Egress Opening Width | D126: =EW -> 0
A127: =IF(ModelNo=B127,13,"") ->  | B127: A571 | C127: Egress Opening Height | D127: =EH -> 0
A128: =IF(ModelNo=B128,14,"") ->  | B128: A571 | C128: Egress Opening Area (sq.ft.) | D128: =ROUNDUP(((D126*D127)/144),4) -> 0
A129: =IF(OR(ModelNo="A570",ModelNo="A270",ModelNo="A770"),1,0) -> 0 | B129: A570 | C129: Glass Width | D129: =Frame_Width-2.5625 -> -2.5625
A130: =IF(OR(ModelNo="A570",ModelNo="A270",ModelNo="A770"),2,0) -> 0 | B130: A570 | C130: Glass Height | D130: =Frame_Height-2.5625 -> -2.5625
A131: =IF(OR(ModelNo="A570",ModelNo="A270",ModelNo="A770"),3,0) -> 0 | B131: A570 | C131: Glass Area (sq.ft.) | D131: =(D129*D130)/144 -> 0.0456000434
A132: =IF(ModelNo=B132,1,"") ->  | B132: A581 | C132: Bottom Sash Width | D132: =Frame_Width-2.8125 -> -2.8125
A133: =IF(ModelNo=B133,2,"") ->  | B133: A581 | C133: Bottom Sash Height | D133: =CDIM_A581-1.5 -> -1.5
A134: =IF(ModelNo=B134,3,"") ->  | B134: A581 | C134: Bottom Glass Width | D134: =BSW_A581-2.5625 -> -5.375
A135: =IF(ModelNo=B135,4,"") ->  | B135: A581 | C135: Bottom Glass Height | D135: =BSH_A581-2.5625 -> -4.0625
A136: =IF(ModelNo=B136,5,"") ->  | B136: A581 | C136: Top Glass Width | D136: =Frame_Width-2.5625 -> -2.5625
A137: =IF(ModelNo=B137,6,"") ->  | B137: A581 | C137: Top Glass Height | D137: =DDIM_A581-2 -> -2
A138: =IF(ModelNo=B138,7,"") ->  | B138: A581 | C138: Astragal Length | D138: =Frame_Width-2.0625 -> -2.0625
A139: =IF(ModelNo=B139,8,"") ->  | B139: A581 | C139: Screen Width | D139: =Frame_Width-2.375 -> -2.375
A140: =IF(ModelNo=B140,9,"") ->  | B140: A581 | C140: Screen Height | D140: =CDIM_A581-2 -> -2
A141: =IF(ModelNo=B141,10,"") ->  | B141: A581 | C141: Bottom Sash Weight | D141: =IF(ISERROR(BTM_WGT&" "&"lb"),"N/A",BTM_WGT&" "&"lb") -> 0 lb
A142: =IF(ModelNo=B142,11,"") ->  | B142: A581 | C142: Balance Size (B&T) | D142: =IF(ISERROR(BTM_TUBE),"N/A",BTM_TUBE) -> N/A
A143: =IF(ModelNo=B143,12,"") ->  | B143: A581 | C143: Egress Opening Width | D143: =IF(ISERROR(EW),"N/A",EW) -> 0
A144: =IF(ModelNo=B144,13,"") ->  | B144: A581 | C144: Egress Opening Height | D144: =IF(ISERROR(EH),"N/A",EH) -> 0
A145: =IF(ModelNo=B145,14,"") ->  | B145: A581 | C145: Egress Opening Area (sq.ft.) | D145: =ROUNDUP(((D143*D144)/144),4) -> 0
A146: =IF(OR(ModelNo="A580",ModelNo="A280",ModelNo="A780"),1,0) -> 0 | B146: A580 | C146: Glass Width | D146: =Frame_Width-2.5625 -> -2.5625
A147: =IF(OR(ModelNo="A580",ModelNo="A280",ModelNo="A780"),2,0) -> 0 | B147: A580 | C147: Glass Height | D147: =Frame_Height-2.5625 -> -2.5625
A148: =IF(OR(ModelNo="A580",ModelNo="A280",ModelNo="A780"),3,0) -> 0 | B148: A580 | C148: Glass Area (sq.ft.) | D148: =(D146*D147)/144 -> 0.0456000434
A149: =IF(ModelNo=B149,1,"") ->  | B149: A272 | C149: Sash Width | D149: =CDIM_A272-0.875 -> -0.875
A150: =IF(ModelNo=B150,2,"") ->  | B150: A272 | C150: Sash Height | D150: =Frame_Height-2.125 -> -2.125
A151: =IF(ModelNo=B151,3,"") ->  | B151: A272 | C151: Sash Glass Width | D151: =D149-2.1875 -> -3.0625
A152: =IF(ModelNo=B152,4,"") ->  | B152: A272 | C152: Sash Glass Height | D152: =D150-2.1875 -> -4.3125
A153: =IF(ModelNo=B153,5,"") ->  | B153: A272 | C153: Fixed Glass Width | D153: =DDIM_A272-1.8125 -> -1.8125
A154: =IF(ModelNo=B154,6,"") ->  | B154: A272 | C154: Fixed Glass Height | D154: =Frame_Height-2.3125 -> -2.3125
A155: =IF(ModelNo=B155,7,"") ->  | B155: A272 | C155: Astragal Length | D155: =Frame_Height-1.8125 -> -1.8125
A156: =IF(ModelNo=B156,8,"") ->  | B156: A272 | C156: Roller Track Length | D156: =Frame_Width-1.6875 -> -1.6875
A157: =IF(ModelNo=B157,9,"") ->  | B157: A272 | C157: Screen Width | D157: =CDIM_A272-1.8125 -> -1.8125
A158: =IF(ModelNo=B158,10,"") ->  | B158: A272 | C158: Screen Height | D158: =Frame_Height-2.125 -> -2.125
A159: =IF(ModelNo=B159,11,"") ->  | B159: A272 | C159: Egress Opening Width | D159: =CDIM_A272-2.875 -> -2.875
A160: =IF(ModelNo=B160,12,"") ->  | B160: A272 | C160: Egress Opening Height | D160: =Frame_Height-3.3125 -> -3.3125
A161: =IF(ModelNo=B161,13,"") ->  | B161: A272 | C161: Egress Opening Area (sq.ft.) | D161: =ROUNDUP(((D159*D160)/144),4) -> 0.0662
A162: =IF(ModelNo=B162,1,"") ->  | B162: A273 | C162: Operating Sash Width | D162: =CDIM_A273-0.875 -> -1.0625
A163: =IF(ModelNo=B163,2,"") ->  | B163: A273 | C163: Operating Sash Height | D163: =Frame_Height-2.125 -> -2.125
A164: =IF(ModelNo=B164,3,"") ->  | B164: A273 | C164: Astragal Length | D164: =Frame_Height-1.8125 -> -1.8125
A165: =IF(ModelNo=B165,4,"") ->  | B165: A273 | C165: Roller Track Length | D165: =Frame_Width-1.6875 -> -1.6875
A166: =IF(ModelNo=B166,5,"") ->  | B166: A273 | C166: Operating Sash Glass Width | D166: =D162-2.1875 -> -3.25
A167: =IF(ModelNo=B167,6,"") ->  | B167: A273 | C167: Operating Sash Glass Height | D167: =D163-2.1875 -> -4.3125
A168: =IF(ModelNo=B168,7,"") ->  | B168: A273 | C168: Fixed Glass Width | D168: =DDIM_A273-1.4375 -> -1.0625
A169: =IF(ModelNo=B169,8,"") ->  | B169: A273 | C169: Fixed Glass Height | D169: =Frame_Height-2.3125 -> -2.3125
A170: =IF(ModelNo=B170,9,"") ->  | B170: A273 | C170: Screen Width | D170: =CDIM_A273-1.8125 -> -2
A171: =IF(ModelNo=B171,10,"") ->  | B171: A273 | C171: Screen Height | D171: =Frame_Height-2.125 -> -2.125
A172: =IF(ModelNo=B172,11,"") ->  | B172: A273 | C172: Egress Opening Width | D172: =CDIM_A273-2.875 -> -3.0625
A173: =IF(ModelNo=B173,12,"") ->  | B173: A273 | C173: Egress Opening Height | D173: =Frame_Height-3.3125 -> -3.3125
A174: =IF(ModelNo=B174,13,"") ->  | B174: A273 | C174: Egress Opening Area (sq.ft.) | D174: =ROUNDUP(((D172*D173)/144),4) -> 0.0705
A175: =IF(ModelNo=B175,1,"") ->  | B175: A282 | C175: Sash Width | D175: =CDIM_A282-1.5 -> -1.5
A176: =IF(ModelNo=B176,2,"") ->  | B176: A282 | C176: Sash Height | D176: =Frame_Height-2.8125 -> -2.8125
A177: =IF(ModelNo=B177,3,"") ->  | B177: A282 | C177: Sash Glass Width | D177: =D175-2.5625 -> -4.0625
A178: =IF(ModelNo=B178,4,"") ->  | B178: A282 | C178: Sash Glass Height | D178: =D176-2.5625 -> -5.375
A179: =IF(ModelNo=B179,5,"") ->  | B179: A282 | C179: Fixed Glass Width | D179: =DDIM_A282-2 -> -2
A180: =IF(ModelNo=B180,6,"") ->  | B180: A282 | C180: Fixed Glass Height | D180: =Frame_Height-2.5625 -> -2.5625
A181: =IF(ModelNo=B181,7,"") ->  | B181: A282 | C181: Astragal Length | D181: =Frame_Height-2.0625 -> -2.0625
A182: =IF(ModelNo=B182,8,"") ->  | B182: A282 | C182: Roller Track Length | D182: =Frame_Width-2.125 -> -2.125
A183: =IF(ModelNo=B183,9,"") ->  | B183: A282 | C183: Screen Width | D183: =CDIM_A282-2 -> -2
A184: =IF(ModelNo=B184,10,"") ->  | B184: A282 | C184: Screen Height | D184: =Frame_Height-2.375 -> -2.375
A185: =IF(ModelNo=B185,11,"") ->  | B185: A282 | C185: Egress Opening Width | D185: =CDIM_A282-3.25 -> -3.25
A186: =IF(ModelNo=B186,12,"") ->  | B186: A282 | C186: Egress Opening Height | D186: =Frame_Height-3.3125 -> -3.3125
A187: =IF(ModelNo=B187,13,"") ->  | B187: A282 | C187: Egress Opening Area (sq.ft.) | D187: =ROUNDUP(((D185*D186)/144),4) -> 0.0748
A188: =IF(ModelNo=B188,1,"") ->  | B188: A283 | C188: Operating Sash Width | D188: =CDIM_A283-1.5 -> -1.6875
A189: =IF(ModelNo=B189,2,"") ->  | B189: A283 | C189: Operating Sash Height | D189: =Frame_Height-2.8125 -> -2.8125
A190: =IF(ModelNo=B190,3,"") ->  | B190: A283 | C190: Astragal Length | D190: =Frame_Height-2.0625 -> -2.0625
A191: =IF(ModelNo=B191,4,"") ->  | B191: A283 | C191: Roller Track Length | D191: =Frame_Width-2.125 -> -2.125
A192: =IF(ModelNo=B192,5,"") ->  | B192: A283 | C192: Operating Sash Glass Width | D192: =D188-2.5625 -> -4.25
A193: =IF(ModelNo=B193,6,"") ->  | B193: A283 | C193: Operating Sash Glass Height | D193: =D189-2.5625 -> -5.375
A194: =IF(ModelNo=B194,7,"") ->  | B194: A283 | C194: Fixed Glass Width | D194: =DDIM_A283-1.5 -> -1.125
A195: =IF(ModelNo=B195,8,"") ->  | B195: A283 | C195: Fixed Glass Height | D195: =Frame_Height-2.5625 -> -2.5625
A196: =IF(ModelNo=B196,9,"") ->  | B196: A283 | C196: Screen Width | D196: =CDIM_A283-1.9375 -> -2.125
A197: =IF(ModelNo=B197,10,"") ->  | B197: A283 | C197: Screen Height | D197: =Frame_Height-2.375 -> -2.375
A198: =IF(ModelNo=B198,11,"") ->  | B198: A283 | C198: Egress Opening Width | D198: =CDIM_A283-3.25 -> -3.4375
A199: =IF(ModelNo=B199,12,"") ->  | B199: A283 | C199: Egress Opening Height | D199: =Frame_Height-3.3125 -> -3.3125
A200: =IF(ModelNo=B200,13,"") ->  | B200: A283 | C200: Egress Opening Area (sq.ft.) | D200: =ROUNDUP(((D198*D199)/144),4) -> 0.0791
... 225 more rows
